Workbook

Sheet Index
A1: Number | B1: Magazine | C1: Title | D1: Excel Workbook | E1: Adobe File | F1: Method | G1: Model Age | H1: MAXIMUM | I1: MINIMUM | J1: DIFFERENCE | K1: AVERAGE | L1: 4600 To 4999 | M1: 5000 To 5999 | N1: 6,000 To 9999 | O1: 10,000 To 19,999 | P1: Over 19,999 | Q1: Total
A2: 1 | B2: Meteoritics & Planetary Science, 2004, Volume 39, Number 12, Pages 2033 - 2041 | C2: Ion microprobe U-Th-Pb dating | D2: Iso_Plot_001 | E2: =("C:\Essays\Geo_Dating\Iso_Plot_Dates\" & D2 & ".pdf") -> C:\Essays\Geo_Dating\Iso_Plot_Dates\Iso_Plot_001.pdf | F2: 206Pb/238U | H2: 11213.9226 | I2: 1841.714582 | J2: 9372.208018 | K2: 5179.563562 | L2: 3 | M2: 1 | N2: 5 | O2: 1 | Q2: =SUM(L2:P2) -> 10
A3: 2 | B3: Meteoritics & Planetary Science, 2004, Volume 39, Number 12, Pages 2033 - 2041 | C3: Ion microprobe U-Th-Pb dating | D3: Iso_Plot_001 | E3: =("C:\Essays\Geo_Dating\Iso_Plot_Dates\" & D3 & ".pdf") -> C:\Essays\Geo_Dating\Iso_Plot_Dates\Iso_Plot_001.pdf | F3: 208Pb/232Th | H3: 23837.24623 | I3: 2963.327975 | J3: 20873.91825 | K3: 10861.72026 | M3: 2 | N3: 4 | O3: 10 | P3: 1 | Q3: 17
A4: 3 | B4: Meteoritics & Planetary Science, 2004, Volume 39, Number 12, Pages 2033 - 2041 | C4: Ion microprobe U-Th-Pb dating | D4: Iso_Plot_001 | E4: C:\Essays\Geo_Dating\Iso_Plot_Dates\Iso_Plot_001.pdf | F4: Pb-207/Pb-206 | H4: 5347.740483 | I4: 3897.376286 | J4: 1450.364197 | K4: 4768.117445 | L4: 11 | M4: 5 | Q4: 16
A5: 4 | B5: Meteoritics & Planetary Science, 2007, Volume 42, Numbers 7/8, Pages 1337 - 1350 | C5: Pb-Isotopic Dates From Estacado | D5: Iso_Plot_002 | E5: C:\Essays\Geo_Dating\Iso_Plot_Dates\Iso_Plot_002.pdf | F5: Pb-207/Pb-206 | H5: 5022.689092 | I5: 4561.879659 | J5: 460.8094327 | K5: 4769.104383 | L5: 25 | M5: 2 | Q5: 27
A6: 5 | B6: Meteoritics & Planetary Science, 2003, Volume 38, Number 11, Pages 1697 - 1703 | C6: Ion Microprobe U-Th-Pb Dating | D6: Iso_Plot_003 | E6: C:\Essays\Geo_Dating\Iso_Plot_Dates\Iso_Plot_003.pdf | F6: 206Pb/238U | H6: 5650.411461 | I6: 2964.118062 | J6: 2686.293399 | K6: 4299.474308 | L6: 1 | M6: 3 | Q6: 4
A7: 6 | B7: Meteoritics & Planetary Science, 2003, Volume 38, Number 11, Pages 1697 - 1703 | C7: Ion Microprobe U-Th-Pb Dating | D7: Iso_Plot_003 | E7: C:\Essays\Geo_Dating\Iso_Plot_Dates\Iso_Plot_003.pdf | F7: 208Pb/232Th | H7: 6110.39041 | I7: 2894.87674 | J7: 3215.513671 | K7: 4172.897248 | M7: 2 | N7: 1 | Q7: 3
A8: 7 | B8: Journal Of Petrology, 1998, Volume 39, Number 7, Pages 1285-1306 | C8: Tracing the Indian Ocean Mantle | D8: Iso_Plot_004 | E8: C:\Essays\Geo_Dating\Iso_Plot_Dates\Iso_Plot_004.pdf | F8: 206Pb/238U | G8: 100 | H8: 13307.51268 | I8: 758.3904012 | J8: 12549.12227 | K8: 5013.734024 | L8: 4 | M8: 5 | N8: 17 | O8: 4 | Q8: =SUM(L8:P8) -> 30
A9: 7 | B9: Journal Of Petrology, 1998, Volume 39, Number 7, Pages 1285-1306 | C9: Tracing the Indian Ocean Mantle | D9: Iso_Plot_004 | E9: C:\Essays\Geo_Dating\Iso_Plot_Dates\Iso_Plot_004.pdf | F9: 208Pb/232Th | G9: 100 | H9: 82560.93511 | I9: 1139.239664 | J9: 81421.69545 | K9: 16890.42678 | M9: 1 | N9: 10 | O9: 14 | P9: 20 | Q9: 45
A10: 7 | B10: Journal Of Petrology, 1998, Volume 39, Number 7, Pages 1285-1306 | C10: Tracing the Indian Ocean Mantle | D10: Iso_Plot_004 | E10: C:\Essays\Geo_Dating\Iso_Plot_Dates\Iso_Plot_004.pdf | F10: 207Pb/206Pb | G10: 100 | H10: 5073.777959 | I10: 4939.765731 | J10: 134.012228 | K10: 4999.661154 | L10: 33 | M10: 26 | Q10: 59
A11: 8 | B11: Journal Of Petrology, 1998, Volume 39, Number 4, Pages 711-748 | C11: Petrogenesis of the Flood Basalts | D11: Iso_Plot_005 | E11: =("C:\Essays\Geo_Dating\Iso_Plot_Dates\" & D11 & ".pdf") -> C:\Essays\Geo_Dating\Iso_Plot_Dates\Iso_Plot_005.pdf | F11: 207Pb/206Pb | G11: 30 | H11: 5019.589625 | I11: 4993.561718 | J11: 26.02790661 | K11: 5006.886507 | L11: 4 | M11: 26 | Q11: 30
A12: 8 | B12: Journal Of Petrology, 1998, Volume 39, Number 4, Pages 711-748 | C12: Petrogenesis of the Flood Basalts | D12: Iso_Plot_005 | E12: C:\Essays\Geo_Dating\Iso_Plot_Dates\Iso_Plot_005.pdf | F12: 206Pb/238U | G12: 30 | H12: 23366.409 | I12: 3335.366761 | J12: 20031.04224 | K12: 5571.900067 | L12: 5 | M12: 12 | N12: 3 | P12: 1 | Q12: 21
A13: 8 | B13: Journal Of Petrology, 1998, Volume 39, Number 4, Pages 711-748 | C13: Petrogenesis of the Flood Basalts | D13: Iso_Plot_005 | E13: C:\Essays\Geo_Dating\Iso_Plot_Dates\Iso_Plot_005.pdf | F13: 207Pb/235U | G13: 30 | H13: 8496.027831 | I13: 4453.661876 | J13: 4042.365955 | K13: 5097.250926 | L13: 12 | M13: 15 | N13: 1 | Q13: 28
A14: 8 | B14: Journal Of Petrology, 1998, Volume 39, Number 4, Pages 711-748 | C14: Petrogenesis of the Flood Basalts | D14: Iso_Plot_005 | E14: C:\Essays\Geo_Dating\Iso_Plot_Dates\Iso_Plot_005.pdf | F14: 208Pb/232Th | G14: 30 | H14: 44378.16326 | I14: 2649.904309 | J14: 41728.25895 | K14: 7654.225991 | M14: 6 | N14: 18 | P14: 1 | Q14: 25
A15: 9 | B15: Journal Of Petrology, 2004, Volume 45, Number 3, Pages 555-607 | C15: Nature of the Source Regions | D15: Iso_Plot_006 | E15: C:\Essays\Geo_Dating\Iso_Plot_Dates\Iso_Plot_006.pdf | F15: 208Pb/232Th | G15: 20 | H15: 88294.2628 | I15: 4825.639072 | J15: 83468.62373 | K15: 24257.79182 | L15: 1 | N15: 3 | O15: 5 | P15: 4 | Q15: 13
A16: 9 | B16: Journal Of Petrology, 2004, Volume 45, Number 3, Pages 555-607 | C16: Nature of the Source Regions | D16: Iso_Plot_006 | E16: =("C:\Essays\Geo_Dating\Iso_Plot_Dates\" & D16 & ".pdf") -> C:\Essays\Geo_Dating\Iso_Plot_Dates\Iso_Plot_006.pdf | F16: 206Pb/238U | G16: 20 | H16: 33751.1969 | I16: 4085.867609 | J16: 29665.32929 | K16: 11984.57635 | M16: 2 | N16: 6 | O16: 2 | P16: 2 | Q16: 12
A17: 9 | B17: Journal Of Petrology, 2004, Volume 45, Number 3, Pages 555-607 | C17: Nature of the Source Regions | D17: Iso_Plot_006 | E17: C:\Essays\Geo_Dating\Iso_Plot_Dates\Iso_Plot_006.pdf | F17: 207Pb/235U | G17: 20 | H17: 7470.608358 | I17: 238.2571916 | J17: 7232.351167 | K17: 2959.597188 | M17: 4 | N17: 2 | Q17: 6
A18: 9 | B18: Journal Of Petrology, 2004, Volume 45, Number 3, Pages 555-607 | C18: Nature of the Source Regions | D18: Iso_Plot_006 | E18: C:\Essays\Geo_Dating\Iso_Plot_Dates\Iso_Plot_006.pdf | F18: 207Pb/206Pb | G18: 20 | H18: 4993.983648 | I18: 4919.239451 | J18: 74.74419721 | K18: 4981.017121 | L18: 13 | Q18: 13
A19: 10 | B19: Journal Of Petrology, 2007, Volume 48, Number 4, Pages 661-692 | C19: Generation of Palaeocene Adakitic Andesites | D19: Iso_Plot_007 | E19: C:\Essays\Geo_Dating\Iso_Plot_Dates\Iso_Plot_007.pdf | F19: 207Pb/206Pb | G19: 60 | H19: 5023.831622 | I19: 5020.46308 | J19: 3.36854173 | K19: 5022.374961 | M19: 6 | Q19: 6
A20: 10 | B20: Journal Of Petrology, 2007, Volume 48, Number 4, Pages 661-692 | C20: Generation of Palaeocene Adakitic Andesites | D20: Iso_Plot_007 | E20: =("C:\Essays\Geo_Dating\Iso_Plot_Dates\" & D20 & ".pdf") -> C:\Essays\Geo_Dating\Iso_Plot_Dates\Iso_Plot_007.pdf | F20: 208Pb/232Th | G20: 60 | H20: 10517.8546 | I20: 7800.086209 | J20: 2717.768391 | K20: 8941.355061 | N20: 4 | O20: 2 | Q20: 6
A21: 10 | B21: Journal Of Petrology, 2007, Volume 48, Number 4, Pages 661-692 | C21: Generation of Palaeocene Adakitic Andesites | D21: Iso_Plot_007 | E21: C:\Essays\Geo_Dating\Iso_Plot_Dates\Iso_Plot_007.pdf | F21: 206Pb/238U | G21: 60 | H21: 9668.860998 | I21: 7402.789949 | J21: 2266.071049 | K21: 8753.552921 | N21: 6 | Q21: 6
A22: 10 | B22: Journal Of Petrology, 2007, Volume 48, Number 4, Pages 661-692 | C22: Generation of Palaeocene Adakitic Andesites | D22: Iso_Plot_007 | E22: C:\Essays\Geo_Dating\Iso_Plot_Dates\Iso_Plot_007.pdf | F22: 207Pb/235U | G22: 60 | H22: 6052.088629 | I22: 5640.589147 | J22: 411.4994819 | K22: 5908.244737 | M22: 3 | N22: 3 | Q22: 6
A23: 11 | B23: Precambrian Research, 2002, Volume 117, Pages 119 - 143 | C23: 207Pb–206Pb And 40Ar–39Ar Ages | D23: Iso_Plot_008 | E23: C:\Essays\Geo_Dating\Iso_Plot_Dates\Iso_Plot_008.pdf | F23: Pb-207/Pb-206 | H23: 5049.006386 | I23: 1848.213643 | J23: 3200.792743 | K23: 3768.9565 | L23: 3 | M23: 4 | Q23: 7
A24: 12 | B24: Journal Of Petrology, 2005, Volume 46, Number 4, Pages 829-858 | C24: Evidence for a Widespread Tethyan | D24: Iso_Plot_009 | E24: C:\Essays\Geo_Dating\Iso_Plot_Dates\Iso_Plot_009.pdf | F24: 206Pb/238U | G24: 140 | H24: 15747.08148 | I24: 1063.397808 | J24: 14683.68368 | K24: 7014.140251 | L24: 3 | M24: 15 | N24: 24 | O24: 13 | Q24: 55
A25: 12 | B25: Journal Of Petrology, 2005, Volume 46, Number 4, Pages 829-858 | C25: Evidence for a Widespread Tethyan | D25: Iso_Plot_009 | E25: =("C:\Essays\Geo_Dating\Iso_Plot_Dates\" & D25 & ".pdf") -> C:\Essays\Geo_Dating\Iso_Plot_Dates\Iso_Plot_009.pdf | F25: 208Pb/232Th | G25: 140 | H25: 58795.28338 | I25: 4869.182574 | J25: 53926.10081 | K25: 22675.35889 | L25: 1 | M25: 2 | N25: 5 | O25: 30 | P25: 32 | Q25: 70
A26: 12 | B26: Journal Of Petrology, 2005, Volume 46, Number 4, Pages 829-858 | C26: Evidence for a Widespread Tethyan | D26: Iso_Plot_009 | E26: C:\Essays\Geo_Dating\Iso_Plot_Dates\Iso_Plot_009.pdf | F26: 207Pb/206Pb | G26: 140 | H26: 5235.651057 | I26: 4821.682612 | J26: 413.9684446 | K26: 4998.740802 | L26: 27 | M26: 43 | Q26: 70
A27: 13 | B27: Precambrian Research, 1999, Volume 95, Pages 167 - 185 | C27: U–Pb And Pb–Pb Isotopic Studies | D27: Iso_Plot_010 | E27: C:\Essays\Geo_Dating\Iso_Plot_Dates\Iso_Plot_010.pdf | F27: 207Pb/206Pb | G27: 55 | H27: 5009.664536 | I27: 4967.561868 | J27: 42.1026683 | K27: 4974.641436 | L27: 18 | M27: 1 | Q27: 19
A28: 14 | B28: Precambrian Research, 1988, Volume 38, Pages 147 - 164 | C28: New U-Pb Zircon Chronology | D28: Iso_Plot_011 | E28: C:\Essays\Geo_Dating\Iso_Plot_Dates\Iso_Plot_011.pdf | F28: 207Pb/206Pb | G28: 120 | H28: 5064.729693 | I28: 4996.204361 | J28: 68.52533217 | K28: 5023.797204 | L28: 1 | M28: 8 | Q28: 9
A29: 15 | B29: Mereoritics And PIanetary Science, 2000, Volume 35, Pages 341 - 346 | C29: Uranium-Thorium-Lead Dating | D29: Iso_Plot_012 | E29: C:\Essays\Geo_Dating\Iso_Plot_Dates\Iso_Plot_012.pdf | F29: Pb-207/Pb-206 | H29: 5122.990853 | I29: 4900.200529 | J29: 222.790324 | K29: 5012.009072 | L29: 7 | M29: 6 | Q29: 13
A30: 16 | B30: Journal Of Petrology, 2001, Volume 42, Number 4, Pages 731-763 | C30: Garnet Granulite Xenoliths | D30: Iso_Plot_013 | E30: C:\Essays\Geo_Dating\Iso_Plot_Dates\Iso_Plot_013.pdf | F30: 207Pb/206Pb | G30: 1000 | H30: 4820.367351 | I30: 2167.57862 | J30: 2652.788731 | K30: 4028.815014 | L30: 1 | Q30: 1
A31: 16 | B31: Journal Of Petrology, 2001, Volume 42, Number 4, Pages 731-763 | C31: Garnet Granulite Xenoliths | D31: Iso_Plot_013 | E31: =("C:\Essays\Geo_Dating\Iso_Plot_Dates\" & D31 & ".pdf") -> C:\Essays\Geo_Dating\Iso_Plot_Dates\Iso_Plot_013.pdf | F31: 206Pb/238U | G31: 1000 | H31: 40059.3587 | I31: 1607.800416 | J31: 38451.55828 | K31: 15308.42907 | L31: 1 | M31: 2 | N31: 6 | O31: 18 | P31: 10 | Q31: 37
A32: 17 | B32: Chemical Geology, 2009, Volume 259, Pages 143 - 151 | C32: Pb–Pb Dating Of Chondrules | D32: Iso_Plot_014 | E32: C:\Essays\Geo_Dating\Iso_Plot_Dates\Iso_Plot_014.pdf | F32: Pb-207/Pb-206 | H32: 5206.108213 | I32: 4577.403489 | J32: 628.7047246 | K32: 4910.819581 | L32: 26 | M32: 15 | Q32: =SUM(L32:P32) -> 41
A33: 18 | B33: Geochimica et Cosmochimica Acta, 2007, Volume 71, Pages 1583 - 1604 | C33: Pb–Pb Dating Constraints | D33: Iso_Plot_015 | E33: =("C:\Essays\Geo_Dating\Iso_Plot_Dates\" & D33 & ".pdf") -> C:\Essays\Geo_Dating\Iso_Plot_Dates\Iso_Plot_015.pdf | F33: Pb-207/Pb-206 | H33: 5378.606625 | I33: 4690.483526 | J33: 688.1230995 | K33: 5120.815807 | L33: 8 | M33: 17 | Q33: 25
A34: 19 | B34: Geochimica et Cosmochimica Acta, 2007, Volume 71, Pages 1583 - 1604 | C34: Pb–Pb Dating Constraints | D34: Iso_Plot_015 | E34: =("C:\Essays\Geo_Dating\Iso_Plot_Dates\" & D34 & ".pdf") -> C:\Essays\Geo_Dating\Iso_Plot_Dates\Iso_Plot_015.pdf | F34: Pb-207/Pb-206 | H34: 5359.045509 | I34: 4637.243488 | J34: 721.8020212 | K34: 4923.317079 | L34: 22 | M34: 9 | Q34: 31
A35: 20 | B35: Geochimica et Cosmochimica Acta, 2007, Volume 71, Pages 1583 - 1604 | C35: Pb–Pb Dating Constraints | D35: Iso_Plot_015 | E35: =("C:\Essays\Geo_Dating\Iso_Plot_Dates\" & D35 & ".pdf") -> C:\Essays\Geo_Dating\Iso_Plot_Dates\Iso_Plot_015.pdf | F35: Pb-207/Pb-206 | H35: 5022.656075 | I35: 4559.294333 | J35: 463.3617415 | K35: 4775.429259 | L35: 11 | M35: 4 | Q35: 15
A36: 21 | B36: Geochimica et Cosmochimica Acta, 2007, Volume 71, Pages 1583 - 1604 | C36: Pb–Pb Dating Constraints | D36: Iso_Plot_015 | E36: =("C:\Essays\Geo_Dating\Iso_Plot_Dates\" & D36 & ".pdf") -> C:\Essays\Geo_Dating\Iso_Plot_Dates\Iso_Plot_015.pdf | F36: Pb-207/Pb-206 | H36: 5132.679046 | I36: 4782.860644 | J36: 349.8184015 | K36: 5028.118177 | L36: 5 | M36: 9 | Q36: 14
A37: 22 | B37: Geochimica et Cosmochimica Acta, 2007, Volume 71, Pages 1583 - 1604 | C37: Pb–Pb Dating Constraints | D37: Iso_Plot_015 | E37: =("C:\Essays\Geo_Dating\Iso_Plot_Dates\" & D37 & ".pdf") -> C:\Essays\Geo_Dating\Iso_Plot_Dates\Iso_Plot_015.pdf | F37: Pb-207/Pb-206 | H37: 5259.100314 | I37: 4618.765866 | J37: 640.3344476 | K37: 5024.109064 | L37: 6 | M37: 11 | Q37: 17
A38: 23 | B38: Journal Of Petrology, 1999, Volume 40, Number 9, Pages 1399-1424 | C38: Post-Collisional Potassic and Ultrapotassic | D38: Iso_Plot_016 | E38: =("C:\Essays\Geo_Dating\Iso_Plot_Dates\" & D38 & ".pdf") -> C:\Essays\Geo_Dating\Iso_Plot_Dates\Iso_Plot_016.pdf | F38: 206Pb/238U | G38: 471 | H38: 6943.92153 | I38: 2646.359056 | J38: 4297.562474 | K38: 4770.633445 | L38: 1 | M38: 2 | N38: 1 | Q38: =SUM(L38:P38) -> 4
A39: 23 | B39: Journal Of Petrology, 1999, Volume 40, Number 9, Pages 1399-1424 | C39: Post-Collisional Potassic and Ultrapotassic | D39: Iso_Plot_016 | E39: =("C:\Essays\Geo_Dating\Iso_Plot_Dates\" & D39 & ".pdf") -> C:\Essays\Geo_Dating\Iso_Plot_Dates\Iso_Plot_016.pdf | F39: 208Pb/232Th | G39: 471 | H39: 99274.74573 | I39: 67704.35205 | J39: 31570.39367 | K39: 78807.62265 | P39: 6 | Q39: 6
A40: 23 | B40: Journal Of Petrology, 1999, Volume 40, Number 9, Pages 1399-1424 | C40: Post-Collisional Potassic and Ultrapotassic | D40: Iso_Plot_016 | E40: C:\Essays\Geo_Dating\Iso_Plot_Dates\Iso_Plot_016.pdf | F40: 207Pb/206Pb | G40: 471 | H40: 5007.097953 | I40: 4988.290517 | J40: 18.80743623 | K40: 4999.9394 | L40: 3 | M40: 3 | Q40: 6
A41: 24 | B41: Journal Of Petrology, 1997, Volume 38, Number 1, Pages 115-132 | C41: Continental Lithospheric Contribution to Alkaline | D41: Iso_Plot_017 | E41: C:\Essays\Geo_Dating\Iso_Plot_Dates\Iso_Plot_017.pdf | F41: 207Pb/206Pb | G41: 72 | H41: 4949.199116 | I41: 4887.906848 | J41: 61.29226777 | K41: 4919.221332 | L41: 16 | Q41: 16
A42: 24 | B42: Journal Of Petrology, 1997, Volume 38, Number 1, Pages 115-132 | C42: Continental Lithospheric Contribution to Alkaline | D42: Iso_Plot_017 | E42: =("C:\Essays\Geo_Dating\Iso_Plot_Dates\" & D42 & ".pdf") -> C:\Essays\Geo_Dating\Iso_Plot_Dates\Iso_Plot_017.pdf | F42: 208Pb/232Th | G42: 72 | H42: 10083.59321 | I42: 2616.335244 | J42: 7467.257968 | K42: 6126.375548 | M42: 3 | N42: 7 | O42: 1 | Q42: 11
A43: 24 | B43: Journal Of Petrology, 1997, Volume 38, Number 1, Pages 115-132 | C43: Continental Lithospheric Contribution to Alkaline | D43: Iso_Plot_017 | E43: C:\Essays\Geo_Dating\Iso_Plot_Dates\Iso_Plot_017.pdf | F43: 206Pb/238U | G43: 72 | H43: 7742.916367 | I43: 2305.914893 | J43: 5437.001474 | K43: 4540.739074 | L43: 1 | M43: 1 | N43: 5 | Q43: 7
A44: 25 | B44: Geochimica et Cosmochimica Acta, 2008, Volume 72, Pages 2067 - 2089 | C44: U–Th–Pb Dating Of Secondary Minerals | D44: Iso_Plot_018 | E44: C:\Essays\Geo_Dating\Iso_Plot_Dates\Iso_Plot_018.pdf | F44: Pb-207/Pb-206 | H44: 8125.856407 | I44: 282.291782 | J44: 7843.564625 | K44: 3714.192498 | L44: 14 | M44: 4 | N44: 1 | Q44: 19
A45: 26 | B45: Geochimica et Cosmochimica Acta, 2008, Volume 72, Pages 2067 - 2089 | C45: U–Th–Pb Dating Of Secondary Minerals | D45: Iso_Plot_018 | E45: =("C:\Essays\Geo_Dating\Iso_Plot_Dates\" & D45 & ".pdf") -> C:\Essays\Geo_Dating\Iso_Plot_Dates\Iso_Plot_018.pdf | F45: 206Pb/238U | H45: 31192.5545 | I45: 0.5701576211 | J45: 31191.98435 | K45: 4890.692168 | L45: 2 | M45: 1 | N45: 5 | O45: 6 | P45: 4 | Q45: 18
A46: 27 | B46: Geochimica et Cosmochimica Acta, 2008, Volume 72, Pages 2067 - 2089 | C46: U–Th–Pb Dating Of Secondary Minerals | D46: Iso_Plot_018 | E46: C:\Essays\Geo_Dating\Iso_Plot_Dates\Iso_Plot_018.pdf | F46: 208Pb/232Th | H46: 352962.1923 | I46: 2.268970373 | J46: 352959.9233 | K46: 9983.642069 | M46: 1 | P46: 1 | Q46: 2
A47: 28 | B47: Earth and Planetary Science Letters, 1983, Volume 62, Pages 132 - 146 | C47: 40ar/39ar And U-Th-Pb Dating | D47: Iso_Plot_019 | E47: C:\Essays\Geo_Dating\Iso_Plot_Dates\Iso_Plot_019.pdf | F47: Pb-207/Pb-206 | H47: 5370.941308 | I47: 4410 | J47: 960.9413083 | K47: 4948.437496 | L47: 3 | M47: 10 | Q47: 13
A48: 29 | B48: Geochimica et Cosmochimica Acta, 1976, Volume 40, Pages 635 - 643 | C48: Isotopic Lead Investigations | D48: Iso_Plot_020 | E48: C:\Essays\Geo_Dating\Iso_Plot_Dates\Iso_Plot_020.pdf | F48: Pb-207/Pb-206 | H48: 5345.618224 | I48: 4637.576867 | J48: 708.0413566 | K48: 5125.863023 | L48: 8 | M48: 19 | Q48: 27

Sheet Iso_Plot_001
A1: Sample | B1: U-238/Pb-206 | C1: U-238/Pb-206 | D1: Table 2. | E1: U-238 | F1: Error | G1: Pb-207 | H1: Error | I1: Pb-204 | J1: Error | K1: Pb-204 | L1: Error | M1: Th-232 | N1: Error | O1: Th-232/Pb-208 | P1: Th-232/Pb-208
A2: Number | B2: Ratio | C2: Age | E2: Pb-206 | F2: Level | G2: Pb-206 | H2: Level | I2: Pb-206 | J2: Level | K2: Pb-208 | L2: Level | M2: Pb-208 | N2: Level | O2: Ratio | P2: Age
A3: LAFA01.01 | B3: 0.213 | C3: =[1]!AgePb6U8(1/B3) -> 11213.9226 | D3: 4.4 | E3: 0.213 | F3: 0.019 | G3: 0.7907 | H3: 0.0054 | I3: 0.0553 | J3: 0.0007 | K3: 0.0259 | L3: 0.0004 | M3: 0.444 | N3: 0.036 | O3: 0.444 | P3: =[1]!AgePb8Th2(1/O3) -> 23837.24623
A4: LAFA03.01 | B4: 3.024 | C4: =[1]!AgePb6U8(1/B4) -> 1841.714582 | D4: 3.4 | E4: 3.024 | F4: 0.177 | G4: 0.3969 | H4: 0.0092 | I4: 0.0279 | J4: 0.0013 | K4: 0.0174 | L4: 0.0009 | M4: 6.333 | N4: 0.344 | O4: 6.333 | P4: =[1]!AgePb8Th2(1/O4) -> 2963.327975
A5: LAFA04.01 | B5: 1.147 | C5: =[1]!AgePb6U8(1/B5) -> 4041.396814 | D5: 5.6 | E5: 1.147 | F5: 0.116 | G5: 0.6561 | H5: 0.0141 | I5: 0.0522 | J5: 0.002 | K5: 0.0254 | L5: 0.0011 | M5: 3.125 | N5: 0.287 | O5: 3.125 | P5: =[1]!AgePb8Th2(1/O5) -> 5611.556071
A6: LAFA04.02 | B6: 1.362 | C6: =[1]!AgePb6U8(1/B6) -> 3549.102402 | D6: 5 | E6: 1.362 | F6: 0.137 | G6: 0.6639 | H6: 0.0142 | I6: 0.0547 | J6: 0.0021 | K6: 0.0255 | L6: 0.0011 | M6: 3.202 | N6: 0.291 | O6: 3.202 | P6: =[1]!AgePb8Th2(1/O6) -> 5493.38025
A7: LAFA04.03 | B7: 1.179 | C7: =[1]!AgePb6U8(1/B7) -> 3959.383945 | D7: 4.6 | E7: 1.179 | F7: 0.086 | G7: 0.6898 | H7: 0.0119 | I7: 0.0538 | J7: 0.0017 | K7: 0.0262 | L7: 0.0009 | M7: 2.663 | N7: 0.177 | O7: 2.663 | P7: =[1]!AgePb8Th2(1/O7) -> 6444.248145
A8: LAFA05.01 | B8: 0.399 | C8: =[1]!AgePb6U8(1/B8) -> 8087.358954 | D8: 5.5 | E8: 0.399 | F8: 0.032 | G8: 0.7999 | H8: 0.008 | I8: 0.0644 | J8: 0.0012 | K8: 0.0293 | L8: 0.0006 | M8: 0.992 | N8: 0.071 | O8: 0.992 | P8: =[1]!AgePb8Th2(1/O8) -> 14091.38617
A9: LAFA08.01 | B9: 2.671 | C9: =[1]!AgePb6U8(1/B9) -> 2050.031719 | D9: 3.5 | E9: 2.671 | F9: 0.14 | G9: 0.4505 | H9: 0.0068 | I9: 0.0319 | J9: 0.001 | K9: 0.02 | L9: 0.0006 | M9: 5.861 | N9: 0.281 | O9: 5.861 | P9: =[1]!AgePb8Th2(1/O9) -> 3184.092293
A10: LAFA09.01 | B10: 0.878 | C10: =[1]!AgePb6U8(1/B10) -> 4901.312272 | D10: 2.7 | E10: 0.878 | F10: 0.083 | G10: 0.7126 | H10: 0.0099 | I10: 0.0458 | J10: 0.0014 | K10: 0.0247 | L10: 0.0008 | M10: 1.264 | N10: 0.107 | O10: 1.264 | P10: =[1]!AgePb8Th2(1/O10) -> 11780.73501
A11: LAFA10.01 | B11: 0.932 | C11: =[1]!AgePb6U8(1/B11) -> 4699.295407 | D11: 4.4 | E11: 0.932 | F11: 0.086 | G11: 0.6506 | H11: 0.0113 | I11: 0.0398 | J11: 0.0014 | K11: 0.0214 | L11: 0.0008 | M11: 2.2 | N11: 0.183 | O11: 2.2 | P11: =[1]!AgePb8Th2(1/O11) -> 7573.389579
A12: Y-000593.1 | B12: 0.423 | C12: =[1]!AgePb6U8(1/B12) -> 7820.470066 | D12: 4.7 | E12: 0.423 | F12: 0.155 | G12: 0.9029 | H12: 0.2503 | I12: 0.0768 | J12: 0.0196 | K12: 0.03 | L12: 0.011 | M12: 0.783 | N12: 0.332 | O12: 0.783 | P12: =[1]!AgePb8Th2(1/O12) -> 16633.04541
A13: Y-000593.2 | B13: 1.013 | C13: =[1]!AgePb6U8(1/B13) -> 4426.816576 | D13: 3.1 | E13: 1.013 | F13: 0.169 | G13: 0.7225 | H13: 0.029 | I13: 0.0602 | J13: 0.006 | K13: 0.0288 | L13: 0.0034 | M13: 1.482 | N13: 0.25 | O13: 1.482 | P13: =[1]!AgePb8Th2(1/O13) -> 10422.88347
A14: Y-000593.3-1 | B14: 0.424 | C14: =[1]!AgePb6U8(1/B14) -> 7809.776869 | D14: 4.5 | E14: 0.424 | F14: 0.091 | G14: 1.0819 | H14: 0.1872 | I14: 0.1015 | J14: 0.0182 | K14: 0.0401 | L14: 0.01 | M14: 0.752 | N14: 0.199 | O14: 0.752 | P14: =[1]!AgePb8Th2(1/O14) -> 17095.03684
A15: Y-000593.3-2 | B15: 0.937 | C15: =[1]!AgePb6U8(1/B15) -> 4681.465793 | D15: 3.3 | E15: 0.937 | F15: 0.173 | G15: 0.8453 | H15: 0.0476 | I15: 0.0725 | J15: 0.0063 | K15: 0.0308 | L15: 0.0032 | M15: 1.326 | N15: 0.259 | O15: 1.326 | P15: =[1]!AgePb8Th2(1/O15) -> 11358.93203
A16: Y-000593.4 | B16: 1.161 | C16: =[1]!AgePb6U8(1/B16) -> 4005.088637 | D16: 3.6 | E16: 1.161 | F16: 0.165 | G16: 0.7097 | H16: 0.0337 | I16: 0.0599 | J16: 0.0074 | K16: 0.0267 | L16: 0.0035 | M16: 1.85 | N16: 0.266 | O16: 1.85 | P16: =[1]!AgePb8Th2(1/O16) -> 8734.378074
A17: Y-000593.5 | B17: 1.828 | C17: =[1]!AgePb6U8(1/B17) -> 2812.875262 | D17: 2.7 | E17: 1.828 | F17: 0.212 | G17: 0.6311 | H17: 0.0187 | I17: 0.0604 | J17: 0.0045 | K17: 0.0295 | L17: 0.0023 | M17: 2.411 | N17: 0.357 | O17: 2.411 | P17: =[1]!AgePb8Th2(1/O17) -> 7012.913678
A18: Y-000749.1 | B18: 0.599 | C18: =[1]!AgePb6U8(1/B18) -> 6329.554325 | D18: 3 | E18: 0.599 | F18: 0.25 | G18: 0.7842 | H18: 0.1017 | I18: 0.0662 | J18: 0.0067 | K18: 0.0311 | L18: 0.0041 | M18: 0.845 | N18: 0.369 | O18: 0.845 | P18: =[1]!AgePb8Th2(1/O18) -> 15783.6873
A19: Y-000749.3 | B19: 0.565 | C19: =[1]!AgePb6U8(1/B19) -> 6567.705862 | D19: 3.9 | E19: 0.565 | F19: 0.177 | G19: 0.9092 | H19: 0.099 | I19: 0.0875 | J19: 0.0079 | K19: 0.0361 | L19: 0.0053 | M19: 0.917 | N19: 0.291 | O19: 0.917 | P19: =[1]!AgePb8Th2(1/O19) -> 14904.6846
A20: Y-000749.4 | B20: 1.139 | C20: =[1]!AgePb6U8(1/B20) -> 4062.451221 | D20: 2.9 | E20: 1.139 | F20: 0.149 | G20: 0.7529 | H20: 0.034 | I20: 0.0583 | J20: 0.007 | K20: 0.0254 | L20: 0.0032 | M20: 1.434 | N20: 0.19 | O20: 1.434 | P20: =[1]!AgePb8Th2(1/O20) -> 10693.64836
A21: Y-000749.5-1 | B21: 0.732 | C21: =[1]!AgePb6U8(1/B21) -> 5551.984368 | D21: 3.5 | E21: 0.732 | F21: 0.221 | G21: 0.8569 | H21: 0.085 | I21: 0.0662 | J21: 0.0059 | K21: 0.0294 | L21: 0.005 | M21: 1.137 | N21: 0.376 | O21: 1.137 | P21: =[1]!AgePb8Th2(1/O21) -> 12754.11342
B22: AVG | C22: =AVERAGE(C3:C21) -> 5179.563562 | O22: AVG | P22: =AVERAGE(P3:P21) -> 10861.72026
B23: MAX | C23: =MAX(C3:C21) -> 11213.9226 | O23: MAX | P23: =MAX(P3:P21) -> 23837.24623
A24: Meteoritics & Planetary Science | B24: MIN | C24: =MIN(C3:C21) -> 1841.714582 | F24: Table 2. | G24: Pb-207 | H24: Age | O24: MIN | P24: =MIN(P3:P21) -> 2963.327975
A25: Volume 39, Number 12 | B25: STD DEV | C25: =STDEV(C3:C21) -> 2331.886619 | G25: Pb-206 | H25: GA | O25: STD DEV | P25: =STDEV(P3:P21) -> 5394.454442
A26: Pages 2033–2041 (2004) | F26: LAFA01.01 | G26: 0.7907 | H26: 4905.076428 | I26: Older Than The Earth
F27: LAFA03.01 | G27: 0.3969 | H27: 3897.376286
F28: LAFA04.01 | G28: 0.6561 | H28: 4637.441511
F29: LAFA04.02 | G29: 0.6639 | H29: 4654.49389
A30: Sample | B30: U-238/Pb-206 | C30: Th-232/Pb-208 | D30: Pb-207/Pb-206 | F30: LAFA04.03 | G30: 0.6898 | H30: 4709.615525 | I30: Older Than The Earth
A31: Number | B31: Age | C31: Age | D31: Age | F31: LAFA05.01 | G31: 0.7999 | H31: 4921.558512 | I31: Older Than The Earth
A32: LAFA01.01 | B32: 11213.9226 | C32: 23837.24623 | D32: 4905.076428 | F32: LAFA08.01 | G32: 0.4505 | H32: 4086.859174
A33: LAFA03.01 | B33: 1841.714582 | C33: 2963.327975 | D33: 3897.376286 | F33: LAFA09.01 | G33: 0.7126 | H33: 4756.337834 | I33: Older Than The Earth
A34: LAFA04.01 | B34: 4041.396814 | C34: 5611.556071 | D34: 4637.441511 | F34: LAFA10.01 | G34: 0.6506 | H34: 4625.286312
A35: LAFA04.02 | B35: 3549.102402 | C35: 5493.38025 | D35: 4654.49389 | F35: Y-000593.1 | G35: 0.9029 | H35: 5093.418138 | I35: Older Than Solar System
A36: LAFA04.03 | B36: 3959.383945 | C36: 6444.248145 | D36: 4709.615525 | F36: Y-000593.2 | G36: 0.7225 | H36: 4776.130051 | I36: Older Than The Earth
A37: LAFA05.01 | B37: 8087.358954 | C37: 14091.38617 | D37: 4921.558512 | F37: Y-000593.3-1 | G37: 1.0819 | H37: 5347.740483 | I37: Older Than Solar System
A38: LAFA08.01 | B38: 2050.031719 | C38: 3184.092293 | D38: 4086.859174 | F38: Y-000593.3-2 | G38: 0.8453 | H38: 5000.046972 | I38: Older Than Solar System
A39: LAFA09.01 | B39: 4901.312272 | C39: 11780.73501 | D39: 4756.337834 | F39: Y-000593.4 | G39: 0.7097 | H39: 4750.48446 | I39: Older Than The Earth
A40: LAFA10.01 | B40: 4699.295407 | C40: 7573.389579 | D40: 4625.286312 | F40: Y-000593.5 | G40: 0.6311 | H40: 4581.285372
A41: Y-000593.1 | B41: 7820.470066 | C41: 16633.04541 | D41: 5093.418138 | F41: Y-000749.1 | G41: 0.7842 | H41: 4893.307937 | I41: Older Than The Earth
A42: Y-000593.2 | B42: 4426.816576 | C42: 10422.88347 | D42: 4776.130051 | F42: Y-000749.3 | G42: 0.9092 | H42: 5103.245179 | I42: Older Than Solar System
A43: Y-000593.3-1 | B43: 7809.776869 | C43: 17095.03684 | D43: 5347.740483 | F43: Y-000749.4 | G43: 0.7529 | H43: 4835.144045 | I43: Older Than The Earth
A44: Y-000593.3-2 | B44: 4681.465793 | C44: 11358.93203 | D44: 5000.046972 | F44: Y-000749.5-1 | G44: 0.8569 | H44: 5019.383344 | I44: Older Than Solar System
A45: Y-000593.4 | B45: 4005.088637 | C45: 8734.378074 | D45: 4750.48446 | G45: AVG | H45: =AVERAGE(H26:H44) -> 4768.117445
A46: Y-000593.5 | B46: 2812.875262 | C46: 7012.913678 | D46: 4581.285372 | G46: MAX | H46: =MAX(H26:H44) -> 5347.740483
A47: Y-000749.1 | B47: 6329.554325 | C47: 15783.6873 | D47: 4893.307937 | G47: MIN | H47: =MIN(H26:H44) -> 3897.376286
A48: Y-000749.3 | B48: 6567.705862 | C48: 14904.6846 | D48: 5103.245179 | G48: STD DEV | H48: =STDEV(H26:H44) -> 337.0641082
A49: Y-000749.4 | B49: 4062.451221 | C49: 10693.64836 | D49: 4835.144045
A50: Y-000749.5-1 | B50: 5551.984368 | C50: 12754.11342 | D50: 5019.383344
A51: AVG | B51: =AVERAGE(B32:B50) -> 5179.563562 | C51: =AVERAGE(C32:C50) -> 10861.72026 | D51: =AVERAGE(D32:D50) -> 4768.117445 | F51: Y-000593.1 | G51: 0.9029 | H51: 5093.418138 | I51: Older Than Solar System
A52: MAX | B52: =MAX(B32:B50) -> 11213.9226 | C52: =MAX(C32:C50) -> 23837.24623 | D52: =MAX(D32:D50) -> 5347.740483 | F52: Y-000593.3-1 | G52: 1.0819 | H52: 5347.740483 | I52: Older Than Solar System
A53: MIN | B53: =MIN(B32:B50) -> 1841.714582 | C53: =MIN(C32:C50) -> 2963.327975 | D53: =MIN(D32:D50) -> 3897.376286 | F53: Y-000593.3-2 | G53: 0.8453 | H53: 5000.046972 | I53: Older Than Solar System
A54: STD DEV | B54: =STDEV(B32:B50) -> 2331.886619 | C54: =STDEV(C32:C50) -> 5394.454442 | D54: =STDEV(D32:D50) -> 337.0641082 | F54: Y-000749.3 | G54: 0.9092 | H54: 5103.245179 | I54: Older Than Solar System
F55: Y-000749.5-1 | G55: 0.8569 | H55: 5019.383344 | I55: Older Than Solar System
F58: LAFA01.01 | G58: 0.7907 | H58: 4905.076428 | I58: Older Than The Earth
A59: Chronological | B59: U-238/Pb-206 | C59: Th-232/Pb-208 | D59: Pb-207/Pb-206 | F59: LAFA04.03 | G59: 0.6898 | H59: 4709.615525 | I59: Older Than The Earth
A60: Summary | B60: Age | C60: Age | D60: Age | F60: LAFA05.01 | G60: 0.7999 | H60: 4921.558512 | I60: Older Than The Earth
A61: AVG | B61: 5179.563562 | C61: 10861.72026 | D61: 4768.117445 | F61: LAFA09.01 | G61: 0.7126 | H61: 4756.337834 | I61: Older Than The Earth
A62: MAX | B62: 11213.9226 | C62: 23837.24623 | D62: 5347.740483 | F62: Y-000593.2 | G62: 0.7225 | H62: 4776.130051 | I62: Older Than The Earth
A63: MIN | B63: 1841.714582 | C63: 2963.327975 | D63: 3897.376286 | F63: Y-000593.4 | G63: 0.7097 | H63: 4750.48446 | I63: Older Than The Earth
A64: STD DEV | B64: 2331.886619 | C64: 5394.454442 | D64: 337.0641082 | F64: Y-000749.1 | G64: 0.7842 | H64: 4893.307937 | I64: Older Than The Earth
F65: Y-000749.4 | G65: 0.7529 | H65: 4835.144045 | I65: Older Than The Earth

Sheet Iso_Plot_002
A1: Sample Name | E1: Pb-204 | F1: Error | H1: Pb-207 | I1: Error | K1: Pb 207-206 | L1: Pb 207-206 | M1: U-235 | N1: Pb207/U235 | P1: U-238 | Q1: Pb206/U238
A2: Phosphates | E2: Pb-206 | F2: Level | H2: Pb-206 | I2: Level | K2: Date | L2: Error | M2: Pb-207 | N2: Age | P2: Pb-206 | Q2: Age
A3: 1 | B3: ESmg1 | C3: 0.861 | D3: 6.15 | E3: 0.03229 | F3: 0.225 | G3: -0.0361495803 | H3: 0.7447 | I3: 0.011 | J3: 0.147 | K3: 4482.2 | L3: 1.2 | M3: 145.762 | N3: =[1]!AgePb7U5(1/M3) -> 6.942247533 | P3: 1.7935 | Q3: =[1]!AgePb6U8(1/P3) -> 2856.575484 | R3: 0.985 | S3: 79
A4: 2 | B4: ESmg2 | C4: 1.24 | D4: 9.65 | E4: 0.03291 | F4: 0.329 | G4: -0.03225733646 | H4: 0.7488 | I4: 0.006 | J4: 0.072 | K4: 4486.1 | L4: 1.8 | M4: 151.199 | N4: =[1]!AgePb7U5(1/M4) -> 6.693430611 | P4: 1.8555 | Q4: =[1]!AgePb6U8(1/P4) -> 2779.002466 | R4: 0.972 | S4: 85
A5: 3 | B5: ESnm1 | C5: 1.35 | D5: 4.35 | E5: 0.01707 | F5: 0.179 | G5: 0.01175685216 | H5: 0.6809 | I5: 0.018 | J5: 0.835 | K5: 4509.5 | L5: 0.23 | M5: 102.17 | N5: =[1]!AgePb7U5(1/M5) -> 9.889851763 | P5: 1.2337 | Q5: =[1]!AgePb6U8(1/P5) -> 3826.859754 | R5: 1 | S5: 22
A6: 4 | B6: ESnm2 | C6: 1.02 | D6: 2.83 | E6: 0.01325 | F6: 0.347 | G6: 0.006880521042 | H6: 0.6612 | I6: 0.033 | J6: 0.8 | K6: 4504.7 | L6: 0.38 | M6: 97.2 | N6: =[1]!AgePb7U5(1/M6) -> 10.3929572 | P6: 1.1776 | Q6: =[1]!AgePb6U8(1/P6) -> 3962.900138 | R6: 0.999 | S6: 16
A7: 5 | B7: ESnm3 | C7: 1.17 | D7: 3.01 | E7: 0.01138 | F7: 0.37 | G7: 0.02446546295 | H7: 0.6504 | I7: 0.028 | J7: 0.975 | K7: 4499.4 | L7: 0.12 | M7: 94.193 | N7: =[1]!AgePb7U5(1/M7) -> 10.7229942 | P7: 1.1453 | Q7: =[1]!AgePb6U8(1/P7) -> 4045.851999 | R7: 1 | S7: 13
A8: 6 | B8: ON3 | C8: 2.79 | D8: 5.73 | E8: 0.00548 | F8: 0.349 | G8: 0.06677308885 | H8: 0.6227 | I8: 0.017 | J8: 0.477 | K8: 4500.1 | L8: 0.26 | M8: 88.158 | N8: =[1]!AgePb7U5(1/M8) -> 11.45292944 | P8: 1.0715 | Q8: =[1]!AgePb6U8(1/P8) -> 4249.562911 | R8: 0.996 | S8: 6
A9: 7 | B9: ON4 | C9: 0.714 | D9: 2.4 | E9: 0.01466 | F9: 0.552 | G9: -0.04146900823 | H9: 0.6638 | I9: 0.063 | J9: 0.096 | K9: 4493.2 | L9: 1.5 | M9: 98.733 | N9: =[1]!AgePb7U5(1/M9) -> 10.23239896 | P9: 1.2057 | Q9: =[1]!AgePb6U8(1/P9) -> 3893.534941 | R9: 0.985 | S9: 20
A10: Silicates
A11: 2R | B11: TP2 | C11: 0.0041 | D11: 0.0165 | E11: 0.00597 | F11: 7.78 | G11: 0.01373414625 | H11: 0.6441 | I11: 0.289 | J11: 0.966 | K11: 4548.4 | L11: 1.4 | M11: 106.5 | N11: =[1]!AgePb7U5(1/M11) -> 9.489630318 | O11: -0.08574632966 | P11: 1.252 | Q11: =[1]!AgePb6U8(1/P11) -> 3784.537873 | R11: 0.997 | S11: 22
A12: 3R | B12: ES1 | C12: 0.0011 | D12: 0.0061 | E12: 0.00941 | F12: 68.5 | G12: -0.02685282998 | H12: 0.6654 | I12: 3.63 | J12: 0.997 | K12: 4562.7 | L12: 13 | M12: 134.1 | N12: =[1]!AgePb7U5(1/M12) -> 7.543742376 | O12: 0.1602177571 | P12: 1.561 | Q12: =[1]!AgePb6U8(1/P12) -> 3191.433784 | R12: 0.999 | S12: 52
A13: 5R | B13: ES3 | C13: 0.0034 | D13: 0.0143 | E13: 0.0044 | F13: 34.3 | G13: 0.006847893314 | H13: 0.6442 | I13: 0.889 | J13: 0.996 | K13: 4566.1 | L13: 2.9 | M13: 114.97 | N13: =[1]!AgePb7U5(1/M13) -> 8.793534247 | O13: -0.01072570907 | P13: 1.3352 | Q13: =[1]!AgePb6U8(1/P13) -> 3603.651553 | R13: 0.999 | S13: 30
A14: 6R | B14: ES4 | C14: 0.0007 | D14: 0.0034 | E14: 0.00221 | F14: 212 | G14: -0.01385485346 | H14: 0.6395 | I14: 2.74 | J14: 0.997 | K14: 4578.1 | L14: 8.5 | M14: 132.3 | N14: =[1]!AgePb7U5(1/M14) -> 7.645992856 | O14: 0.1849906515 | P14: 1.524 | Q14: =[1]!AgePb6U8(1/P14) -> 3252.257775 | R14: 0.999 | S14: 47
A15: 7R | B15: ES5 | C15: 0.0022 | D15: 0.0103 | E15: 0.00649 | F15: 19.5 | G15: 0.007585384295 | H15: 0.6554 | I15: 0.719 | J15: 0.996 | K15: 4570.5 | L15: 2.5 | M15: 120.62 | N15: =[1]!AgePb7U5(1/M15) -> 8.383329105 | O15: 0.1455292068 | P15: 1.3965 | Q15: =[1]!AgePb6U8(1/P15) -> 3481.323018 | R15: 0.999 | S15: 35
A16: 9R | B16: ES7 | C16: 0.0016 | D16: 0.0071 | E16: 0.00595 | F16: 17.7 | G16: 0.008937806357 | H16: 0.6572 | I16: 0.584 | J16: 0.997 | K16: 4580.8 | L16: 2.1 | M16: 118.46 | N16: =[1]!AgePb7U5(1/M16) -> 8.535550038 | O16: 0.07647163612 | P16: 1.3619 | Q16: =[1]!AgePb6U8(1/P16) -> 3549.302796 | R16: 0.999 | S16: 32
A17: 10R | B17: ES8 | C17: 0.0022 | D17: 0.011 | E17: 0.00605 | F17: 18.9 | G17: 0.008691207216 | H17: 0.651 | I17: 0.664 | J17: 0.998 | K17: 4564.5 | L17: 2.1 | M17: 134.6 | N17: =[1]!AgePb7U5(1/M17) -> 7.515823014 | O17: 0.5038741242 | P17: 1.5649 | Q17: =[1]!AgePb6U8(1/P17) -> 3185.157565 | R17: 0.999 | S17: 52
A18: 11R | B18: ESCh1 | C18: 0.0033 | D18: 0.0115 | E18: 0.00226 | F18: 95.3 | G18: 0.003221059802 | H18: 0.6257 | I18: 1.38 | J18: 0.998 | K18: 4544.8 | L18: 3.3 | M18: 99.392 | N18: =[1]!AgePb7U5(1/M18) -> 10.16489342 | O18: -0.3262700324 | P18: 1.1714 | Q18: =[1]!AgePb6U8(1/P18) -> 3978.549596 | R18: 0.999 | S18: 14
A19: 12R | B19: ESCh2 | C19: 0.0017 | D19: 0.0062 | E19: 0.00394 | F19: 104 | G19: -0.01117393277 | H19: 0.6359 | I19: 2.54 | J19: 0.996 | K19: 4551 | L19: 7.1 | M19: 96.129 | N19: =[1]!AgePb7U5(1/M19) -> 10.50815092 | O19: -0.529451146 | P19: 1.128 | Q19: =[1]!AgePb6U8(1/P19) -> 4091.773849 | R19: 0.999 | S19: 10
A20: 13R | B20: ES3 | C20: 0.0021 | D20: 0.0113 | E20: 0.02214 | F20: 6.77 | G20: -0.001084257941 | H20: 0.7724 | I20: 0.372 | J20: 0.975 | K20: 4701.2 | L20: 8.3 | M20: 122.81 | N20: =[1]!AgePb7U5(1/M20) -> 8.234438554 | O20: -0.09173290693 | P20: 1.2988 | Q20: =[1]!AgePb6U8(1/P20) -> 3680.557527 | R20: 0.996 | S20: 21
A21: 14R | B21: ES4 | C21: 0.0033 | D21: 0.0151 | E21: 0.01065 | F21: 13.9 | G21: 0.003948376907 | H21: 0.6917 | I21: 0.694 | J21: 0.995 | K21: 4615.4 | L21: 4 | M21: 116.81 | N21: =[1]!AgePb7U5(1/M21) -> 8.655606529 | O21: -0.02715725176 | P21: 1.3111 | Q21: =[1]!AgePb6U8(1/P21) -> 3654.195791 | R21: 0.998 | S21: 25
A22: 1W1 | B22: TP11 | C22: 0.0175 | D22: 0.1345 | E22: 0.0462 | F22: 0.268 | G22: 0.001508943579 | H22: 0.7911 | I22: 0.021 | J22: 0.0006 | K22: 4390.7 | L22: 3 | M22: 105.537 | N22: =[1]!AgePb7U5(1/M22) -> 9.575813903 | P22: 1.38264 | Q22: =[1]!AgePb6U8(1/P22) -> 3508.231436 | R22: 0.976 | S22: 42
A23: 2W1 | B23: TP21 | C23: 0.0176 | D23: 0.1342 | E23: 0.04707 | F23: 0.0445 | G23: 0.001541529253 | H23: 0.7896 | I23: 0.017 | J23: 0.159 | K23: 4362.2 | L23: 0.77 | M23: 101.52 | N23: =[1]!AgePb7U5(1/M23) -> 9.952863979 | P23: 1.35617 | Q23: =[1]!AgePb6U8(1/P23) -> 3560.824296 | R23: 1 | S23: 40
A24: 1W2 | B24: TP12 | C24: 0.0001 | D24: 0.0014 | E24: 0.04333 | F24: 0.471 | G24: 0.0009905735789 | H24: 0.7957 | I24: 0.094 | J24: 0.052 | K24: 4473.7 | L24: 1.8 | M24: 183.58 | N24: =[1]!AgePb7U5(1/M24) -> 5.516001469 | P24: 2.27194 | Q24: =[1]!AgePb6U8(1/P24) -> 2351.323056 | R24: 0.999 | S24: 127
A25: 2W2 | B25: TP22 | C25: 0.0002 | D25: 0.0038 | E25: 0.03901 | F25: 1.77 | G25: -0.0001775700892 | H25: 0.7886 | I25: 0.267 | J25: 0.886 | K25: 4526.4 | L25: 5.6 | M25: 271.83 | N25: =[1]!AgePb7U5(1/M25) -> 3.72850657 | P25: 3.2445 | Q25: =[1]!AgePb6U8(1/P25) -> 1731.911504 | R25: 0.999 | S25: 219
A26: 11W1 | B26: ESCh11 | C26: 0.0029 | D26: 0.094 | E26: 0.05337 | F26: 0.0235 | G26: 0.00130241657 | H26: 0.8589 | I26: 0.018 | J26: 0.94 | K26: 4543.8 | L26: 0.77 | M26: 398.9 | N26: =[1]!AgePb7U5(1/M26) -> 2.542272368 | P26: 4.70449 | Q26: =[1]!AgePb6U8(1/P26) -> 1242.457452 | R26: 0.999 | S26: 360
A27: 12W1 | B27: ESCh21 | C27: 0.0065 | D27: 0.0765 | E27: 0.04251 | F27: 0.321 | G27: 0.001247841912 | H27: 0.795 | I27: 0.057 | J27: 0.823 | K27: 4487.1 | L27: 1.3 | M27: 185.39 | N27: =[1]!AgePb7U5(1/M27) -> 5.462292226 | P27: 2.2734 | Q27: =[1]!AgePb6U8(1/P27) -> 2350.057643 | R27: 0.999 | S27: 126
A28: 13W1 | B28: ES31 | C28: 0.0298 | D28: 0.2222 | E28: 0.0347 | F28: 0.1 | G28: 0.001634498642 | H28: 0.7598 | I28: 0.018 | J28: 0.91 | K28: 4495.1 | L28: 0.22 | M28: 143.686 | N28: =[1]!AgePb7U5(1/M28) -> 7.042203289 | P28: 1.752 | Q28: =[1]!AgePb6U8(1/P28) -> 2911.006785 | R28: 0.998 | S28: 74
A29: 14W1 | B29: ES41 | C29: 0.0176 | D29: 0.2067 | E29: 0.04237 | F29: 0.0582 | G29: 0.001549881206 | H29: 0.8015 | I29: 0.01 | J29: 0.924 | K29: 4515.7 | L29: 0.27 | M29: 191.717 | N29: =[1]!AgePb7U5(1/M29) -> 5.28249501 | P29: 2.305 | Q29: =[1]!AgePb6U8(1/P29) -> 2323.002719 | R29: 0.998 | S29: 127
A30: 11W2 | B30: ESCh12 | C30: 0.0014 | D30: 0.0042 | E30: 0.03795 | F30: 5.95 | G30: -0.002612416811 | H30: 0.7997 | I30: 0.615 | J30: 0.93 | K30: 4584.3 | L30: 20.1 | M30: 50.3 | N30: =[1]!AgePb7U5(1/M30) -> 19.98850086 | P30: 0.57709 | Q30: =[1]!AgePb6U8(1/P30) -> 6480.827863 | R30: 0.998 | S30: 44
A31: 12W2 | B31: ESCh22 | C31: 0.0007 | D31: 0.0255 | E31: 0.05252 | F31: 0.256 | G31: 0.0003485675237 | H31: 0.8557 | I31: 0.158 | J31: 0.191 | K31: 4547 | L31: 7.3 | M31: 469.93 | N31: =[1]!AgePb7U5(1/M31) -> 2.158415568 | P31: 5.53 | Q31: =[1]!AgePb6U8(1/P31) -> 1071.517342 | R31: 0.999 | S31: 440
A32: 13W2 | B32: ES32 | C32: 0.0004 | D32: 0.0029 | E32: 0.03486 | F32: 11.4 | G32: -0.005056138424 | H32: 0.797 | I32: 0.971 | J32: 0.938 | K32: 4620.7 | L32: 32.9 | M32: 150.2 | N32: =[1]!AgePb7U5(1/M32) -> 6.737802117 | P32: 1.68 | Q32: =[1]!AgePb6U8(1/P32) -> 3010.623698 | R32: 0.998 | S32: 60
A33: 14W2 | B33: ES42 | C33: 0.0002 | D33: 0.004 | E33: 0.04093 | F33: 4.83 | G33: -0.002278126941 | H33: 0.8048 | I33: 0.564 | J33: 0.898 | K33: 4554.2 | L33: 20 | M33: 260.4 | N33: =[1]!AgePb7U5(1/M33) -> 3.89185242 | P33: 3.05 | Q33: =[1]!AgePb6U8(1/P33) -> 1828.043774 | R33: 0.999 | S33: 197
M34: AVG | N34: =AVERAGE(N3:N33) -> 8.122550695 | P34: AVG | Q34: =AVERAGE(Q3:Q33) -> 3247.895213
M35: MAX | N35: =MAX(N3:N33) -> 19.98850086 | P35: MAX | Q35: =MAX(Q3:Q33) -> 6480.827863
A36: Meteoritics & Planetary Science | H36: Pb-207/Pb-206 | I36: Age | M36: MIN | N36: =MIN(N3:N33) -> 2.158415568 | P36: MIN | Q36: =MIN(Q3:Q33) -> 1071.517342
A37: Volume 42, Numbers 7/8, | H37: Ratio | I37: GA | M37: STD DEV | N37: =STDEV(N3:N33) -> 3.336666519 | P37: STD DEV | Q37: =STDEV(Q3:Q33) -> 1046.619317
A38: Pages 1337–1350 (2007) | F38: 1 | H38: 0.7447 | I38: 4819.479684 | J38: Older Than The Earth
A39: Sample | B39: Pb-207/Pb-206 | C39: Pb206/U238 | F39: 2 | H39: 0.7488 | I39: 4827.334731 | J39: Older Than The Earth
A40: Name | B40: Age | C40: Age | F40: 3 | H40: 0.6809 | I40: 4690.927626
A41: Phosphates | F41: 4 | H41: 0.6612 | I41: 4648.615541
A42: 1 | B42: 4819.479684 | F42: 5 | H42: 0.6504 | I42: 4624.842232
A43: 2 | B43: 4827.334731 | F43: 6 | H43: 0.6227 | I43: 4561.879659
A44: 3 | B44: 4690.927626 | F44: 7 | H44: 0.6638 | I44: 4654.276631
A45: 4 | B45: 4648.615541 | F45: Silicates
A46: 5 | B46: 4624.842232 | F46: 2R | H46: 0.6441 | I46: 4610.778293
A47: 6 | B47: 4561.879659 | F47: 3R | H47: 0.6654 | I47: 4657.748587
A48: 7 | B48: 4654.276631 | F48: 5R | H48: 0.6442 | I48: 4611.00268
A49: Silicates | F49: 6R | H49: 0.6395 | I49: 4600.415912
A50: 2R | B50: 4610.778293 | F50: 7R | H50: 0.6554 | I50: 4635.900562
A51: 3R | B51: 4657.748587 | F51: 9R | H51: 0.6572 | I51: 4639.859448
A52: 5R | B52: 4611.00268 | F52: 10R | H52: 0.651 | I52: 4626.174033
A53: 6R | B53: 4600.415912 | F53: 11R | H53: 0.6257 | I53: 4568.842349
A54: 7R | B54: 4635.900562 | F54: 12R | H54: 0.6359 | I54: 4592.250311
A55: 9R | B55: 4639.859448 | F55: 13R | H55: 0.7724 | I55: 4871.675719 | J55: Older Than The Earth
A56: 10R | B56: 4626.174033 | F56: 14R | H56: 0.6917 | I56: 4713.571668
A57: 11R | B57: 4568.842349 | F57: 1W1 | H57: 0.7911 | I57: 4905.797275 | J57: Older Than The Earth
A58: 12R | B58: 4592.250311 | F58: 2W1 | H58: 0.7896 | I58: 4903.092093 | J58: Older Than The Earth
A59: 13R | B59: 4871.675719 | F59: 1W2 | H59: 0.7957 | I59: 4914.059247 | J59: Older Than The Earth
A60: 14R | B60: 4713.571668 | F60: 2W2 | H60: 0.7886 | I60: 4901.285597 | J60: Older Than The Earth
A61: 1W1 | B61: 4905.797275 | F61: 11W1 | H61: 0.8589 | I61: 5022.689092 | J61: Older Than Solar System
A62: 2W1 | B62: 4903.092093 | F62: 12W1 | H62: 0.795 | I62: 4912.805275 | J62: Older Than The Earth
A63: 1W2 | B63: 4914.059247 | F63: 13W1 | H63: 0.7598 | I63: 4848.184743 | J63: Older Than The Earth
A64: 2W2 | B64: 4901.285597 | F64: 14W1 | H64: 0.8015 | I64: 4924.40436 | J64: Older Than The Earth
A65: 11W1 | B65: 5022.689092 | F65: 11W2 | H65: 0.7997 | I65: 4921.202356 | J65: Older Than The Earth
A66: 12W1 | B66: 4912.805275 | F66: 12W2 | H66: 0.8557 | I66: 5017.39596 | J66: Older Than Solar System
A67: 13W1 | B67: 4848.184743 | F67: 13W2 | H67: 0.797 | I67: 4916.384941 | J67: Older Than The Earth
A68: 14W1 | B68: 4924.40436 | F68: 14W2 | H68: 0.8048 | I68: 4930.254877 | J68: Older Than The Earth
A69: 11W2 | B69: 4921.202356
A70: 12W2 | B70: 5017.39596
A71: 13W2 | B71: 4916.384941
A72: 14W2 | B72: 4930.254877
A73: AVG | B73: =AVERAGE(B42:B72) -> 4769.104383 | C73: =AVERAGE(C42:C72) -> 
A74: MAX | B74: =MAX(B42:B72) -> 5022.689092 | C74: =MAX(C42:C72) -> 0
A75: MIN | B75: =MIN(B42:B72) -> 4561.879659 | C75: =MIN(C42:C72) -> 0
A76: STD DEV | B76: =STDEV(B42:B72) -> 150.5359866 | C76: =STDEV(C42:C72) -> 

Sheet Iso_Plot_003
A1: Sample | E1: U-238 | F1: U-238/Pb-206 | G1: Pb-207 | H1: Error | I1: Pb-204 | J1: Error | K1: Pb-204 | L1: Error | N1: Th-232 | O1: Th232/Pb208
A2: Name | E2: Pb-206 | F2: Age | G2: Pb-206 | H2: Level | I2: Pb-206 | J2: Level | K2: Pb-208 | L2: Level | N2: Pb-208 | O2: Age
A3: 84001.02.1 | B3: 1.9 | C3: 24.4 | D3: 0.5982484845 | E3: 0.892 | F3: =[1]!AgePb6U8(1/E3) -> 4847.211069 | G3: 0.441 | H3: 0.018 | I3: 0.0089 | J3: 0.0013 | K3: 0.0028 | L3: 0.0004 | M3: 0.2504067566 | N3: 4.149 | O3: =[1]!AgePb8Th2(1/N3) -> 4364.531172
A4: 84001.02.2 | B4: 1.6 | C4: 21 | D4: 0.07223574008 | E4: 0.8 | F4: =[1]!AgePb6U8(1/E4) -> 5227.592047 | G4: 0.572 | H4: 0.022 | I4: 0.0241 | J4: 0.0024 | K4: 0.0082 | L4: 0.0008 | M4: -0.5793996303 | N4: 4.365 | O4: =[1]!AgePb8Th2(1/N4) -> 4169.341825
A5: 84001.02.3 | B5: 17.9 | C5: 24.1 | D5: 1.512333888 | E5: 1.355 | F5: =[1]!AgePb6U8(1/E5) -> 3563.186289 | G5: 0.441 | H5: 0.009 | I5: 0.0019 | J5: 0.0003 | K5: 0.0042 | L5: 0.0006 | M5: 1.505453125 | N5: 4.662 | O5: =[1]!AgePb8Th2(1/N5) -> 3927.895828
A6: 84001.03.1 | B6: 1.4 | C6: 30.2 | D6: -0.8706441238 | E6: 1.313 | F6: =[1]!AgePb6U8(1/E6) -> 3650.158182 | G6: 0.476 | H6: 0.023 | I6: 0.0036 | J6: 0.0006 | K6: 0.0006 | L6: 0.0001 | M6: -0.58189464 | N6: 5.444 | O6: =[1]!AgePb8Th2(1/N6) -> 3408.496827
A7: 84001.04.1 | B7: 2.2 | C7: 18.2 | D7: 0.1527923472 | E7: 1.156 | F7: =[1]!AgePb6U8(1/E7) -> 4017.978294 | G7: 0.386 | H7: 0.019 | I7: 0.0018 | J7: 0.0004 | K7: 0.0007 | L7: 0.0002 | M7: 0.1759109812 | N7: 4.522 | O7: =[1]!AgePb8Th2(1/N7) -> 4038.115001
A8: 84001.04.2 | B8: 2.5 | C8: 22.4 | D8: 1.482595853 | E8: 1.262 | F8: =[1]!AgePb6U8(1/E8) -> 3761.815398 | G8: 0.447 | H8: 0.008 | I8: 0.0021 | J8: 0.0007 | K8: 0.0056 | L8: 0.0009 | M8: 1.177679308 | N8: 3.509 | O8: =[1]!AgePb8Th2(1/N8) -> 5068.101119
A9: 84001.05.1 | B9: 2.4 | C9: 26.9 | D9: -0.3366699547 | E9: 1.713 | F9: =[1]!AgePb6U8(1/E9) -> 2964.118062 | G9: 0.493 | H9: 0.016 | I9: 0.0039 | J9: 0.0007 | K9: 0.0011 | L9: 0.0002 | M9: 0.4720211714 | N9: 6.494 | O9: =[1]!AgePb8Th2(1/N9) -> 2894.87674
A10: 84001.06.1 | B10: 0.8 | C10: 9.7 | D10: -0.8907628527 | E10: 0.713 | F10: =[1]!AgePb6U8(1/E10) -> 5650.411461 | G10: 0.475 | H10: 0.04 | I10: 0.0133 | J10: 0.003 | K10: 0.0037 | L10: 0.0008 | M10: -1.358824648 | N10: 2.833 | O10: =[1]!AgePb8Th2(1/N10) -> 6110.39041
A11: 84001.06.2 | B11: 1.3 | C11: 12.8 | D11: -1.383968089 | E11: 1.423 | F11: =[1]!AgePb6U8(1/E11) -> 3431.033829 | G11: 0.601 | H11: 0.034 | I11: 0.0114 | J11: 0.0021 | K11: 0.0033 | L11: 0.0006 | M11: -0.7654197211 | N11: 5 | O11: =[1]!AgePb8Th2(1/N11) -> 3685.124948
A12: 84001.07.1 | B12: 6.7 | C12: 61.2 | D12: 0.06482086396 | E12: 0.72 | F12: =[1]!AgePb6U8(1/E12) -> 5613.720276 | G12: 0.469 | H12: 0.011 | I12: 0.0023 | J12: 0.0003 | K12: 0.001 | L12: 0.0002 | M12: 0.6928300848 | N12: 3.474 | O12: =[1]!AgePb8Th2(1/N12) -> 5113.212638
A13: 84001.08.1 | B13: 5.5 | C13: 57.6 | D13: 0.6546852275 | E13: 1.005 | F13: =[1]!AgePb6U8(1/E13) -> 4452.257981 | G13: 0.524 | H13: 0.017 | I13: 0.0102 | J13: 0.0011 | K13: 0.0041 | L13: 0.0004 | M13: 0.4924214162 | N13: 5.014 | O13: =[1]!AgePb8Th2(1/N13) -> 3675.716722
A14: 84001.08.2 | B14: 1 | C14: 19.2 | D14: -1.055667384 | E14: 1.017 | F14: =[1]!AgePb6U8(1/E14) -> 4414.208812 | G14: 0.584 | H14: 0.031 | I14: 0.0129 | J14: 0.0018 | K14: 0.0029 | L14: 0.0004 | M14: -1.481184203 | N14: 5.1 | O14: =[1]!AgePb8Th2(1/N14) -> 3618.963748
A16: Meteoritics & Planetary Science
A17: Volume 38, Number 11 | G17: Pb-207 | H17: Age
A18: Pages 1697–1703 (2003) | G18: Pb-206 | H18: MA
G19: 0.441 | H19: 4055.130734
G20: 0.572 | H20: 4438.434905
B21: 6 | C21: 2 | G21: 0.441 | H21: 4055.130734
A22: Sample | B22: U-238/Pb-206 | C22: Th232/Pb208 | G22: 0.476 | H22: 4168.551093
A23: Name | B23: Age | C23: Age | G23: 0.386 | H23: 3855.420399
A24: 84001.02.1 | B24: 4110.455894 | C24: 4364.531172 | G24: 0.447 | H24: 4075.255246
A25: 84001.02.2 | B25: 3789.116293 | C25: 4169.341825 | G25: 0.493 | H25: 4220.414668
A26: 84001.02.3 | B26: 5521.616293 | C26: 3927.895828 | G26: 0.475 | H26: 4165.437951
A27: 84001.03.1 | B27: 5405.610851 | C27: 3408.496827 | G27: 0.601 | H27: 4510.41781
A28: 84001.04.1 | B28: 4952.487691 | C28: 4038.115001 | G28: 0.469 | H28: 4146.608373
A29: 84001.04.2 | B29: 5261.881565 | C29: 5068.101119 | G29: 0.524 | H29: 4310.183912
A30: 84001.05.1 | B30: 6433.876124 | C30: 2894.87674 | G30: 0.584 | H30: 4468.686862
A31: 84001.06.1 | B31: 3469.758062 | C31: 6110.39041
A32: 84001.06.2 | B32: 5705.118078 | C32: 3685.124948
A33: 84001.07.1 | B33: 3496.047 | C33: 5113.212638
A34: 84001.08.1 | B34: 4484.409739 | C34: 3675.716722
A35: 84001.08.2 | B35: 4522.87677 | C35: 3618.963748
A36: AVG | B36: =AVERAGE(B24:B35) -> 4762.771197 | C36: =AVERAGE(C24:C35) -> 4172.897248
A37: MAX | B37: =MAX(B24:B35) -> 6433.876124 | C37: =MAX(C24:C35) -> 6110.39041
A38: MIN | B38: =MIN(B24:B35) -> 3469.758062 | C38: =MIN(C24:C35) -> 2894.87674
A39: STD DEV | B39: =STDEV(B24:B35) -> 940.9776469 | C39: =STDEV(C24:C35) -> 882.3516072
C43: Age
C44: 6110.39041
C45: 5113.212638
C46: 5068.101119
C47: 4364.531172
C48: 4169.341825
C49: 4038.115001
C50: 3927.895828
C51: 3685.124948
C52: 3675.716722
C53: 3618.963748
C54: 3408.496827
C55: 2894.87674
A59: Chronological | B59: U-238/Pb-206 | C59: Th232/Pb208
A60: Summary | B60: Age | C60: Age
A61: AVG | B61: 4762.771197 | C61: 4172.897248
A62: MAX | B62: 6433.876124 | C62: 6110.39041
A63: MIN | B63: 3469.758062 | C63: 2894.87674
A64: STD DEV | B64: 940.9776469 | C64: 882.3516072

Sheet Iso_Plot_004
G1: 207Pb/206Pb | I1: 206Pb/238U | K1: 208Pb/232Th | M1: 207Pb/206Pb | N1: 82561 | O1: 206Pb/238U | Q1: 208Pb/232Th
A2: 238U/204Pb | B2: 232Th/204Pb | C2: 206Pb/204Pb | D2: 207Pb/204Pb | E2: 208Pb/204Pb | F2: 207Pb/206Pb | G2: Age | H2: 206Pb/238U | I2: Age | J2: 208Pb/232Th | K2: Age | N2: 52909
A3: 18.5 | B3: 60.6 | C3: 19.187 | D3: 15.596 | E3: 38.721 | F3: =(D3/C3) -> 0.8128420285 | G3: =[1]!AgePb76(F3) -> 4944.406245 | H3: =(C3/A3) -> 1.037135135 | I3: =[1]!AgePb6U8(H3) -> 4586.910397 | J3: =(E3/B3) -> 0.638960396 | K3: =[1]!AgePb8Th2(J3) -> 9986.096735 | N3: 51126
A4: 9.16 | B4: 15.9 | C4: 19.138 | D4: 15.605 | E4: 38.67 | F4: =(D4/C4) -> 0.815393458 | G4: =[1]!AgePb76(F4) -> 4948.864837 | H4: =(C4/A4) -> 2.08930131 | I4: =[1]!AgePb6U8(H4) -> 7271.200336 | J4: =(E4/B4) -> 2.432075472 | K4: =[1]!AgePb8Th2(J4) -> 24925.01611 | N4: 39277
A5: 18.7 | B5: 46.7 | C5: 18.978 | D5: 15.552 | E5: 38.446 | F5: 0.8194751818 | G5: =[1]!AgePb76(F5) -> 4955.966837 | H5: 1.01486631 | I5: =[1]!AgePb6U8(H5) -> 4516.053801 | J5: 0.823254818 | K5: =[1]!AgePb8Th2(J5) -> 12139.93462 | N5: 37502
A6: 20.5 | B6: 63.4 | C6: 18.907 | D6: 15.569 | E6: 38.393 | F6: 0.8234516317 | G6: =[1]!AgePb76(F6) -> 4962.849587 | H6: 0.9222926829 | I6: =[1]!AgePb6U8(H6) -> 4212.851438 | J6: 0.6055678233 | K6: =[1]!AgePb8Th2(J6) -> 9570.034927 | N6: 35301
A7: 30.6 | B7: 102 | C7: 19.015 | D7: 15.547 | E7: 38.726 | F7: 0.8176176703 | G7: =[1]!AgePb76(F7) -> 4952.739532 | H7: 0.6214052288 | I7: =[1]!AgePb6U8(H7) -> 3115.508128 | J7: 0.3796666667 | K7: =[1]!AgePb8Th2(J7) -> 6505.142478 | N7: 31541
A8: 37.9 | B8: 93.9 | C8: 18.928 | D8: 15.545 | E8: 38.398 | F8: 0.8212700761 | G8: =[1]!AgePb76(F8) -> 4959.077967 | H8: 0.4994195251 | I8: =[1]!AgePb6U8(H8) -> 2611.300886 | J8: 0.4089243876 | K8: =[1]!AgePb8Th2(J8) -> 6929.288886 | N8: 30608
A9: 15.4 | B9: 66.7 | C9: 17.858 | D9: 15.537 | E9: 38.142 | F9: 0.8700302385 | G9: =[1]!AgePb76(F9) -> 5040.937956 | H9: 1.15961039 | I9: =[1]!AgePb6U8(H9) -> 4963.273684 | J9: 0.571844078 | K9: =[1]!AgePb8Th2(J9) -> 9140.970228 | N9: 28811
A10: 19.5 | B10: 65.3 | C10: 17.7 | D10: 15.533 | E10: 38.099 | F10: 0.8775706215 | G10: =[1]!AgePb76(F10) -> 5053.160741 | H10: 0.9076923077 | I10: =[1]!AgePb6U8(H10) -> 4163.702148 | J10: 0.5834456355 | K10: =[1]!AgePb8Th2(J10) -> 9289.605954 | N10: 28284
A11: 27.9 | B11: 39.9 | C11: 18.304 | D11: 15.495 | E11: 38.991 | F11: 0.8465362762 | G11: =[1]!AgePb76(F11) -> 5002.121131 | H11: 0.6560573477 | I11: =[1]!AgePb6U8(H11) -> 3251.827143 | J11: 0.9772180451 | K11: =[1]!AgePb8Th2(J11) -> 13778.49073 | N11: 27460
A12: 9.59 | B12: 66.3 | C12: 19.187 | D12: 15.579 | E12: 38.899 | F12: 0.8119560119 | G12: =[1]!AgePb76(F12) -> 4942.854459 | H12: 2.000729927 | I12: =[1]!AgePb6U8(H12) -> 7083.678118 | J12: 0.5867119155 | K12: =[1]!AgePb8Th2(J12) -> 9331.256137 | N12: 27364
A13: 7.03 | B13: 13.3 | C13: 17.398 | D13: 15.492 | E13: 38.445 | F13: 0.8904471778 | G13: =[1]!AgePb76(F13) -> 5073.777959 | H13: 2.474822191 | I13: =[1]!AgePb6U8(H13) -> 8029.288055 | J13: 2.890601504 | K13: =[1]!AgePb8Th2(J13) -> 27459.60129 | N13: 27241
A14: 3.94 | B14: 3.32 | C14: 17.549 | D14: 15.426 | E14: 38.336 | F14: 0.8790244458 | G14: =[1]!AgePb76(F14) -> 5055.504539 | H14: 4.454060914 | I14: =[1]!AgePb6U8(H14) -> 10935.44208 | J14: 11.54698795 | K14: =[1]!AgePb8Th2(J14) -> 51126.44028 | N14: 25102
A15: 9.51 | B15: 15.6 | C15: 17.652 | D15: 15.447 | E15: 38.412 | F15: 0.8750849762 | G15: =[1]!AgePb76(F15) -> 5049.143922 | H15: 1.85615142 | I15: =[1]!AgePb6U8(H15) -> 6765.350918 | J15: 2.462307692 | K15: =[1]!AgePb8Th2(J15) -> 25102.28054 | N15: 24925
A16: 17.6 | B16: 49.4 | C16: 18.4 | D16: 15.649 | E16: 38.965 | F16: 0.8504891304 | G16: =[1]!AgePb76(F16) -> 5008.731497 | H16: 1.045454545 | I16: =[1]!AgePb6U8(H16) -> 4613.183152 | J16: 0.7887651822 | K16: =[1]!AgePb8Th2(J16) -> 11753.92702 | N16: 23860
A17: 8.06 | B17: 33 | C17: 18.487 | D17: 15.626 | E17: 38.839 | F17: 0.8452426029 | G17: =[1]!AgePb76(F17) -> 4999.950596 | H17: 2.293672457 | I17: =[1]!AgePb6U8(H17) -> 7684.146272 | J17: 1.176939394 | K17: =[1]!AgePb8Th2(J17) -> 15723.49556 | N17: 23310
A18: 8.07 | B18: 22.7 | C18: 18.043 | D18: 15.452 | E18: 38.797 | F18: 0.8563986033 | G18: =[1]!AgePb76(F18) -> 5018.553314 | H18: 2.235811648 | I18: =[1]!AgePb6U8(H18) -> 7569.893907 | J18: 1.709118943 | K18: =[1]!AgePb8Th2(J18) -> 20143.98118 | N18: 21943
A19: 17.2 | B19: 12.2 | C19: 18.178 | D19: 15.459 | E19: 38.548 | F19: 0.850423589 | G19: =[1]!AgePb76(F19) -> 5008.622158 | H19: 1.056860465 | I19: =[1]!AgePb6U8(H19) -> 4649.029971 | J19: 3.159672131 | K19: =[1]!AgePb8Th2(J19) -> 28811.24318 | N19: 20266
A20: 14.4 | B20: 35 | C20: 18.44 | D20: 15.57 | E20: 38.994 | F20: 0.8443600868 | G20: =[1]!AgePb76(F20) -> 4998.467877 | H20: 1.280555556 | I20: =[1]!AgePb6U8(H20) -> 5314.546836 | J20: 1.114114286 | K20: =[1]!AgePb8Th2(J20) -> 15131.60075 | N20: 20144
A21: 8.67 | B21: 27.8 | C21: 19.283 | D21: 15.623 | E21: 38.81 | F21: 0.810195509 | G21: =[1]!AgePb76(F21) -> 4939.765731 | H21: 2.224106113 | I21: =[1]!AgePb6U8(H21) -> 7546.531749 | J21: 1.396043165 | K21: =[1]!AgePb8Th2(J21) -> 17661.82306 | N21: 19005
A22: 5.39 | B22: 17.2 | C22: 19.141 | D22: 15.628 | E22: 38.803 | F22: 0.8164672692 | G22: =[1]!AgePb76(F22) -> 4950.736874 | H22: 3.551205937 | I22: =[1]!AgePb6U8(H22) -> 9768.84602 | J22: 2.255988372 | K22: =[1]!AgePb8Th2(J22) -> 23860.45229 | N22: 18674
A23: 4.47 | B23: 10.3 | C23: 18.62 | D23: 15.589 | E23: 38.739 | F23: 0.8372180451 | G23: =[1]!AgePb76(F23) -> 4986.407588 | H23: 4.165548098 | I23: =[1]!AgePb6U8(H23) -> 10585.08438 | J23: 3.761067961 | K23: =[1]!AgePb8Th2(J23) -> 31540.61657 | N23: 17662
A24: 2.7 | B24: 10.9 | C24: 18.576 | D24: 15.572 | E24: 38.656 | F24: 0.8382859604 | G24: =[1]!AgePb76(F24) -> 4988.21784 | H24: 6.88 | I24: =[1]!AgePb6U8(H24) -> 13307.51268 | J24: 3.546422018 | K24: =[1]!AgePb8Th2(J24) -> 30608.19715 | N24: 15723
A25: 15.3 | B25: 34.5 | C25: 18.314 | D25: 15.507 | E25: 38.08 | F25: 0.8467292781 | G25: =[1]!AgePb76(F25) -> 5002.444649 | H25: 1.196993464 | I25: =[1]!AgePb6U8(H25) -> 5073.906968 | J25: 1.103768116 | K25: =[1]!AgePb8Th2(J25) -> 15032.4422 | N25: 15132
A26: 53.5 | B26: 17.6 | C26: 18.545 | D26: 15.519 | E26: 38.167 | F26: 0.8368293341 | G26: =[1]!AgePb76(F26) -> 4985.748064 | H26: 0.346635514 | I26: =[1]!AgePb6U8(H26) -> 1918.512618 | J26: 2.168579545 | K26: =[1]!AgePb8Th2(J26) -> 23310.42738 | N26: 15032
A27: 34.8 | B27: 13.4 | C27: 18.406 | D27: 15.505 | E27: 38.174 | F27: 0.8423883516 | G27: =[1]!AgePb76(F27) -> 4995.149201 | H27: 0.528908046 | I27: =[1]!AgePb6U8(H27) -> 2736.849542 | J27: 2.84880597 | K27: =[1]!AgePb8Th2(J27) -> 27241.29283 | N27: 14950
A28: 29.6 | B28: 25.4 | C28: 18.449 | D28: 15.538 | E28: 38.584 | F28: 0.8422136701 | G28: =[1]!AgePb76(F28) -> 4994.854793 | H28: 0.623277027 | I28: =[1]!AgePb6U8(H28) -> 3122.945768 | J28: 1.519055118 | K28: =[1]!AgePb8Th2(J28) -> 18673.75196 | N28: 14699
A29: 9.74 | B29: 12.6 | C29: 18.534 | D29: 15.528 | E29: 38.463 | F29: 0.8378115895 | G29: =[1]!AgePb76(F29) -> 4987.414024 | H29: 1.902874743 | I29: =[1]!AgePb6U8(H29) -> 6869.953501 | J29: 3.052619048 | K29: =[1]!AgePb8Th2(J29) -> 28284.25165 | N29: 14232
A30: 25.3 | B30: 100 | C30: 18.458 | D30: 15.494 | E30: 38.546 | F30: 0.839419222 | G30: =[1]!AgePb76(F30) -> 4990.136185 | H30: 0.7295652174 | I30: =[1]!AgePb6U8(H30) -> 3531.797309 | J30: 0.38546 | K30: =[1]!AgePb8Th2(J30) -> 6589.837584 | N30: 13778
A31: 9.14 | B31: 35.6 | C31: 18.061 | D31: 15.508 | E31: 38.99 | F31: 0.8586457007 | G31: =[1]!AgePb76(F31) -> 5022.269221 | H31: 1.976039387 | I31: =[1]!AgePb6U8(H31) -> 7030.41645 | J31: 1.095224719 | K31: =[1]!AgePb8Th2(J31) -> 14950.19327 | N31: 13308
A32: 11.1 | B32: 35.7 | C32: 18.545 | D32: 15.531 | E32: 38.177 | F32: 0.8374764087 | G32: =[1]!AgePb76(F32) -> 4986.845772 | H32: 1.670720721 | I32: =[1]!AgePb6U8(H32) -> 6332.624457 | J32: 1.069383754 | K32: =[1]!AgePb8Th2(J32) -> 14699.36047 | N32: 13276
A33: 64.5 | B33: 311 | C33: 18.352 | D33: 15.505 | E33: 38.084 | F33: 0.8448670445 | G33: =[1]!AgePb76(F33) -> 4999.31982 | H33: 0.2845271318 | I33: =[1]!AgePb6U8(H33) -> 1614.1219 | J33: 0.1224565916 | K33: =[1]!AgePb8Th2(J33) -> 2334.909929 | N33: 12496
A34: 44.2 | B34: 209 | C34: 18.479 | D34: 15.564 | E34: 38.192 | F34: 0.8422533687 | G34: =[1]!AgePb76(F34) -> 4994.921707 | H34: 0.4180769231 | I34: =[1]!AgePb6U8(H34) -> 2251.743267 | J34: 0.1827368421 | K34: =[1]!AgePb8Th2(J34) -> 3392.24074 | N34: 12140
A35: 83.7 | B35: 425 | C35: 18.638 | D35: 15.548 | E35: 38.214 | F35: 0.8342096792 | G35: =[1]!AgePb76(F35) -> 4981.294804 | H35: 0.2226762246 | I35: =[1]!AgePb6U8(H35) -> 1296.000535 | J35: 0.08991529412 | K35: =[1]!AgePb8Th2(J35) -> 1740.272489 | N35: 11754
A36: 12.2 | B36: 37.3 | C36: 18.485 | D36: 15.505 | E36: 38.122 | F36: 0.8387882067 | G36: =[1]!AgePb76(F36) -> 4989.068364 | H36: 1.515163934 | I36: =[1]!AgePb6U8(H36) -> 5945.772661 | J36: 1.022037534 | K36: =[1]!AgePb8Th2(J36) -> 14231.54488 | N36: 10935
A37: 38.3 | B37: 182 | C37: 18.367 | D37: 15.547 | E37: 38.066 | F37: 0.8464637665 | G37: =[1]!AgePb76(F37) -> 5001.999567 | H37: 0.4795561358 | I37: =[1]!AgePb6U8(H37) -> 2525.332052 | J37: 0.2091538462 | K37: =[1]!AgePb8Th2(J37) -> 3838.722876 | N37: 10728
A38: 30.8 | B38: 64.6 | C38: 18.187 | D38: 15.488 | E38: 38.019 | F38: 0.8515972948 | G38: =[1]!AgePb76(F38) -> 5010.578828 | H38: 0.590487013 | I38: =[1]!AgePb6U8(H38) -> 2991.395757 | J38: 0.5885294118 | K38: =[1]!AgePb8Th2(J38) -> 9354.394947 | N38: 10585
A39: 17.5 | B39: 54.2 | C39: 18.238 | D39: 15.519 | E39: 37.952 | F39: 0.8509156706 | G39: =[1]!AgePb76(F39) -> 5009.44285 | H39: 1.042171429 | I39: =[1]!AgePb6U8(H39) -> 4602.827833 | J39: 0.7002214022 | K39: =[1]!AgePb8Th2(J39) -> 10727.81161 | N39: 9986
A40: 11.5 | B40: 0.66 | C40: 18.878 | D40: 15.577 | E40: 38.56 | F40: 0.825140375 | G40: =[1]!AgePb76(F40) -> 4965.761913 | H40: 1.641565217 | I40: =[1]!AgePb6U8(H40) -> 6261.863831 | J40: 58.42424242 | K40: =[1]!AgePb8Th2(J40) -> 82560.93511 | N40: 9769
A41: 22.2 | B41: 114 | C41: 18.171 | D41: 15.467 | E41: 37.661 | F41: 0.8511914589 | G41: =[1]!AgePb76(F41) -> 5009.902588 | H41: 0.8185135135 | I41: =[1]!AgePb6U8(H41) -> 3855.080848 | J41: 0.3303596491 | K41: =[1]!AgePb8Th2(J41) -> 5769.566823 | N41: 9570
A42: 9.48 | B42: 41.1 | C42: 18.32 | D42: 15.52 | E42: 38.168 | F42: 0.8471615721 | G42: =[1]!AgePb76(F42) -> 5003.168995 | H42: 1.932489451 | I42: =[1]!AgePb6U8(H42) -> 6935.385685 | J42: 0.9286618005 | K42: =[1]!AgePb8Th2(J42) -> 13275.92511 | N42: 9354
A43: 3.08 | B43: 3 | C43: 18.32 | D43: 15.511 | E43: 38.112 | F43: 0.8466703057 | G43: =[1]!AgePb76(F43) -> 5002.345805 | H43: 5.948051948 | I43: =[1]!AgePb6U8(H43) -> 12496.12458 | J43: 12.704 | K43: =[1]!AgePb8Th2(J43) -> 52909.3029 | N43: 9331
A44: 6.17 | B44: 13.3 | C44: 18.343 | D44: 15.504 | E44: 38.2 | F44: 0.8452270621 | G44: =[1]!AgePb76(F44) -> 4999.9245 | H44: 2.972933549 | I44: =[1]!AgePb6U8(H44) -> 8892.858992 | J44: 2.872180451 | K44: =[1]!AgePb8Th2(J44) -> 27363.67403 | N44: 9290
A45: 38 | B45: 195 | C45: 18.995 | D45: 15.557 | E45: 38.683 | F45: 0.8190050013 | G45: =[1]!AgePb76(F45) -> 4955.150665 | H45: 0.4998684211 | I45: =[1]!AgePb6U8(H45) -> 2613.230524 | J45: 0.198374359 | K45: =[1]!AgePb8Th2(J45) -> 3657.724861 | N45: 9141
A46: 38.6 | B46: 177 | C46: 18.85 | D46: 15.546 | E46: 38.634 | F46: 0.8247214854 | G46: =[1]!AgePb76(F46) -> 4965.040108 | H46: 0.4883419689 | I46: =[1]!AgePb6U8(H46) -> 2563.498648 | J46: 0.2182711864 | K46: =[1]!AgePb8Th2(J46) -> 3990.556715 | N46: 8893
A47: 67.2 | B47: 354 | C47: 18.895 | D47: 15.568 | E47: 38.797 | F47: 0.8239216724 | G47: =[1]!AgePb76(F47) -> 4963.660834 | H47: 0.2811755952 | I47: =[1]!AgePb6U8(H47) -> 1597.280195 | J47: 0.1095960452 | K47: =[1]!AgePb8Th2(J47) -> 2101.991427 | N47: 8029
A48: 32.1 | B48: 99.4 | C48: 18.905 | D48: 15.552 | E48: 38.811 | F48: 0.8226395134 | G48: =[1]!AgePb76(F48) -> 4961.446785 | H48: 0.58894081 | I48: =[1]!AgePb6U8(H48) -> 2985.125782 | J48: 0.3904527163 | K48: =[1]!AgePb8Th2(J48) -> 6662.544503 | N48: 7684
A49: 73 | B49: 413 | C49: 17.818 | D49: 15.448 | E49: 37.2 | F49: 0.8669884387 | G49: =[1]!AgePb76(F49) -> 5035.975413 | H49: 0.2440821918 | I49: =[1]!AgePb6U8(H49) -> 1407.884369 | J49: 0.09007263923 | K49: =[1]!AgePb8Th2(J49) -> 1743.190207 | N49: 7570
A50: 47.2 | B50: 162 | C50: 18.951 | D50: 15.559 | E50: 38.303 | F50: 0.8210120838 | G50: =[1]!AgePb76(F50) -> 4958.631228 | H50: 0.4015042373 | I50: =[1]!AgePb6U8(H50) -> 2175.962063 | J50: 0.2364382716 | K50: =[1]!AgePb8Th2(J50) -> 4289.739967 | N50: 7547
A51: 40 | B51: 208 | C51: 18.81 | D51: 15.563 | E51: 38.503 | F51: 0.8273790537 | G51: =[1]!AgePb76(F51) -> 4969.61288 | H51: 0.47025 | I51: =[1]!AgePb6U8(H51) -> 2484.65724 | J51: 0.1851105769 | K51: =[1]!AgePb8Th2(J51) -> 3432.765722 | N51: 7271
A52: 31.6 | B52: 196 | C52: 18.833 | D52: 15.532 | E52: 38.34 | F52: 0.8247225615 | G52: =[1]!AgePb76(F52) -> 4965.041962 | H52: 0.5959810127 | I52: =[1]!AgePb6U8(H52) -> 3013.625155 | J52: 0.1956122449 | K52: =[1]!AgePb8Th2(J52) -> 3611.084245 | N52: 7133
A53: 65.3 | B53: 367 | C53: 17.712 | D53: 15.459 | E53: 37.451 | F53: 0.872798103 | G53: =[1]!AgePb76(F53) -> 5045.437612 | H53: 0.2712404288 | I53: =[1]!AgePb6U8(H53) -> 1547.095177 | J53: 0.1020463215 | K53: =[1]!AgePb8Th2(J53) -> 1963.996845 | N53: 7084
A54: 48.5 | B54: 182 | C54: 18.492 | D54: 15.517 | E54: 38.169 | F54: 0.8391196193 | G54: =[1]!AgePb76(F54) -> 4989.629296 | H54: 0.3812783505 | I54: =[1]!AgePb6U8(H54) -> 2082.25245 | J54: 0.2097197802 | K54: =[1]!AgePb8Th2(J54) -> 3848.180822 | N54: 7030
A55: 142 | B55: 632 | C55: 17.728 | D55: 15.48 | E55: 36.645 | F55: 0.8731949458 | G55: =[1]!AgePb76(F55) -> 5046.081509 | H55: 0.1248450704 | I55: =[1]!AgePb6U8(H55) -> 758.3904012 | J55: 0.05798259494 | K55: =[1]!AgePb8Th2(J55) -> 1139.239664 | N55: 6935
A56: 13.8 | B56: 6.25 | C56: 17.534 | D56: 15.416 | E56: 37.383 | F56: 0.8792061138 | G56: =[1]!AgePb76(F56) -> 5055.797128 | H56: 1.27057971 | I56: =[1]!AgePb6U8(H56) -> 5286.2864 | J56: 5.98128 | K56: =[1]!AgePb8Th2(J56) -> 39277.0547 | N56: 6929
A57: 10.7 | B57: 7.88 | C57: 17.519 | D57: 15.402 | E57: 37.308 | F57: 0.8791597694 | G57: =[1]!AgePb76(F57) -> 5055.722493 | H57: 1.63728972 | I57: =[1]!AgePb6U8(H57) -> 6251.421553 | J57: 4.734517766 | K57: =[1]!AgePb8Th2(J57) -> 35300.73089 | N57: 6870
A58: 8.67 | B58: 6.93 | C58: 17.548 | D58: 15.419 | E58: 37.383 | F58: 0.8786756326 | G58: =[1]!AgePb76(F58) -> 5054.942571 | H58: 2.023990773 | I58: =[1]!AgePb6U8(H58) -> 7133.45629 | J58: 5.394372294 | K58: =[1]!AgePb8Th2(J58) -> 37502.13794 | N58: 6765
A59: 14.7 | B59: 23.9 | C59: 17.473 | D59: 15.401 | E59: 37.301 | F59: 0.8814170434 | G59: =[1]!AgePb76(F59) -> 5059.352851 | H59: 1.188639456 | I59: =[1]!AgePb6U8(H59) -> 5049.34793 | J59: 1.560711297 | K59: =[1]!AgePb8Th2(J59) -> 19005.2566 | N59: 6663
A60: 20.4 | B60: 21.6 | C60: 17.415 | D60: 15.392 | E60: 37.27 | F60: 0.8838357738 | G60: =[1]!AgePb76(F60) -> 5063.231948 | H60: 0.8536764706 | I60: =[1]!AgePb6U8(H60) -> 3978.539555 | J60: 1.725462963 | K60: =[1]!AgePb8Th2(J60) -> 20265.55449 | N60: 6590
A61: 11.2 | B61: 19 | C61: 17.436 | D61: 15.395 | E61: 37.265 | F61: 0.8829433356 | G61: =[1]!AgePb76(F61) -> 5061.801992 | H61: 1.556785714 | I61: =[1]!AgePb6U8(H61) -> 6051.577046 | J61: 1.961315789 | K61: =[1]!AgePb8Th2(J61) -> 21943.07616 | N61: 6505
F62: Average | G62: =AVERAGE(G3:G61) -> 4999.661154 | H62: Average | I62: =AVERAGE(I3:I61) -> 5013.734024 | J62: Average | K62: =AVERAGE(K3:K61) -> 16890.42678 | N62: 6333
F63: Maximum | G63: =MAX(G3:G62) -> 5073.777959 | H63: Maximum | I63: =MAX(I3:I62) -> 13307.51268 | J63: Maximum | K63: =MAX(K3:K62) -> 82560.93511 | N63: 6262
A64: Million Years | B64: Million Years | C64: Million Years | D64: Million Years | F64: Minimum | G64: =MIN(G3:G63) -> 4939.765731 | H64: Minimum | I64: =MIN(I3:I63) -> 758.3904012 | J64: Minimum | K64: =MIN(K3:K63) -> 1139.239664 | N64: 6251
A65: 82560.93511 | B65: 27363.67403 | C65: 17661.82306 | D65: 10727.81161 | F65: Difference | G65: =(G63-G64) -> 134.012228 | H65: Difference | I65: =(I63-I64) -> 12549.12227 | J65: Difference | K65: =(K63-K64) -> 81421.69545 | N65: 6052
A66: 52909.3029 | B66: 27241.29283 | C66: 15723.49556 | D66: 9986.096735 | N66: 5946
A67: 51126.44028 | B67: 25102.28054 | C67: 15131.60075 | D67: 9570.034927 | F67: Dating | G67: 207Pb/206Pb | H67: 206Pb/238U | I67: 208Pb/232Th | N67: 5770
A68: 39277.0547 | B68: 24925.01611 | C68: 15032.4422 | D68: 9354.394947 | F68: Summary | G68: Age | H68: Age | I68: Age | N68: 5315
A69: 37502.13794 | B69: 23860.45229 | C69: 14950.19327 | D69: 9331.256137 | F69: Average | G69: 4999.661154 | H69: 5013.734024 | I69: 16890.42678 | N69: 5286
A70: 35300.73089 | B70: 23310.42738 | C70: 14699.36047 | D70: 9289.605954 | F70: Maximum | G70: 5073.777959 | H70: 13307.51268 | I70: 82560.93511 | N70: 5074
A71: 31540.61657 | B71: 21943.07616 | C71: 14231.54488 | D71: 9140.970228 | F71: Minimum | G71: 4939.765731 | H71: 758.3904012 | I71: 1139.239664 | N71: 5074
A72: 30608.19715 | B72: 20265.55449 | C72: 13778.49073 | D72: 6929.288886 | F72: Difference | G72: 134.012228 | H72: 12549.12227 | I72: 81421.69545 | N72: 5063
A73: 28811.24318 | B73: 20143.98118 | C73: 13275.92511 | D73: 6662.544503 | N73: 5062
A74: 28284.25165 | B74: 19005.2566 | C74: 12139.93462 | D74: 6589.837584 | N74: 5059
A75: 27459.60129 | B75: 18673.75196 | C75: 11753.92702 | D75: 6505.142478 | N75: 5056
N76: 5056
N77: 5056
N78: 5055
N79: 5053
A80: 206Pb/238U | B80: 206Pb/238U | C80: 206Pb/238U | N80: 5049
A81: Age Sorted | B81: Age Sorted | C81: Age Sorted | N81: 5049
A82: 13307.51268 | B82: 7684.146272 | C82: 6935.385685 | N82: 5046
A83: 12496.12458 | B83: 7569.893907 | C83: 6869.953501 | N83: 5045
A84: 10935.44208 | B84: 7546.531749 | C84: 6765.350918 | N84: 5041
A85: 10585.08438 | B85: 7271.200336 | C85: 6332.624457 | N85: 5036
A86: 9768.84602 | B86: 7133.45629 | C86: 6261.863831 | N86: 5022
A87: 8892.858992 | B87: 7083.678118 | C87: 6251.421553 | N87: 5019
A88: 8029.288055 | B88: 7030.41645 | C88: 6051.577046 | N88: 5011
N89: 5010
N90: 5009
N91: 5009
N92: 5009
N93: 5003
N94: 5002
N95: 5002
A96: 6935.385685 | N96: 5002
A97: 6869.953501 | N97: 5002
A98: 6765.350918 | N98: 5000
A99: 6332.624457 | N99: 5000
A100: 6261.863831 | N100: 4999
A101: 6251.421553 | N101: 4998
A102: 6051.577046 | N102: 4995
A103: 5945.772661 | N103: 4995
A104: 5314.546836 | N104: 4995
A105: 5286.2864 | N105: 4990
A106: 5073.906968 | N106: 4990
A107: 5049.34793 | N107: 4989
A108: 4963.273684 | N108: 4988
A109: 4649.029971 | N109: 4987
A110: 4613.183152 | N110: 4987
A111: 4602.827833 | N111: 4986
A112: 4586.910397 | N112: 4986
A113: 4516.053801 | N113: 4981
A114: 4212.851438 | N114: 4970
A115: 4163.702148 | N115: 4966
A116: 3978.539555 | N116: 4965
A117: 3855.080848 | N117: 4965
A118: 3531.797309 | N118: 4964
A119: 3251.827143 | N119: 4963
A120: 3122.945768 | N120: 4963
A121: 3115.508128 | N121: 4961
A122: 3013.625155 | N122: 4959
A123: 2991.395757 | N123: 4959
A124: 2985.125782 | N124: 4956
A125: 2736.849542 | N125: 4955
A126: 2613.230524 | N126: 4953
A127: 2611.300886 | N127: 4951
A128: 2563.498648 | N128: 4949
A129: 2525.332052 | N129: 4944
A130: 2484.65724 | N130: 4943
A131: 2251.743267 | N131: 4940
A132: 2175.962063
A133: 2082.25245
A134: 1918.512618
A135: 1614.1219
A136: 1597.280195
A137: 1547.095177
A138: 1407.884369
A139: 1296.000535
A140: 758.3904012

Sheet Iso_Plot_005
R1: 44378
A2: Table 2 | B2: Mount Bureau | H2: Age | J2: Age | L2: Age | N2: Age | R2: 23366
A3: 238U/204Pb | B3: 235U/204Pb | C3: 232Th/204Pb | D3: 206Pb/204Pb | E3: 207Pb/204Pb | F3: 208Pb/204Pb | G3: 207Pb/206Pb | H3: 207Pb/206Pb | I3: 206Pb/238U | J3: 206Pb/238U | K3: 207Pb/235U | L3: 207Pb/235U | M3: 208Pb/232Th | N3: 208Pb/232Th | O3: Model Age | R3: 9092
A4: 10.92 | B4: 0.0792 | C4: 162.7 | D4: 18.226 | E4: 15.536 | F4: 38.94 | G4: =(E4/D4) -> 0.852408647 | H4: =[1]!AgePb76(G4) -> 5011.929748 | I4: =(D4/A4) -> 1.669047619 | J4: =[1]!AgePb6U8(I4) -> 6328.584766 | K4: =(E4/B4) -> 196.1616162 | L4: =[1]!AgePb7U5(K4) -> 5365.308198 | M4: =(F4/C4) -> 0.2393362016 | N4: =[1]!AgePb8Th2(M4) -> 4337.057403 | O4: 30 | R4: 8651
A5: 14.75 | B5: 0.107 | C5: 121.1 | D5: 18.283 | E5: 15.536 | F5: 38.97 | G5: =(E5/D5) -> 0.8497511349 | H5: =[1]!AgePb76(G5) -> 5007.499827 | I5: =(D5/A5) -> 1.239525424 | J5: =[1]!AgePb6U8(I5) -> 5197.511549 | K5: =(E5/B5) -> 145.1962617 | L5: =[1]!AgePb7U5(K5) -> 5061.633728 | M5: =(F5/C5) -> 0.3218001652 | N5: =[1]!AgePb8Th2(M5) -> 5639.10195 | O5: 30 | R5: 8624
A6: 11.29 | B6: 0.0819 | C6: 67.69 | D6: 18.222 | E6: 15.509 | F6: 38.45 | G6: =(E6/D6) -> 0.851114038 | H6: =[1]!AgePb76(G6) -> 5009.773544 | I6: 1.613994686 | J6: =[1]!AgePb6U8(I6) -> 6194.227766 | K6: 189.3650794 | L6: =[1]!AgePb7U5(K6) -> 5329.688479 | M6: 0.5680307283 | N6: =[1]!AgePb8Th2(M6) -> 9091.875066 | O6: 30 | R6: 8496
A7: 14.96 | B7: 0.1085 | C7: 117.7 | D7: 18.338 | E7: 15.546 | F7: 39.02 | G7: 0.847747846 | H7: =[1]!AgePb76(G7) -> 5004.15072 | I7: 1.225802139 | J7: =[1]!AgePb6U8(I7) -> 5157.887913 | K7: 143.281106 | L7: =[1]!AgePb7U5(K7) -> 5048.244425 | M7: 0.3315208156 | N7: =[1]!AgePb8Th2(M7) -> 5787.200796 | O7: 30 | R7: 8144
A8: 22.31 | B8: 0.1618 | C8: 101.1 | D8: 18.27 | E8: 15.536 | F8: 38.68 | G8: 0.8503557745 | H8: =[1]!AgePb76(G8) -> 5008.509018 | I8: 0.8189152846 | J8: =[1]!AgePb6U8(I8) -> 3856.504922 | K8: 96.0197775 | L8: =[1]!AgePb7U5(K8) -> 4645.291008 | M8: 0.3825914936 | N8: =[1]!AgePb8Th2(M8) -> 6547.946074 | O8: 30 | R8: 8142
A9: 15.12 | B9: 0.1097 | C9: 94.81 | D9: 18.372 | E9: 15.541 | F9: 38.98 | G9: 0.8459068147 | H9: =[1]!AgePb76(G9) -> 5001.065456 | I9: 1.215079365 | J9: =[1]!AgePb6U8(I9) -> 5126.757348 | K9: 141.668186 | L9: =[1]!AgePb7U5(K9) -> 5036.829523 | M9: 0.4111380656 | N9: =[1]!AgePb8Th2(M9) -> 6961.021072 | O9: 30 | R9: 8023
A10: 20.85 | B10: 0.1512 | C10: 277.9 | D10: 18.397 | E10: 15.59 | F10: 38.93 | G10: 0.8474207751 | H10: =[1]!AgePb76(G10) -> 5003.603124 | I10: 0.8823501199 | J10: =[1]!AgePb6U8(I10) -> 4077.492731 | K10: 103.1084656 | L10: =[1]!AgePb7U5(K10) -> 4716.894242 | M10: 0.140086362 | N10: =[1]!AgePb8Th2(M10) -> 2649.904309 | O10: 30 | R10: 7788
A11: 19.21 | B11: 0.1393 | C11: 72.97 | D11: 18.482 | E11: 15.556 | F11: 38.83 | G11: 0.8416838005 | H11: =[1]!AgePb76(G11) -> 4993.961352 | I11: 0.9621030713 | J11: =[1]!AgePb6U8(I11) -> 4344.992062 | K11: 111.672649 | L11: =[1]!AgePb7U5(K11) -> 4797.163733 | M11: 0.5321364944 | N11: =[1]!AgePb8Th2(M11) -> 8623.813299 | O11: 30 | R11: 7518
A12: 26.9 | B12: 0.1951 | C12: 134 | D12: 18.229 | E12: 15.478 | F12: 38.52 | G12: 0.8490866202 | H12: =[1]!AgePb76(G12) -> 5006.389819 | I12: 0.6776579926 | J12: =[1]!AgePb6U8(I12) -> 3335.366761 | K12: 79.33367504 | L12: =[1]!AgePb7U5(K12) -> 4453.661876 | M12: 0.2874626866 | N12: =[1]!AgePb8Th2(M12) -> 5107.091902 | O12: 30 | R12: 7507
A13: 16.25 | B13: 0.1179 | C13: 78.16 | D13: 18.467 | E13: 15.539 | F13: 38.78 | G13: 0.8414469053 | H13: =[1]!AgePb76(G13) -> 4993.561718 | I13: 1.136430769 | J13: =[1]!AgePb6U8(I13) -> 4893.708762 | K13: 131.798134 | L13: =[1]!AgePb7U5(K13) -> 4964.035321 | M13: 0.4961617195 | N13: =[1]!AgePb8Th2(M13) -> 8143.566953 | O13: 30 | R13: 7416
A14: 18.81 | B14: 0.1364 | C14: 116.6 | D14: 18.419 | E14: 15.5 | F14: 38.55 | G14: 0.8415223411 | H14: =[1]!AgePb76(G14) -> 4993.688989 | I14: 0.9792131845 | J14: =[1]!AgePb6U8(I14) -> 4400.962992 | K14: 113.6363636 | L14: =[1]!AgePb7U5(K14) -> 4814.707888 | M14: 0.3306174957 | N14: =[1]!AgePb8Th2(M14) -> 5773.483921 | O14: 30 | R14: 7245
A15: 0.5 | B15: 0.0036 | C15: 4.82 | D15: 18.257 | E15: 15.491 | F15: 38.49 | G15: 0.8484964671 | H15: =[1]!AgePb76(G15) -> 5005.403251 | I15: 36.514 | J15: =[1]!AgePb6U8(I15) -> 23366.409 | K15: 4303.055556 | L15: =[1]!AgePb7U5(K15) -> 8496.027831 | M15: 7.985477178 | N15: =[1]!AgePb8Th2(M15) -> 44378.16326 | O15: 30 | R15: 7046
A16: 14.83 | B16: 0.1076 | C16: 90.03 | D16: 18.205 | E16: 15.527 | F16: 38.81 | G16: 0.8528975556 | H16: =[1]!AgePb76(G16) -> 5012.743134 | I16: 1.227579231 | J16: =[1]!AgePb6U8(I16) -> 5163.032711 | K16: 144.302974 | L16: =[1]!AgePb7U5(K16) -> 5055.410507 | M16: 0.4310785294 | N16: =[1]!AgePb8Th2(M16) -> 7244.636207 | O16: 30 | R16: 6961
A17: 10.27 | B17: 0.0745 | C17: 248.6 | D17: 18.353 | E17: 15.542 | F17: 38.95 | G17: 0.8468370294 | H17: =[1]!AgePb76(G17) -> 5002.625232 | I17: 1.787049659 | J17: =[1]!AgePb6U8(I17) -> 6607.468599 | K17: 208.6174497 | L17: =[1]!AgePb7U5(K17) -> 5427.510993 | M17: 0.1566773934 | N17: =[1]!AgePb8Th2(M17) -> 2941.92176 | O17: 30 | R17: 6607
A18: 22.28 | B18: 0.1616 | C18: 121.4 | D18: 18.297 | E18: 15.51 | F18: 38.86 | G18: 0.8476799475 | H18: =[1]!AgePb76(G18) -> 5004.03706 | I18: 0.8212298025 | J18: =[1]!AgePb6U8(I18) -> 3864.702585 | K18: 95.97772277 | L18: =[1]!AgePb7U5(K18) -> 4644.850779 | M18: 0.3200988468 | N18: =[1]!AgePb8Th2(M18) -> 5613.069585 | O18: 30 | R18: 6560
A19: 17.04 | B19: 0.1236 | C19: 93.1 | D19: 18.279 | E19: 15.513 | F19: 38.83 | G19: 0.8486788118 | H19: =[1]!AgePb76(G19) -> 5005.708157 | I19: 1.072711268 | J19: =[1]!AgePb6U8(I19) -> 4698.517591 | K19: 125.5097087 | L19: =[1]!AgePb7U5(K19) -> 4914.77794 | M19: 0.4170784103 | N19: =[1]!AgePb8Th2(M19) -> 7045.928138 | O19: 30 | R19: 6548
A20: 12.67 | B20: 0.0919 | C20: 72.37 | D20: 18.131 | E20: 15.51 | F20: 38.66 | G20: 0.8554409575 | H20: =[1]!AgePb76(G20) -> 5016.966558 | I20: 1.431018153 | J20: =[1]!AgePb6U8(I20) -> 5726.415231 | K20: 168.7704026 | L20: =[1]!AgePb7U5(K20) -> 5213.430422 | M20: 0.5341992538 | N20: =[1]!AgePb8Th2(M20) -> 8651.0073 | O20: 30 | R20: 6422
A21: 15.2 | B21: 0.1102 | C21: 86.24 | D21: 18.248 | E21: 15.512 | F21: 38.79 | G21: 0.8500657606 | H21: =[1]!AgePb76(G21) -> 5008.025057 | I21: 1.200526316 | J21: =[1]!AgePb6U8(I21) -> 5084.26473 | K21: 140.7622505 | L21: =[1]!AgePb7U5(K21) -> 5030.361336 | M21: 0.4497912801 | N21: =[1]!AgePb8Th2(M21) -> 7507.217814 | O21: 30 | R21: 6329
A22: XX.XX | B22: X.XXXX | C22: 79.57 | D22: 18.127 | E22: 15.521 | F22: 38.77 | G22: 0.8562365532 | H22: =[1]!AgePb76(G22) -> 5018.28494 | M22: 0.4872439362 | N22: =[1]!AgePb8Th2(M22) -> 8022.73269 | O22: 30 | R22: 6328
A23: 14.9 | B23: 0.108 | C23: 78.22 | D23: 18.129 | E23: 15.537 | F23: 38.8 | G23: 0.8570246566 | H23: =[1]!AgePb76(G23) -> 5019.589625 | I23: 1.216711409 | J23: =[1]!AgePb6U8(I23) -> 5131.505241 | K23: 143.8611111 | L23: =[1]!AgePb7U5(K23) -> 5052.318047 | M23: 0.4960368192 | N23: =[1]!AgePb8Th2(M23) -> 8141.879556 | O23: 30 | R23: 6216
G24: Average | H24: =AVERAGE(H4:H23) -> 5006.375816 | J24: =AVERAGE(J4:J23) -> 5924.016488 | L24: =AVERAGE(L4:L23) -> 5161.481383 | N24: =AVERAGE(N4:N23) -> 8410.430953 | R24: 6194
G25: Maximum | H25: =MAX(H4:H24) -> 5019.589625 | J25: =MAX(J4:J24) -> 23366.409 | L25: =MAX(L4:L24) -> 8496.027831 | N25: =MAX(N4:N24) -> 44378.16326 | R25: 5966
G26: Minimum | H26: =MIN(H4:H25) -> 4993.561718 | J26: =MIN(J4:J25) -> 3335.366761 | L26: =MIN(L4:L25) -> 4453.661876 | N26: =MIN(N4:N25) -> 2649.904309 | R26: 5787
G27: Difference | H27: =(H25-H26) -> 26.02790661 | J27: =(J25-J26) -> 20031.04224 | L27: =(L25-L26) -> 4042.365955 | N27: =(N25-N26) -> 41728.25895 | R27: 5773
R28: 5726
R29: 5639
A30: Table 2 | B30: Mount Rabouillere | H30: Age | J30: Age | L30: Age | N30: Age | R30: 5613
A31: 238U/204Pb | B31: 235U/204Pb | C31: 232Th/204Pb | D31: 206Pb/204Pb | E31: 207Pb/204Pb | F31: 208Pb/204Pb | G31: 207Pb/206Pb | H31: 207Pb/206Pb | I31: 206Pb/238U | J31: 206Pb/238U | K31: 207Pb/235U | L31: 207Pb/235U | M31: 208Pb/232Th | N31: 208Pb/232Th | O31: Model Age | R31: 5428
A32: 16.62 | B32: 0.1205 | C32: 86.42 | D32: 18.182 | E32: 15.578 | F32: 38.94 | G32: =(E32/D32) -> 0.8567814322 | H32: =[1]!AgePb76(G32) -> 5019.187109 | I32: =(D32/A32) -> 1.093983153 | J32: =[1]!AgePb6U8(I32) -> 4764.338868 | K32: =(E32/B32) -> 129.2780083 | L32: =[1]!AgePb7U5(K32) -> 4944.581096 | M32: =(F32/C32) -> 0.4505901412 | N32: =[1]!AgePb8Th2(M32) -> 7518.352047 | O32: 30 | R32: 5365
A33: 16.69 | B33: 0.1211 | C33: 158.7 | D33: 18.202 | E33: 15.547 | F33: 38.65 | G33: =(E33/D33) -> 0.854136908 | H33: =[1]!AgePb76(G33) -> 5014.802798 | I33: =(D33/A33) -> 1.09059317 | J33: =[1]!AgePb6U8(I33) -> 4753.894207 | K33: =(E33/B33) -> 128.3815029 | L33: =[1]!AgePb7U5(K33) -> 4937.569606 | M33: =(F33/C33) -> 0.2435412728 | N33: =[1]!AgePb8Th2(M33) -> 4405.521467 | O33: 30 | R33: 5355
A34: 15.2 | B34: 0.1102 | C34: 101.4 | D34: 18.416 | E34: 15.568 | F34: 38.88 | G34: =(E34/D34) -> 0.8453518679 | H34: =[1]!AgePb76(G34) -> 5000.134058 | I34: 1.211578947 | J34: =[1]!AgePb6U8(I34) -> 5116.562232 | K34: 141.2704174 | L34: =[1]!AgePb7U5(K34) -> 5033.994613 | M34: 0.3834319527 | N34: =[1]!AgePb8Th2(M34) -> 6560.229088 | O34: 30 | R34: 5330
A35: 15.18 | B35: 0.1101 | C35: 87.87 | D35: 18.272 | E35: 15.574 | F35: 38.95 | G35: 0.8523423818 | H35: =[1]!AgePb76(G35) -> 5011.819467 | I35: 1.203689065 | J35: =[1]!AgePb6U8(I35) -> 5093.523311 | K35: 141.4532243 | L35: =[1]!AgePb7U5(K35) -> 5035.298467 | M35: 0.4432684648 | N35: =[1]!AgePb8Th2(M35) -> 7416.074962 | O35: 30 | R35: 5260
A36: 19.3 | B36: 0.14 | C36: 113.5 | D36: 18.334 | E36: 15.568 | F36: 38.97 | G36: 0.8491327588 | H36: =[1]!AgePb76(G36) -> 5006.466918 | I36: 0.9499481865 | J36: =[1]!AgePb6U8(I36) -> 4304.933449 | K36: 111.2 | L36: =[1]!AgePb7U5(K36) -> 4792.895358 | M36: 0.3433480176 | N36: =[1]!AgePb8Th2(M36) -> 5965.942768 | O36: 30 | R36: 5213
A37: 14.24 | B37: 0.1033 | C37: 103.7 | D37: 18.438 | E37: 15.581 | F37: 38.12 | G37: 0.8450482699 | H37: =[1]!AgePb76(G37) -> 4999.624237 | I37: 1.294803371 | J37: =[1]!AgePb6U8(I37) -> 5354.695649 | K37: 150.8325266 | L37: =[1]!AgePb7U5(K37) -> 5100.043778 | M37: 0.3675988428 | N37: =[1]!AgePb8Th2(M37) -> 6327.570139 | O37: 30 | R37: 5198
A38: 17.13 | B38: 0.1242 | C38: 82.61 | D38: 18.398 | E38: 15.558 | F38: 38.83 | G38: 0.8456353952 | H38: =[1]!AgePb76(G38) -> 5000.609998 | I38: 1.074022183 | J38: =[1]!AgePb6U8(I38) -> 4702.593429 | K38: 125.2657005 | L38: =[1]!AgePb7U5(K38) -> 4912.817607 | M38: 0.4700399467 | N38: =[1]!AgePb8Th2(M38) -> 7787.560891 | O38: 30 | R38: 5163
A39: 17.74 | B39: 0.1287 | C39: 262.2 | D39: 18.384 | E39: 15.586 | F39: 38.94 | G39: 0.8478024369 | H39: =[1]!AgePb76(G39) -> 5004.242097 | I39: 1.036302142 | J39: =[1]!AgePb6U8(I39) -> 4584.273892 | K39: 121.1033411 | L39: =[1]!AgePb7U5(K39) -> 4878.781281 | M39: 0.1485125858 | N39: =[1]!AgePb8Th2(M39) -> 2798.74081 | O39: 30 | R39: 5158
A40: 14.47 | B40: 0.105 | C40: 108 | D40: 18.25 | E40: 15.553 | F40: 38.89 | G40: 0.8522191781 | H40: =[1]!AgePb76(G40) -> 5011.6144 | I40: 1.261230131 | J40: =[1]!AgePb6U8(I40) -> 5259.687163 | K40: 148.1238095 | L40: =[1]!AgePb7U5(K40) -> 5081.765647 | M40: 0.3600925926 | N40: =[1]!AgePb8Th2(M40) -> 6216.327038 | O40: 30 | R40: 5132
A41: 15.19 | B41: 0.1102 | C41: 104.2 | D41: 18.288 | E41: 15.574 | F41: 38.97 | G41: 0.8515966754 | H41: =[1]!AgePb76(G41) -> 5010.577796 | I41: 1.203949967 | J41: =[1]!AgePb6U8(I41) -> 5094.286479 | K41: 141.3248639 | L41: =[1]!AgePb7U5(K41) -> 5034.383123 | M41: 0.3739923225 | N41: =[1]!AgePb8Th2(M41) -> 6421.841456 | O41: 30 | R41: 5127
G42: Average | H42: =AVERAGE(H32:H41) -> 5007.907888 | J42: =AVERAGE(J32:J41) -> 4902.878868 | L42: =AVERAGE(L32:L41) -> 4975.213058 | N42: =AVERAGE(N32:N41) -> 6141.816067 | R42: 5117
G43: Maximum | H43: =MAX(H32:H42) -> 5019.187109 | J43: =MAX(J32:J42) -> 5354.695649 | L43: =MAX(L32:L42) -> 5100.043778 | N43: =MAX(N32:N42) -> 7787.560891 | R43: 5107
G44: Minimum | H44: =MIN(H32:H43) -> 4999.624237 | J44: =MIN(J32:J43) -> 4304.933449 | L44: =MIN(L32:L43) -> 4792.895358 | N44: =MIN(N32:N43) -> 2798.74081 | R44: 5100
G45: Difference | H45: =(H43-H44) -> 19.56287173 | J45: =(J43-J44) -> 1049.762201 | L45: =(L43-L44) -> 307.1484204 | N45: =(N43-N44) -> 4988.820081 | R45: 5094
R46: 5094
R47: 5084
B48: MAXIMUM | C48: MINIMUM | D48: DIFFERENCE | E48: AVERAGE | F48: 4600 To 4999 | G48: 5000 To 5999 | H48: 6,000 To 9999 | I48: 10,000 To 19,999 | J48: Over 19,999 | K48: Total | R48: 5082
A49: 207Pb/206Pb | B49: 5019.589625 | C49: 4993.561718 | D49: 26.02790661 | E49: 5006.886507 | F49: 4 | G49: 26 | K49: =SUM(F49:J49) -> 30 | R49: 5062
A50: 206Pb/238U | B50: 23366.409 | C50: 3335.366761 | D50: 20031.04224 | E50: 5571.900067 | F50: 5 | G50: 12 | H50: 3 | J50: 1 | K50: =SUM(F50:J50) -> 21 | R50: 5055
A51: 207Pb/235U | B51: 8496.027831 | C51: 4453.661876 | D51: 4042.365955 | E51: 5097.250926 | F51: 12 | G51: 15 | H51: 1 | K51: =SUM(F51:J51) -> 28 | R51: 5052
A52: 208Pb/232Th | B52: 44378.16326 | C52: 2649.904309 | D52: 41728.25895 | E52: 7654.225991 | G52: 6 | H52: 18 | J52: 1 | K52: =SUM(F52:J52) -> 25 | R52: 5048
R53: 5037
R54: 5035
A55: Mount Bureau | B55: Mount Rabouillere | G55: Mount Bureau | H55: Age | I55: Age | J55: Age | K55: Age | R55: 5034
A56: 44378.16326 | B56: 7787.560891 | G56: Summary | H56: 207Pb/206Pb | I56: 206Pb/238U | J56: 207Pb/235U | K56: 208Pb/232Th | R56: 5034
A57: 9091.875066 | B57: 7518.352047 | G57: Average | H57: 5006.375816 | I57: 5924.016488 | J57: 5161.481383 | K57: 8410.430953 | R57: 5030
A58: 8651.0073 | B58: 7416.074962 | G58: Maximum | H58: 5019.589625 | I58: 23366.409 | J58: 8496.027831 | K58: 44378.16326 | R58: 5020
A59: 8623.813299 | B59: 6560.229088 | G59: Minimum | H59: 4993.561718 | I59: 3335.366761 | J59: 4453.661876 | K59: 2649.904309 | R59: 5019
A60: 8143.566953 | B60: 6421.841456 | G60: Difference | H60: 26.02790661 | I60: 20031.04224 | J60: 4042.365955 | K60: 41728.25895 | R60: 5018
A61: 8141.879556 | B61: 6327.570139 | R61: 5017
A62: 8022.73269 | B62: 6216.327038 | R62: 5015
A63: 7507.217814 | B63: 5965.942768 | G63: Mount Rabouillere | H63: Age | I63: Age | J63: Age | K63: Age | R63: 5013
A64: 7244.636207 | B64: 4405.521467 | G64: Summary | H64: 207Pb/206Pb | I64: 206Pb/238U | J64: 207Pb/235U | K64: 208Pb/232Th | R64: 5012
A65: 7045.928138 | B65: 2798.74081 | G65: Average | H65: 5007.907888 | I65: 4902.878868 | J65: 4975.213058 | K65: 6141.816067 | R65: 5012
A66: 6961.021072 | G66: Maximum | H66: 5019.187109 | I66: 5354.695649 | J66: 5100.043778 | K66: 7787.560891 | R66: 5012
A67: 6547.946074 | G67: Minimum | H67: 4999.624237 | I67: 4304.933449 | J67: 4792.895358 | K67: 2798.74081 | R67: 5011
A68: 5787.200796 | G68: Difference | H68: 19.56287173 | I68: 1049.762201 | J68: 307.1484204 | K68: 4988.820081 | R68: 5010
A69: 5773.483921 | R69: 5009
A70: 5639.10195 | R70: 5008
A71: 5613.069585 | R71: 5007
A72: 5107.091902 | R72: 5006
A73: 4337.057403 | R73: 5006
A74: 2941.92176 | R74: 5006
A75: 2649.904309 | R75: 5005
R76: 5004
R77: 5004
R78: 5004
R79: 5004
R80: 5003
R81: 5001
R82: 5001
R83: 5000
R84: 5000
R85: 4994
R86: 4994
R87: 4994
R88: 4964
R89: 4945
R90: 4938
R91: 4915
R92: 4913
R93: 4894
R94: 4879
R95: 4815

Sheet Iso_Plot_006
C1: Table 4 | D1: North Tibet | J1: MAXIMUM | K1: MINIMUM | L1: DIFFERENCE | M1: AVERAGE | N1: 4600 To 4999 | O1: 5000 To 5999 | P1: 6,000 To 9999 | Q1: 10,000 To 19,999 | R1: Over 19,999 | S1: Total | X1: 88294.2628
A2: 208Pb/204Pb | B2: 232Th/204Pb | C2: 208Pb/232Th | D2: Age | E2: Model Age | F2: Ratio | G2: Percentage | I2: 208Pb/232Th | J2: 88294.2628 | K2: 4825.639072 | L2: 83468.62373 | M2: 24257.79182 | N2: 1 | P2: 3 | Q2: 5 | R2: 4 | S2: =SUM(N2:R2) -> 13 | X2: 81613.94227
A3: 38.959 | B3: 51.3 | C3: =(A3/B3) -> 0.7594346979 | D3: =[1]!AgePb8Th2(C3) -> 11419.75873 | E3: 0.5 | F3: =(D3/E3) -> 22839.51746 | G3: =(F3 * 1000) -> 22839517.46 | I3: 206Pb/238U | J3: 33751.1969 | K3: 4085.867609 | L3: 29665.32929 | M3: 11984.57635 | O3: 2 | P3: 6 | Q3: 2 | R3: 2 | S3: =SUM(N3:R3) -> 12 | X3: 33751.1969
A4: 39.023 | B4: 51.8 | C4: =(A4/B4) -> 0.7533397683 | D4: =[1]!AgePb8Th2(C4) -> 11349.61917 | E4: 0.5 | F4: =(D4/E4) -> 22699.23833 | G4: =(F4 * 1000) -> 22699238.33 | I4: 207Pb/235U | J4: 7470.608358 | K4: 238.2571916 | L4: 7232.351167 | M4: 2959.597188 | O4: 4 | P4: 2 | S4: =SUM(N4:R4) -> 6 | X4: 33742.06225
A5: 38.859 | B5: 41 | C5: 0.9477804878 | D5: =[1]!AgePb8Th2(C5) -> 13475.30092 | E5: 13 | F5: 1036.561609 | G5: 1036561.609 | I5: 207Pb/206Pb | J5: 4993.983648 | K5: 4919.239451 | L5: 74.74419721 | M5: 4981.017121 | N5: 13 | S5: =SUM(N5:R5) -> 13 | X5: 33190.7236
A6: 39.106 | B6: 51 | C6: 0.7667843137 | D6: =[1]!AgePb8Th2(C6) -> 11504.0146 | E6: 18.5 | F6: 621.838627 | G6: 621838.627 | X6: 25014.91808
A7: 38.993 | B7: 0.7 | C7: 55.70428571 | D7: =[1]!AgePb8Th2(C7) -> 81613.94227 | E7: 13 | F7: 6277.995559 | G7: 6277995.559 | X7: 15052.77656
A8: 38.957 | B8: 0.5 | C8: 77.914 | D8: =[1]!AgePb8Th2(C8) -> 88294.2628 | E8: 12.5 | F8: 7063.541024 | G8: 7063541.024 | X8: 13475.30092
X9: 13327.50927
X10: 11504.0146
C11: Table 4 | D11: North Tibet | X11: 11419.75873
A12: 238U/204Pb | B12: 206Pb/204Pb | C12: 206Pb/238U | D12: 206Pb/238U Age | E12: Model Age | F12: Ratio | G12: Percentage | X12: 11349.61917
A13: 8 | B13: 18.7578 | C13: =(B13/A13) -> 2.344725 | D13: =[1]!AgePb6U8(C13) -> 7783.300422 | E13: 0.5 | F13: =(D13/E13) -> 15566.60084 | G13: =(F13 * 1000) -> 15566600.84 | X13: 11101.89223
A14: 7.6 | B14: 18.7827 | C14: =(B14/A14) -> 2.471407895 | D14: =[1]!AgePb6U8(C14) -> 8022.950814 | E14: 0.5 | F14: =(D14/E14) -> 16045.90163 | G14: =(F14 * 1000) -> 16045901.63 | I14: North Tibet | J14: South Tibet | X14: 9265.045242
A15: 7.1 | B15: 18.6488 | C15: 2.626591549 | D15: =[1]!AgePb6U8(C15) -> 8304.871813 | E15: 13 | F15: 638.8362933 | G15: 638836.2933 | I15: Age | J15: Age | X15: 8304.871813
A16: 8.8 | B16: 18.715 | C16: 2.126704545 | D16: =[1]!AgePb6U8(C16) -> 7348.78059 | E16: 18.5 | F16: 397.2313832 | G16: 397231.3832 | I16: 88294.2628 | J16: 33190.7236 | X16: 8204.527081
A17: 0.1 | B17: 18.6852 | C17: 186.852 | D17: =[1]!AgePb6U8(C17) -> 33751.1969 | E17: 13 | F17: 2596.245915 | G17: 2596245.915 | I17: 81613.94227 | J17: 25014.91808 | X17: 8022.950814
A18: 0.1 | B18: 18.6586 | C18: 186.586 | D18: =[1]!AgePb6U8(C18) -> 33742.06225 | E18: 12.5 | F18: 2699.36498 | G18: 2699364.98 | I18: 13475.30092 | J18: 11101.89223 | X18: 7783.300422
I19: 11504.0146 | J19: 9265.045242 | X19: 7470.608358
I20: 11419.75873 | J20: 8204.527081 | X20: 7469.766066
C21: Table 4 | D21: North Tibet | I21: 11349.61917 | J21: 6091.64984 | X21: 7348.78059
A22: 235U/204Pb | B22: 207Pb/204Pb | C22: 207Pb/235U | D22: 207Pb/235U Age | E22: Model Age | F22: Ratio | G22: Percentage | J22: 4825.639072 | X22: 6682.268148
A23: 0.1 | B23: 15.638 | C23: =(B23/A23) -> 156.38 | D23: =[1]!AgePb7U5(C23) -> 5136.480949 | E23: 0.5 | F23: =(D23/E23) -> 10272.9619 | G23: =(F23 * 1000) -> 10272961.9 | X23: 6331.05552
A24: 0.1 | B24: 15.655 | C24: =(B24/A24) -> 156.55 | D24: =[1]!AgePb7U5(C24) -> 5137.577162 | E24: 0.5 | F24: =(D24/E24) -> 10275.15432 | G24: =(F24 * 1000) -> 10275154.32 | X24: 6091.64984
A25: 0.1 | B25: 15.615 | C25: 156.15 | D25: =[1]!AgePb7U5(C25) -> 5134.995952 | E25: 13 | F25: 394.9996886 | G25: 394999.6886 | X25: 5799.440052
A26: 0.1 | B26: 15.693 | C26: 156.93 | D26: =[1]!AgePb7U5(C26) -> 5140.023249 | E26: 18.5 | F26: 277.8390945 | G26: 277839.0945 | X26: 5567.412624
A27: 0.01 | B27: 15.655 | C27: 1565.5 | D27: =[1]!AgePb7U5(C27) -> 7469.766066 | E27: 13 | F27: 574.5973897 | G27: 574597.3897 | X27: 5140.023249
A28: 0.01 | B28: 15.668 | C28: 1566.8 | D28: =[1]!AgePb7U5(C28) -> 7470.608358 | E28: 12.5 | F28: 597.6486687 | G28: 597648.6687 | X28: 5137.577162
X29: 5136.480949
X30: 5134.995952
C31: Table 4 | D31: North Tibet | X31: 4993.983648
A32: 207Pb/204Pb | B32: 206Pb/204Pb | C32: 207Pb/206Pb | D32: Age | E32: Model Age | F32: Ratio | G32: Percentage | X32: 4992.153389
A33: 15.638 | B33: 18.7578 | C33: =(A33/B33) -> 0.8336798558 | D33: =[1]!AgePb76($C$33) -> 4980.392328 | E33: 0.5 | F33: =(D33/E33) -> 9960.784656 | G33: =(F33 * 1000) -> 9960784.656 | X33: 4991.616649
A34: 15.655 | B34: 18.7827 | C34: =(A34/B34) -> 0.8334797447 | D34: =[1]!AgePb76($C$34) -> 4980.05131 | E34: 0.5 | F34: =(D34/E34) -> 9960.10262 | G34: =(F34 * 1000) -> 9960102.62 | X34: 4990.644906
A35: 15.615 | B35: 18.6488 | C35: 0.8373192913 | D35: =[1]!AgePb76($C$35) -> 4986.579318 | E35: 13 | F35: 383.5830245 | G35: 383583.0245 | X35: 4988.623125
A36: 15.693 | B36: 18.715 | C36: 0.8385252471 | D36: =[1]!AgePb76($C$36) -> 4988.623125 | E36: 18.5 | F36: 269.6553041 | G36: 269655.3041 | X36: 4987.443314
A37: 15.655 | B37: 18.6852 | C37: 0.8378288699 | D37: =[1]!AgePb76($C$37) -> 4987.443314 | E37: 13 | F37: 383.6494857 | G37: 383649.4857 | X37: 4986.579318
A38: 15.668 | B38: 18.6586 | C38: 0.8397200219 | D38: =[1]!AgePb76($C$38) -> 4990.644906 | E38: 12.5 | F38: 399.2515925 | G38: 399251.5925 | X38: 4982.463816
X39: 4980.392328
X40: 4980.282101
C41: Table 4 | D41: South Tibet | X41: 4980.05131
A42: 208Pb/204Pb | B42: 232Th/204Pb | C42: 208Pb/232Th | D42: Age | E42: Model Age | F42: Ratio | G42: Percentage | X42: 4979.74922
A43: 39.527 | B43: 54 | C43: =(A43/B43) -> 0.7319814815 | D43: =[1]!AgePb8Th2(C43) -> 11101.89223 | E43: 24 | F43: =(D43/E43) -> 462.5788429 | G43: =(F43 * 1000) -> 462578.8429 | X43: 4919.239451
A44: 41.504 | B44: 118 | C44: =(A44/B44) -> 0.3517288136 | D44: =[1]!AgePb8Th2(C44) -> 6091.64984 | E44: 13.8 | F44: =(D44/E44) -> 441.4239014 | G44: =(F44 * 1000) -> 441423.9014 | X44: 4825.639072
A45: 39.718 | B45: 68.3 | C45: 0.581522694 | D45: =[1]!AgePb8Th2(C45) -> 9265.045242 | E45: 13.8 | F45: 671.38009 | G45: 671380.09
A46: 39.559 | B46: 146.7 | C46: 0.2696591684 | D46: =[1]!AgePb8Th2(C46) -> 4825.639072 | E46: 13.8 | F46: 349.6839907 | G46: 349683.9907
A47: 39.704 | B47: 79.3 | C47: 0.5006809584 | D47: =[1]!AgePb8Th2(C47) -> 8204.527081 | E47: 13.3 | F47: 616.8817354 | G47: 616881.7354
A48: 39.158 | B48: 16 | C48: 2.447375 | D48: =[1]!AgePb8Th2(C48) -> 25014.91808 | E48: 18.8 | F48: 1330.580749 | G48: 1330580.749
A49: 39.161 | B49: 9.4 | C49: =(A49/B49) -> 4.16606383 | D49: =[1]!AgePb8Th2(C49) -> 33190.7236 | E49: 17.3 | F49: 1918.538937 | G49: 1918538.937
C52: Table 4 | D52: South Tibet
A53: 238U/204Pb | B53: 206Pb/204Pb | C53: 206Pb/238U | D53: 206Pb/238U Age | E53: Model Age | F53: Ratio | G53: Percentage
A54: 11.3 | B54: 18.8718 | C54: =(B54/A54) -> 1.670070796 | D54: =[1]!AgePb6U8(C54) -> 6331.05552 | E54: 24 | F54: =(D54/E54) -> 263.79398 | G54: =(F54 * 1000) -> 263793.98
A55: 13.6 | B55: 19.8385 | C55: =(B55/A55) -> 1.458713235 | D55: =[1]!AgePb6U8(C55) -> 5799.440052 | E55: 13.8 | F55: =(D55/E55) -> 420.2492791 | G55: =(F55 * 1000) -> 420249.2791
A56: 10.4 | B56: 18.9236 | C56: 1.819576923 | D56: =[1]!AgePb6U8(C56) -> 6682.268148 | E56: 13.8 | F56: 484.2223295 | G56: 484222.3295
A57: 21.2 | B57: 18.7577 | C57: 0.8847971698 | D57: =[1]!AgePb6U8(C57) -> 4085.867609 | E57: 13.8 | F57: 296.077363 | G57: 296077.363
A58: 13.8 | B58: 18.9307 | C58: 1.371789855 | D58: =[1]!AgePb6U8(C58) -> 5567.412624 | E58: 13.3 | F58: 418.6024529 | G58: 418602.4529
A59: 2.7 | B59: 18.6421 | C59: 6.904481481 | D59: =[1]!AgePb6U8(C59) -> 13327.50927 | E59: 18.8 | F59: 708.9100673 | G59: 708910.0673
A60: 2 | B60: 18.6602 | C60: 9.3301 | D60: =[1]!AgePb6U8(C60) -> 15052.77656 | E60: 17.3 | F60: 870.1026912 | G60: 870102.6912
C63: Table 4 | D63: South Tibet
A64: 235U/204Pb | B64: 207Pb/204Pb | C64: 207Pb/235U | D64: 207Pb/235U Age | E64: Model Age | F64: Ratio | G64: Percentage
A65: 43.7 | B65: 15.756 | C65: =(B65/A65) -> 0.3605491991 | D65: =[1]!AgePb7U5(C65) -> 312.6247054 | E65: 24 | F65: =(D65/E65) -> 13.02602939 | G65: =(F65 * 1000) -> 13026.02939
A66: 10.3 | B66: 15.843 | C66: =(B66/A66) -> 1.53815534 | D66: =[1]!AgePb7U5(C66) -> 945.7659268 | E66: 13.8 | F66: =(D66/E66) -> 68.53376281 | G66: =(F66 * 1000) -> 68533.76281
A67: 52.7 | B67: 15.775 | C67: 0.2993358634 | D67: =[1]!AgePb7U5(C67) -> 265.8813622 | E67: 13.8 | F67: 19.26676538 | G67: 19266.76538
A68: 59.6 | B68: 15.762 | C68: 0.2644630872 | D68: =[1]!AgePb7U5(C68) -> 238.2571916 | E68: 13.8 | F68: 17.26501388 | G68: 17265.01388
A69: 47 | B69: 15.775 | C69: 0.3356382979 | D69: =[1]!AgePb7U5(C69) -> 293.8613021 | E69: 13.3 | F69: 22.09483474 | G69: 22094.83474
A70: 28.4 | B70: 15.691 | C70: 0.5525 | D70: =[1]!AgePb7U5(C70) -> 446.6330252 | E70: 18.8 | F70: 23.75707581 | G70: 23757.07581
A71: 25.8 | B71: 15.686 | C71: 0.6079844961 | D71: =[1]!AgePb7U5(C71) -> 482.2881952 | E71: 17.3 | F71: 27.87793036 | G71: 27877.93036
C74: Table 4 | D74: South Tibet
A75: 207Pb/204Pb | B75: 206Pb/204Pb | C75: 207Pb/206Pb | D75: Age | E75: Model Age | F75: Ratio | G75: Percentage
A76: 15.756 | B76: 18.8718 | C76: =(A76/B76) -> 0.8348965123 | D76: =[1]!AgePb76(C76) -> 4982.463816 | E76: 24 | F76: =(D76/E76) -> 207.602659 | G76: =(F76 * 1000) -> 207602.659
A77: 15.843 | B77: 19.8385 | C77: =(A77/B77) -> 0.7985986844 | D77: =[1]!AgePb76(C77) -> 4919.239451 | E77: 13.8 | F77: =(D77/E77) -> 356.4666269 | G77: =(F77 * 1000) -> 356466.6269
A78: 15.775 | B78: 18.9236 | C78: 0.8336151684 | D78: =[1]!AgePb76(C78) -> 4980.282101 | E78: 13.8 | F78: 360.8900073 | G78: 360890.0073
A79: 15.762 | B79: 18.7577 | C79: 0.8402949189 | D79: =[1]!AgePb76(C79) -> 4991.616649 | E79: 13.8 | F79: 361.7113514 | G79: 361711.3514
A80: 15.775 | B80: 18.9307 | C80: 0.8333025192 | D80: =[1]!AgePb76(C80) -> 4979.74922 | E80: 13.3 | F80: 374.4172345 | G80: 374417.2345
A81: 15.691 | B81: 18.6421 | C81: 0.8416970191 | D81: =[1]!AgePb76(C81) -> 4993.983648 | E81: 18.8 | F81: 265.6374281 | G81: 265637.4281
A82: 15.686 | B82: 18.6602 | C82: 0.8406126408 | D82: =[1]!AgePb76(C82) -> 4992.153389 | E82: 17.3 | F82: 288.5637797 | G82: 288563.7797

Sheet Iso_Plot_007
A1: Table 9 | E1: 207Pb/206Pb | H1: 208Pb/232Th | K1: 206Pb/238U | N1: 207Pb/235U
A2: Sample | B2: 206Pb/204Pb | C2: 207Pb/204Pb | D2: 207Pb/206Pb | E2: Age | F2: 208Pb/204Pb | G2: 208Pb/232Th | H2: Age | I2: 238U/204Pb | J2: 206Pb/238U | K2: Age | L2: 235U/204Pb | M2: 207Pb/235U | N2: Age | O2: 232Th/204Pb | P2: 206Pb/204Pb(i) | Q2: 207Pb/204Pb(i) | R2: 208Pb/204Pb(i)
A3: 04YJ-1 | B3: 18.062 | C3: 15.4981 | D3: =(C3/B3) -> 0.8580500498 | E3: =[1]!AgePb76(D3) -> 5021.285231 | F3: 38.09511 | G3: =(F3/O3) -> 0.497715051 | H3: =[1]!AgePb8Th2(G3) -> 8164.540623 | I3: 7.46 | J3: =(B3/I3) -> 2.421179625 | K3: =[1]!AgePb6U8(J3) -> 7928.995398 | L3: 0.05 | M3: =(C3/L3) -> 309.962 | N3: =[1]!AgePb7U5(M3) -> 5827.964379 | O3: 76.54 | P3: 18.055 | Q3: 15.547 | R3: 37.886
A4: 04YJ-2 | B4: 18.0207 | C4: 15.4537 | D4: =(C4/B4) -> 0.8575527033 | E4: =[1]!AgePb76(D4) -> 5020.46308 | F4: 37.9257 | G4: =(F4/O4) -> 0.4709511983 | H4: =[1]!AgePb8Th2(G4) -> 7800.086209 | I4: 8.37 | J4: =(B4/I4) -> 2.153010753 | K4: =[1]!AgePb6U8(J4) -> 7402.789949 | L4: 0.06 | M4: =(C4/L4) -> 257.5616667 | N4: =[1]!AgePb7U5(M4) -> 5640.589147 | O4: 80.53 | P4: 18.012 | Q4: 15.508 | R4: 37.706
A5: 04YJ-5 | B5: 17.9881 | C5: 15.45313 | D5: 0.8590751664 | E5: =[1]!AgePb76(D5) -> 5022.978231 | F5: 37.90816 | G5: 0.6627300699 | H5: =[1]!AgePb8Th2(G5) -> 10277.12727 | I5: 5.29 | J5: 3.400396975 | K5: =[1]!AgePb6U8(J5) -> 9551.618105 | L5: 0.04 | M5: 386.32825 | N5: =[1]!AgePb7U5(M5) -> 6050.944331 | O5: 57.2 | P5: 17.984 | Q5: 15.488 | R5: 37.753
A6: 04YJ-6 | B6: 17.9976 | C6: 15.4706 | D6: 0.8595923901 | E6: =[1]!AgePb76(D6) -> 5023.831622 | F6: 37.9486 | G6: 0.682651556 | H6: =[1]!AgePb8Th2(G6) -> 10517.8546 | I6: 5.17 | J6: 3.481160542 | K6: =[1]!AgePb6U8(J6) -> 9668.860998 | L6: 0.04 | M6: 386.765 | N6: =[1]!AgePb7U5(M6) -> 6052.088629 | O6: 55.59 | P6: 17.993 | Q6: 15.504 | R6: 37.796
A7: 04YJ-7 | B7: 18.0149 | C7: 15.4748 | D7: 0.85900005 | E7: =[1]!AgePb76(D7) -> 5022.854247 | F7: 38.0079 | G7: 0.5122358491 | H7: =[1]!AgePb8Th2(G7) -> 8359.560392 | I7: 6.66 | J7: 2.70493994 | K7: =[1]!AgePb6U8(J7) -> 8442.656233 | L7: 0.05 | M7: 309.496 | N7: =[1]!AgePb7U5(M7) -> 5826.441609 | O7: 74.2 | P7: 18.008 | Q7: 15.517 | R7: 37.805
A8: 04YJ-9 | B8: 17.9987 | C8: 15.4607 | D8: 0.8589898159 | E8: =[1]!AgePb76(D8) -> 5022.837355 | F8: 37.9286 | G8: 0.5249633218 | H8: =[1]!AgePb8Th2(G8) -> 8528.961263 | I8: 5.32 | J8: 3.383214286 | K8: =[1]!AgePb6U8(J8) -> 9526.396844 | L8: 0.04 | M8: 386.5175 | N8: =[1]!AgePb7U5(M8) -> 6051.44033 | O8: 72.25 | P8: 17.993 | Q8: 15.495 | R8: 37.731
B11: MAXIMUM | C11: MINIMUM | D11: DIFFERENCE | E11: AVERAGE | F11: 4600 To 4999 | G11: 5000 To 5999 | H11: 6,000 To 9999 | I11: 10,000 To 19,999 | J11: Over 19,999 | K11: Total
A12: 207Pb/206Pb | B12: 5023.831622 | C12: 5020.46308 | D12: 3.36854173 | E12: 5022.374961 | G12: 6 | K12: =SUM(F12:J12) -> 6
A13: 208Pb/232Th | B13: 10517.8546 | C13: 7800.086209 | D13: 2717.768391 | E13: 8941.355061 | H13: 4 | I13: 2 | K13: =SUM(F13:J13) -> 6
A14: 206Pb/238U | B14: 9668.860998 | C14: 7402.789949 | D14: 2266.071049 | E14: 8753.552921 | H14: 6 | K14: =SUM(F14:J14) -> 6
A15: 207Pb/235U | B15: 6052.088629 | C15: 5640.589147 | D15: 411.4994819 | E15: 5908.244737 | G15: 3 | H15: 3 | K15: =SUM(F15:J15) -> 6
A19: Table 9 | B19: 208Pb/232Th | E19: 207Pb/206Pb | F19: 208Pb/232Th | G19: 206Pb/238U | H19: 207Pb/235U
A20: Sample | B20: Age | E20: Age | F20: Age | G20: Age | H20: Age
A21: 04YJ-1 | B21: 8164.540623 | E21: 5023.831622 | F21: 10517.8546 | G21: 9668.860998 | H21: 6052.088629
A22: 04YJ-2 | B22: 7800.086209 | E22: 5022.978231 | F22: 10277.12727 | G22: 9551.618105 | H22: 6051.44033
A23: 04YJ-5 | B23: 10277.12727 | E23: 5022.854247 | F23: 8528.961263 | G23: 9526.396844 | H23: 6050.944331
A24: 04YJ-6 | B24: 10517.8546 | E24: 5022.837355 | F24: 8359.560392 | G24: 8442.656233 | H24: 5827.964379
A25: 04YJ-7 | B25: 8359.560392 | E25: 5021.285231 | F25: 8164.540623 | G25: 7928.995398 | H25: 5826.441609
A26: 04YJ-9 | B26: 8528.961263 | E26: 5020.46308 | F26: 7800.086209 | G26: 7402.789949 | H26: 5640.589147

Sheet Iso_Plot_008
C1: Pb-206 | D1: Error | E1: Pb-207 | F1: Error | G1: Pb-208 | H1: Error | I1: Pb-207 | J1: Error | K1: Pb-208 | L1: Error | P1: Pb-207 | Q1: Million | R1: Table 3
A2: Sample | C2: Pb-204 | D2: Level | E2: Pb-204 | F2: Level | G2: Pb-204 | H2: Level | I2: Pb-206 | J2: Level | K2: Pb-206 | L2: Level | P2: Pb-206 | Q2: Years | R2: Page 133
A3: RRCR2 | B3: 1 | C3: 28.696 | D3: 0.107 | E3: 16.791 | F3: 0.064 | G3: 55.918 | H3: 0.213 | I3: 0.585 | J3: 0.001 | K3: 1.9486 | L3: 0.0014 | M3: 0.978 | N3: 0.981 | P3: 0.585 | Q3: 4471.177594 | R3: RRCR2
A4: RRCR2 | B4: 2 | C4: 30.212 | D4: 0.181 | E4: 17.06 | F4: 0.103 | G4: 67.327 | H4: 0.409 | I4: 0.565 | J4: 0.001 | K4: 2.2285 | L4: 0.0019 | M4: 0.99 | N4: 0.991 | P4: 0.565 | Q4: 4420.470618
A5: RRCR2 | B5: 3 | C5: 225.96 | D5: 0.632 | E5: 38.271 | F5: 0.111 | G5: 799.888 | H5: 2.346 | I5: 0.169 | J5: 0.001 | K5: 3.54 | L5: 0.0027 | M5: 0.973 | N5: 0.966 | P5: 0.169 | Q5: 2547.763436
A6: RRCR2 | B6: 4 | C6: 2311.33 | D6: 160.579 | E6: 268.952 | F6: 18.755 | G6: 8320.081 | H6: 578.125 | I6: 0.116 | J6: 0.001 | K6: 3.5997 | L6: 0.0041 | M6: 0.996 | N6: 1 | P6: 0.116 | Q6: 1895.469491
A7: RRCR2 | B7: 5 | C7: 167.834 | D7: 3.359 | E7: 32.18 | F7: 0.812 | G7: 480.408 | H7: 9.722 | I7: 0.192 | J7: 0.003 | K7: 2.8624 | L7: 0.0085 | M7: 0.793 | N7: 0.989 | P7: 0.192 | Q7: 2759.369457
A8: RRCR2 | B8: 6 | C8: 140.827 | D8: 1.931 | E8: 28.915 | F8: 0.398 | G8: 47.328 | H8: 0.651 | I8: 0.205 | J8: 0.001 | K8: 0.3361 | L8: 0.0003 | M8: 0.997 | N8: 0.998 | P8: 0.205 | Q8: 2866.424433
A9: RRCR2 | B9: 7 | C9: 36.81 | D9: 0.015 | E9: 17.632 | F9: 0.074 | G9: 44.972 | H9: 0.188 | I9: 0.479 | J9: 0.001 | K9: 1.2217 | L9: 0.0009 | M9: 0.982 | N9: 0.986 | P9: 0.479 | Q9: 4177.848095
A10: RRSW1 | B10: 1 | C10: 21.129 | D10: 0.274 | E10: 15.993 | F10: 0.209 | G10: 40.034 | H10: 0.522 | I10: 0.757 | J10: 0.001 | K10: 1.8948 | L10: 0.0022 | M10: 0.992 | N10: 0.996 | P10: 0.757 | Q10: 4842.908147 | R10: Older Than Earth
A11: RRSW1 | B11: 2 | C11: 18.869 | D11: 0.023 | E11: 16.003 | F11: 0.023 | G11: 42.676 | H11: 0.068 | I11: 0.848 | J11: 0.001 | K11: 2.2617 | L11: 0.002 | M11: 0.887 | N11: 0.832 | P11: 0.848 | Q11: 5004.572734 | R11: Older Than Earth
A12: RRSW1 | B12: 3 | C12: 18.757 | D12: 0.041 | E12: 15.979 | F12: 0.037 | G12: 43.864 | H12: 0.101 | I12: 0.852 | J12: 0.001 | K12: 2.3385 | L12: 0.0015 | M12: 0.952 | N12: 0.959 | P12: 0.852 | Q12: 5011.249512 | R12: Older Than Earth
A13: RRSW1 | B13: 4 | C13: 26.517 | D13: 0.446 | E13: 16.616 | F13: 0.289 | G13: 41.429 | H13: 0.718 | I13: 0.627 | J13: 0.003 | K13: 1.5624 | L13: 0.0066 | M13: 0.965 | N13: 0.97 | P13: 0.627 | Q13: 4571.848395
A14: RRSW1 | B14: 5 | C14: 41.743 | D14: 1.18 | E14: 18.25 | F14: 0.672 | G14: 40.705 | H14: 1.635 | I14: 0.437 | J14: 0.01 | K14: 0.9752 | L14: 0.0278 | M14: 0.768 | N14: 0.704 | P14: 0.437 | Q14: 4041.547972
A15: RRSW1 | B15: 6 | C15: 34.974 | D15: 0.216 | E15: 17.431 | F15: 0.109 | G15: 38.623 | H15: 0.241 | I15: 0.498 | K15: 1.1043 | L15: 0.0009 | M15: 0.99 | N15: 0.991 | P15: 0.498 | Q15: 4235.300255
A16: RRSW1 | B16: 7 | C16: 19.426 | D16: 0.149 | E16: 15.736 | F16: 0.122 | G16: 38.542 | H16: 0.298 | I16: 0.81 | J16: 0.001 | K16: 1.984 | L16: 0.002 | M16: 0.991 | N16: 0.991 | P16: 0.81 | Q16: 4939.422278 | R16: Older Than Earth
A17: HLM2 | B17: 1 | C17: 37.797 | D17: 0.186 | E17: 17.765 | F17: 0.089 | G17: 59.734 | H17: 0.298 | I17: 0.47 | K17: 1.5804 | L17: 0.0011 | M17: 0.986 | N17: 0.991 | P17: 0.47 | Q17: 4149.764742 | R17: HLM2
A18: HLM2 | B18: 2 | C18: 45.402 | D18: 0.474 | E18: 18.559 | F18: 0.222 | G18: 76.605 | H18: 0.97 | I18: 0.409 | J18: 0.002 | K18: 1.6873 | L18: 0.012 | M18: 0.874 | N18: 0.826 | P18: 0.409 | Q18: 3942.497979
A19: HLM2 | B19: 3 | C19: 1677.631 | D19: 33.149 | E19: 196.701 | F19: 3.889 | G19: 3090.085 | H19: 61.1 | I19: 0.117 | K19: 1.8419 | L19: 0.0011 | M19: 0.999 | N19: 1 | P19: 0.117 | Q19: 1910.892174
A20: HLM2 | B20: 4 | C20: 3995.921 | D20: 116.892 | E20: 449.895 | F20: 13.166 | G20: 8011.526 | H20: 234.45 | I20: 0.113 | K20: 2.0049 | L20: 0.0013 | M20: 1 | N20: 1 | P20: 0.113 | Q20: 1848.213643
A21: HLM2 | B21: 5 | C21: 536.743 | D21: 16.885 | E21: 71.414 | F21: 2.287 | G21: 856.483 | H21: 26.966 | I21: 0.133 | J21: 0.001 | K21: 1.5957 | L21: 0.0019 | M21: 0.982 | N21: 0.999 | P21: 0.133 | Q21: 2137.949473
A22: HLM2 | B22: 6 | C22: 174.755 | D22: 3.914 | E22: 32.993 | F22: 0.74 | G22: 52.707 | H22: 1.182 | I22: 0.189 | J22: 0 | K22: 0.3016 | L22: 0.0003 | M22: 0.999 | N22: 0.999 | P22: 0.189 | Q22: 2733.479356
A23: HLM2 | B23: 7 | C23: 27.43 | D23: 0.113 | E23: 16.624 | F23: 0.07 | G23: 41.234 | H23: 0.175 | I23: 0.606 | J23: 0.001 | K23: 1.5033 | L23: 0.0013 | M23: 0.981 | N23: 0.981 | P23: 0.606 | Q23: 4522.450396
A24: TRMR2 | B24: 1 | C24: 18.894 | D24: 0.106 | E24: 16.128 | F24: 0.092 | G24: 38.175 | H24: 0.217 | I24: 0.854 | J24: 0.001 | K24: 2.0204 | L24: 0.0015 | M24: 0.987 | N24: 0.991 | P24: 0.854 | Q24: 5014.575428 | R24: Older Than Earth
A25: TRMR2 | B25: 2 | C25: 18.372 | D25: 0.015 | E25: 16.07 | F25: 0.017 | G25: 36.969 | H25: 0.04 | I25: 0.875 | J25: 0 | K25: 2.0122 | L25: 0.0011 | M25: 0.846 | N25: 0.873 | P25: 0.875 | Q25: 5049.006386 | R25: Older Than Earth
A26: TRMR2 | B26: 3 | C26: 136.272 | D26: 0.251 | E26: 34.957 | F26: 0.069 | G26: 318.879 | H26: 0.639 | I26: 0.257 | J26: 0 | K26: 2.34 | L26: 0.0015 | M26: 0.95 | N26: 0.946 | P26: 0.257 | Q26: 3228.40937
A27: TRMR2 | B27: 4 | C27: 763.992 | D27: 7.754 | E27: 136.613 | F27: 1.405 | G27: 2642.261 | H27: 26.897 | I27: 0.179 | J27: 0 | K27: 3.4585 | L27: 0.0022 | M27: 0.987 | N27: 0.998 | P27: 0.179 | Q27: 2643.627071
A28: TRMR2 | B28: 5 | C28: 92.844 | D28: 0.93 | E28: 27.406 | F28: 0.283 | G28: 292.663 | H28: 2.995 | I28: 0.295 | J28: 0.001 | K28: 3.1522 | L28: 0.0065 | M28: 0.969 | N28: 0.979 | P28: 0.295 | Q28: 3444.164624
A29: TRMR2 | B29: 6 | C29: 37.812 | D29: 0.239 | E29: 19.895 | F29: 0.127 | G29: 39.279 | H29: 0.251 | I29: 0.526 | J29: 0.001 | K29: 1.0388 | L29: 0.001 | M29: 0.989 | N29: 0.989 | P29: 0.526 | Q29: 4315.776867
A30: TRMR2 | B30: 7 | C30: 22.161 | D30: 0.22 | E30: 16.342 | F30: 0.163 | G30: 40.53 | H30: 0.405 | I30: 0.737 | J30: 0.001 | K30: 1.8289 | L30: 0.0018 | M30: 0.994 | N30: 0.995 | P30: 0.737 | Q30: 4804.602067 | R30: Older Than Earth
P31: AVG | Q31: =AVERAGE(Q3:Q30) -> 3768.9565
P32: MAX | Q32: =MAX(Q3:Q30) -> 5049.006386
A33: Precambrian Research | P33: MIN | Q33: =MIN(Q3:Q30) -> 1848.213643
A34: Volume 117 | P34: STD DEV | Q34: =STDEV(Q3:Q30) -> 1093.62372
A35: Pages 119–143
A36: 2002
A38: Table 3
A39: Page 133
P40: Sample | Q40: Million | R40: Age
P41: Name | Q41: Years | R41: Category
P42: RRSW1 | Q42: 5004.572734 | R42: Older Than The Solar System
P43: RRSW1 | Q43: 5011.249512 | R43: Older Than The Solar System
P44: RRSW1 | Q44: 4939.422278 | R44: Older Than Earth
P45: TRMR2 | Q45: 5014.575428 | R45: Older Than The Solar System
P46: TRMR2 | Q46: 5049.006386 | R46: Older Than The Solar System

Sheet Iso_Plot_009
A1: Sample | E1: Table 2 | P1: Table 2 | W1: 58796
A2: Number | G2: 206Pb/238U | J2: 208Pb/232Th | O2: 207Pb/206Pb | W2: 54206
A3: Dajiweng | E3: 238U/204Pb | F3: 206Pb/238U | G3: Age | H3: 232Th/204Pb | I3: 208Pb/232Th | J3: Age | L3: 206Pb/204Pb | M3: 207Pb/204Pb | N3: 207Pb/206Pb | O3: Age | P3: 208Pb/204Pb | W3: 48252
A4: DJB98-11 | B4: 1.563 | C4: 0.4258 | D4: 0.9301 | E4: 17.6 | F4: =(L4/E4) -> 1.088863636 | G4: =[1]!AgePb6U8(F4) -> 4748.558926 | H4: 39.8 | I4: =(P4/H4) -> 0.983718593 | J4: =[1]!AgePb8Th2(I4) -> 13844.83397 | K4: 2.18 | L4: 19.164 | M4: 15.602 | N4: =(M4/L4) -> 0.8141306617 | O4: =[1]!AgePb76($N$4) -> 4946.659973 | P4: 39.152 | Q4: 18.81 | R4: 15.58 | S4: 38.9 | W4: 47976
A5: L | B5: 1.324 | C5: 0.2893 | D5: 0.7924 | E5: 14.1 | F5: =(L5/E5) -> 1.352553191 | G5: =[1]!AgePb6U8(F5) -> 5514.915087 | H5: 39.9 | I5: =(P5/H5) -> 0.9766165414 | J5: =[1]!AgePb8Th2(I5) -> 13772.34089 | K5: 2.74 | L5: 19.071 | M5: 15.593 | N5: =(M5/L5) -> 0.8176288606 | O5: =[1]!AgePb76($N$5) -> 4952.758998 | P5: 38.967 | Q5: 18.78 | R5: 15.58 | S5: 38.71 | W5: 46117
A6: DJB98-18 | B6: 0.1069 | C6: 0.0429 | D6: 0.1976 | E6: 25.2 | F6: 0.731468254 | G6: =[1]!AgePb6U8(F6) -> 3538.886384 | H6: 121 | I6: 0.3174958678 | J6: =[1]!AgePb8Th2(I6) -> 5573.175644 | K6: 4.65 | L6: 18.433 | M6: 15.524 | N6: 0.8421852113 | O6: =[1]!AgePb76($N$6) -> 4994.806822 | P6: 38.417 | Q6: 17.92 | R6: 15.5 | S6: 37.64 | W6: 42203
A7: DJB98-20 | B7: 1.163 | C7: 0.694 | D7: 2.227 | E7: 39 | F7: 0.4971538462 | G7: =[1]!AgePb6U8(F7) -> 2601.552746 | H7: 129 | I7: 0.3078682171 | J7: =[1]!AgePb8Th2(I7) -> 5424.931712 | K7: 3.21 | L7: 19.389 | M7: 15.584 | N7: 0.8037547063 | O7: =[1]!AgePb76($N$7) -> 4928.404459 | P7: 39.715 | Q7: 18.59 | R7: 15.54 | S7: 38.88 | W7: 42192
A8: Bar | F8: 0 | I8: 0 | N8: 0 | W8: 41604
A9: BAR98-1 | B9: 0.1317 | C9: 0.0117 | D9: 0.0303 | E9: 5.56 | F9: 3.232014388 | G9: =[1]!AgePb6U8(F9) -> 9300.100528 | H9: 14.9 | I9: 2.546845638 | J9: =[1]!AgePb8Th2(I9) -> 25589.86671 | K9: 2.59 | L9: 17.97 | M9: 15.479 | N9: 0.8613800779 | O9: =[1]!AgePb76($N$9) -> 5026.777016 | P9: 37.948 | Q9: 17.86 | R9: 15.47 | S9: 37.85 | W9: 41343
A10: BAR98-6 | B10: 3.28 | C10: 0.7946 | D10: 3.936 | E10: 15.8 | F10: 1.210886076 | G10: =[1]!AgePb6U8(F10) -> 5114.542301 | H10: 80.7 | I10: 0.4897645601 | J10: =[1]!AgePb8Th2(I10) -> 8056.959962 | K10: 4.95 | L10: 19.132 | M10: 15.629 | N10: 0.816903617 | O10: =[1]!AgePb76($N$10) -> 4951.496836 | P10: 39.524 | Q10: 18.81 | R10: 15.61 | S10: 39 | W10: 41231
A11: Dangqiong | F11: 0 | I11: 0 | N11: 0 | W11: 39637
A12: DQ98-9 | B12: 0.2413 | C12: 0.0173 | D12: 0.0304 | E12: 4.42 | F12: 3.98800905 | G12: =[1]!AgePb6U8(F12) -> 10359.62509 | H12: 8.05 | I12: 4.653167702 | J12: =[1]!AgePb8Th2(I12) -> 35011.9463 | K12: 1.76 | L12: 17.627 | M12: 15.42 | N12: 0.8747943496 | O12: =[1]!AgePb76($N$12) -> 5048.673477 | P12: 37.458 | Q12: 17.49 | R12: 15.41 | S12: 37.38 | W12: 38125
A13: DQ98-12 | B13: 0.1074 | C13: 0.0062 | D13: 0.0093 | E13: 3.55 | F13: 4.987887324 | G13: =[1]!AgePb6U8(F13) -> 11537.39661 | H13: 5.57 | I13: 6.732495512 | J13: =[1]!AgePb8Th2(I13) -> 41342.73158 | K13: 1.52 | L13: 17.707 | M13: 15.434 | N13: 0.8716326876 | O13: =[1]!AgePb76($N$13) -> 5043.54487 | P13: 37.5 | Q13: 17.6 | R13: 15.43 | S13: 37.45 | W13: 37115
A14: DQ98-14 | B14: 0.4296 | C14: 0.0717 | D14: 0.1296 | E14: 10.4 | F14: 1.707596154 | G14: =[1]!AgePb6U8(F14) -> 6421.023131 | H14: 19.3 | I14: 1.944352332 | J14: =[1]!AgePb8Th2(I14) -> 21826.96052 | K14: 1.81 | L14: 17.759 | M14: 15.414 | N14: 0.8679542767 | O14: =[1]!AgePb76($N$14) -> 5037.553128 | P14: 37.526 | Q14: 17.43 | R14: 15.4 | S14: 37.33 | W14: 35012
A15: Xialu | F15: 0 | I15: 0 | N15: 0 | W15: 33584
A16: XL98-10 | B16: 0.235 | C16: 0.0488 | D16: 0.0947 | E16: 12.9 | F16: 1.37372093 | G16: =[1]!AgePb6U8(F16) -> 5572.65906 | H16: 25.8 | I16: 1.451085271 | J16: =[1]!AgePb8Th2(I16) -> 18120.8872 | K16: 1.94 | L16: 17.721 | M16: 15.435 | N16: 0.8710005079 | O16: =[1]!AgePb76($N$16) -> 5042.517028 | P16: 37.438 | Q16: 17.48 | R16: 15.42 | S16: 37.28 | W16: 31556
A17: Dazhuqu_Dazhuka | F17: 0 | I17: 0 | N17: 0 | W17: 31286
A18: DZ98-1 | B18: 0.5924 | C18: 0.016 | D18: 0.0492 | E18: 1.66 | F18: 10.50481928 | G18: =[1]!AgePb6U8(F18) -> 15747.08148 | H18: 5.27 | I18: 7.068880455 | J18: =[1]!AgePb8Th2(I18) -> 42203.43089 | K18: 3.07 | L18: 17.438 | M18: 15.395 | N18: 0.882842069 | O18: =[1]!AgePb76($N$18) -> 5061.639635 | P18: 37.253 | Q18: 17.41 | R18: 15.39 | S18: 37.22 | W18: 30740
A19: DZ98-12 | B19: 0.3986 | C19: 0.0392 | D19: 0.0798 | E19: 6.06 | F19: 2.898184818 | G19: =[1]!AgePb6U8(F19) -> 8770.417493 | H19: 12.7 | I19: 2.939055118 | J19: =[1]!AgePb8Th2(I19) -> 27709.77012 | K19: 2.04 | L19: 17.563 | M19: 15.404 | N19: 0.8770711154 | O19: =[1]!AgePb76($N$19) -> 5052.354506 | P19: 37.326 | Q19: 17.45 | R19: 15.4 | S19: 37.25 | W19: 29705
A20: L | B20: 0.3539 | C20: 0.0404 | D20: 0.0759 | E20: 7.03 | F20: 2.497866287 | G20: =[1]!AgePb6U8(F20) -> 8071.897827 | H20: 13.6 | I20: 2.742279412 | J20: =[1]!AgePb8Th2(I20) -> 26673.97462 | K20: 1.88 | L20: 17.56 | M20: 15.399 | N20: 0.8769362187 | O20: =[1]!AgePb76($N$20) -> 5052.13669 | P20: 37.295 | Q20: 17.43 | R20: 15.39 | S20: 37.21 | W20: 27710
A21: DZ98-19 | B21: 0.3676 | C21: 0.0336 | D21: 0.0803 | E21: 5.64 | F21: 3.117198582 | G21: =[1]!AgePb6U8(F21) -> 9122.791144 | H21: 13.9 | I21: 2.686258993 | J21: =[1]!AgePb8Th2(I21) -> 26369.11815 | K21: 2.39 | L21: 17.581 | M21: 15.401 | N21: 0.8760025027 | O21: =[1]!AgePb76($N$21) -> 5050.628059 | P21: 37.339 | Q21: 17.48 | R21: 15.4 | S21: 37.26 | W21: 27422
A22: Langceling | F22: 0 | I22: 0 | N22: 0 | W22: 26674
A23: LC98-3 | B23: 0.3086 | C23: 0.1204 | D23: 0.0504 | E23: 24.3 | F23: 0.7460082305 | G23: =[1]!AgePb6U8(F23) -> 3592.794013 | H23: 10.5 | I23: 3.576190476 | J23: =[1]!AgePb8Th2(I23) -> 30740.10871 | K23: 0.42 | L23: 18.128 | M23: 15.465 | N23: 0.8531001765 | O23: =[1]!AgePb76($N$23) -> 5013.080084 | P23: 37.55 | Q23: 17.67 | R23: 15.44 | S23: 37.49 | W23: 26369
A24: LC98-4 | B24: 0.5855 | C24: 0.2319 | D24: 0.0558 | E24: 24.7 | F24: 0.7339676113 | G24: =[1]!AgePb6U8(F24) -> 3548.18501 | H24: 6.14 | I24: 6.106840391 | J24: =[1]!AgePb8Th2(I24) -> 39637.34726 | K24: 0.24 | L24: 18.129 | M24: 15.465 | N24: 0.8530531193 | O24: =[1]!AgePb76($N$24) -> 5013.001838 | P24: 37.496 | Q24: 17.66 | R24: 15.44 | S24: 37.46 | W24: 25972
A25: LC98-6 | B25: 0.2784 | C25: 0.0154 | D25: 0.0239 | E25: 3.42 | F25: 5.195614035 | G25: =[1]!AgePb6U8(F25) -> 11757.23854 | H25: 5.5 | I25: 6.833090909 | J25: =[1]!AgePb8Th2(I25) -> 41603.98553 | K25: 1.55 | L25: 17.769 | M25: 15.456 | N25: 0.8698294783 | O25: =[1]!AgePb76($N$25) -> 5040.610993 | P25: 37.582 | Q25: 17.71 | R25: 15.45 | S25: 37.55 | W25: 25590
A26: Luobusha | F26: 0 | I26: 0 | N26: 0 | W26: 25096
A27: LB98-1 | B27: 0.5073 | C27: 0.0441 | D27: 0.0444 | E27: 5.42 | F27: 3.315867159 | G27: =[1]!AgePb6U8(F27) -> 9426.580294 | H27: 5.64 | I27: 6.689893617 | J27: =[1]!AgePb8Th2(I27) -> 41231.06517 | K27: 1.01 | L27: 17.972 | M27: 15.478 | N27: 0.8612285778 | O27: =[1]!AgePb76($N$27) -> 5026.527656 | P27: 37.731 | Q27: 17.82 | R27: 15.47 | S27: 37.68 | W27: 24010
A28: L | B28: 0.6137 | C28: 0.051 | D28: 0.0841 | E28: 5.17 | F28: 3.463056093 | G28: =[1]!AgePb6U8(F28) -> 9642.763926 | H28: 8.81 | I28: 4.267650397 | J28: =[1]!AgePb8Th2(I28) -> 33584.32376 | K28: 1.65 | L28: 17.904 | M28: 15.442 | N28: 0.8624888293 | O28: =[1]!AgePb76($N$28) -> 5028.600536 | P28: 37.598 | Q28: 17.76 | R28: 15.44 | S28: 37.52 | W28: 22718
A29: LB98-3 | B29: 0.3781 | C29: 0.0131 | D29: 0.0397 | E29: 2.14 | F29: 8.282242991 | G29: =[1]!AgePb6U8(F29) -> 14363.27619 | H29: 6.71 | I29: 5.594336811 | J29: =[1]!AgePb8Th2(I29) -> 38124.53202 | K29: 3.04 | L29: 17.724 | M29: 15.44 | N29: 0.8711351839 | O29: =[1]!AgePb76($N$29) -> 5042.73606 | P29: 37.538 | Q29: 17.66 | R29: 15.44 | S29: 37.48 | W29: 22307
A30: Southern | B30: Iran | F30: 0 | I30: 0 | N30: 0 | W30: 22228
A31: Band-e-Zeyarat | F31: 0 | I31: 0 | N31: 0 | W31: 21827
A32: BZ96-4 | B32: 0.5227 | C32: 0.0574 | D32: 0.2223 | E32: 6.92 | F32: 2.631791908 | G32: =[1]!AgePb6U8(F32) -> 8314.109041 | H32: 27.7 | I32: 1.381227437 | J32: =[1]!AgePb8Th2(I32) -> 17536.45446 | K32: 3.88 | L32: 18.212 | M32: 15.523 | N32: 0.8523500988 | O32: =[1]!AgePb76($N$32) -> 5011.83231 | P32: 38.26 | Q32: 18.06 | R32: 15.52 | S32: 38.06 | W32: 21560
A33: BZ96-6 | B33: 2.002 | C33: 0.1221 | D33: 0.5148 | E33: 3.83 | F33: 4.724804178 | G33: =[1]!AgePb6U8(F33) -> 11247.75725 | H33: 16.7 | I33: 2.280239521 | J33: =[1]!AgePb8Th2(I33) -> 24010.43849 | K33: 4.22 | L33: 18.096 | M33: 15.49 | N33: 0.8559902741 | O33: =[1]!AgePb76($N$33) -> 5017.87697 | P33: 38.08 | Q33: 18.01 | R33: 15.49 | S33: 37.96 | W33: 19910
A34: BZ96-10 | B34: 0.9802 | C34: 0.1075 | D34: 0.5083 | E34: 6.91 | F34: 2.632272069 | G34: =[1]!AgePb6U8(F34) -> 8314.961269 | H34: 33.8 | I34: 1.131745562 | J34: =[1]!AgePb8Th2(I34) -> 15299.46755 | K34: 4.73 | L34: 18.189 | M34: 15.509 | N34: 0.8526582 | O34: =[1]!AgePb76($N$34) -> 5012.344986 | P34: 38.253 | Q34: 18.03 | R34: 15.5 | S34: 38.01 | W34: 19594
F35: 0 | I35: 0 | N35: 0 | W35: 19148
F36: 0 | I36: 0 | N36: 0 | W36: 18765
A37: BZ97-4-1 | B37: 1.073 | C37: 0.0641 | D37: 0.0638 | E37: 3.7 | F37: 4.782972973 | G37: =[1]!AgePb6U8(F37) -> 11312.92768 | H37: 3.79 | I37: 9.883641161 | J37: =[1]!AgePb8Th2(I37) -> 48251.86157 | K37: 1 | L37: 17.697 | M37: 15.404 | N37: 0.8704300164 | O37: =[1]!AgePb76($N$37) -> 5041.588803 | P37: 37.459 | Q37: 17.61 | R37: 15.4 | S37: 37.43 | W37: 18607
A38: L | B38: 0.9223 | C38: 0.0518 | D38: 0.0614 | E38: 3.47 | F38: 5.101440922 | G38: =[1]!AgePb6U8(F38) -> 11658.50095 | H38: 4.26 | I38: 8.792723005 | J38: =[1]!AgePb8Th2(I38) -> 46117.0199 | K38: 1.19 | L38: 17.702 | M38: 15.405 | N38: 0.8702406508 | O38: =[1]!AgePb76($N$38) -> 5041.280551 | P38: 37.457 | Q38: 17.62 | R38: 15.4 | S38: 37.43 | W38: 18121
A39: BZ97-11-5 | B39: 2.3 | C39: 0.2417 | D39: 0.8237 | E39: 6.61 | F39: 2.742662632 | G39: =[1]!AgePb6U8(F39) -> 8507.95998 | H39: 23.3 | I39: 1.636351931 | J39: =[1]!AgePb8Th2(I39) -> 19593.65573 | K39: 3.41 | L39: 18.129 | M39: 15.498 | N39: 0.8548734072 | O39: =[1]!AgePb76($N$39) -> 5016.025274 | P39: 38.127 | Q39: 17.98 | R39: 15.49 | S39: 37.96 | W39: 17797
A40: BZ97-14-1 | B40: 0.9133 | C40: 0.272 | D40: 0.6934 | E40: 18.9 | F40: 0.9794179894 | G40: =[1]!AgePb6U8(F40) -> 4401.630019 | H40: 49.9 | I40: 0.7699599198 | J40: =[1]!AgePb8Th2(I40) -> 11540.31131 | K40: 2.55 | L40: 18.511 | M40: 15.537 | N40: 0.8393387715 | O40: =[1]!AgePb76($N$40) -> 4990.000092 | P40: 38.421 | Q40: 18.09 | R40: 15.52 | S40: 38.07 | W40: 17787
A41: BZ97-14-2 | B41: 1.981 | C41: 0.2925 | D41: 0.6934 | E41: 9.33 | F41: 1.963129689 | G41: =[1]!AgePb6U8(F41) -> 7002.391859 | H41: 22.8 | I41: 1.677938596 | J41: =[1]!AgePb8Th2(I41) -> 19910.00138 | K41: 2.37 | L41: 18.316 | M41: 15.528 | N41: 0.8477833588 | O41: =[1]!AgePb76($N$41) -> 5004.210164 | P41: 38.257 | Q41: 18.11 | R41: 15.52 | S41: 38.1 | W41: 17591
A42: BZ97-14-6 | B42: 0.4535 | C42: 0.0987 | D42: 0.2942 | E42: 13.8 | F42: 1.33326087 | G42: =[1]!AgePb6U8(F42) -> 5461.832741 | H42: 42.5 | I42: 0.9030823529 | J42: =[1]!AgePb8Th2(I42) -> 13006.06089 | K42: 2.98 | L42: 18.399 | M42: 15.533 | N42: 0.8442306647 | O42: =[1]!AgePb76($N$42) -> 4998.250296 | P42: 38.381 | Q42: 18.09 | R42: 15.52 | S42: 38.08 | W42: 17536
A43: Neyriz | F43: 0 | I43: 0 | N43: 0 | W43: 17054
A44: N95-28 | B44: 0.404 | C44: 0.0471 | D44: 0.0965 | E44: 7.3 | F44: 2.472191781 | G44: =[1]!AgePb6U8(F44) -> 8024.406328 | H44: 15.4 | I44: 2.461233766 | J44: =[1]!AgePb8Th2(I44) -> 25096.01021 | K44: 2.05 | L44: 18.047 | M44: 15.473 | N44: 0.8573724165 | O44: =[1]!AgePb76($N$44) -> 5020.164927 | P44: 37.903 | Q44: 17.94 | R44: 15.47 | S44: 37.83 | W44: 16053
A45: N95-33 | B45: 0.156 | C45: 0.0508 | D45: 0.1308 | E45: 20.5 | F45: 0.8914634146 | G45: =[1]!AgePb6U8(F45) -> 4108.627384 | H45: 54.5 | I45: 0.6977981651 | J45: =[1]!AgePb8Th2(I45) -> 10698.98362 | K45: 2.58 | L45: 18.275 | M45: 15.464 | N45: 0.8461833105 | O45: =[1]!AgePb76($N$45) -> 5001.529272 | P45: 38.03 | Q45: 17.98 | R45: 15.45 | S45: 37.78 | W45: 15747
A46: N96-61 | B46: 0.4373 | C46: 0.0747 | D46: 0.1813 | E46: 10.7 | F46: 1.697943925 | G46: =[1]!AgePb6U8(F46) -> 6398.001442 | H46: 26.9 | I46: 1.410966543 | J46: =[1]!AgePb8Th2(I46) -> 17787.32132 | K46: 2.43 | L46: 18.168 | M46: 15.473 | N46: 0.8516622633 | O46: =[1]!AgePb76($N$46) -> 5010.687052 | P46: 37.955 | Q46: 18.01 | R46: 15.47 | S46: 37.83 | W46: 15299
A47: N96-62 | B47: 0.3697 | C47: 0.0639 | D47: 0.1414 | E47: 10.8 | F47: 1.680740741 | G47: =[1]!AgePb6U8(F47) -> 6356.764881 | H47: 24.8 | I47: 1.530403226 | J47: =[1]!AgePb8Th2(I47) -> 18764.60167 | K47: 2.21 | L47: 18.152 | M47: 15.477 | N47: 0.8526333186 | O47: =[1]!AgePb76($N$47) -> 5012.303591 | P47: 37.954 | Q47: 18 | R47: 15.47 | S47: 37.84 | W47: 15067
A48: N96-64 | B48: 0.2389 | C48: 0.0659 | D48: 0.1488 | E48: 17.3 | F48: 1.053583815 | G48: =[1]!AgePb6U8(F48) -> 4638.752421 | H48: 40.4 | I48: 0.9408663366 | J48: =[1]!AgePb8Th2(I48) -> 13403.42473 | K48: 2.26 | L48: 18.227 | M48: 15.474 | N48: 0.8489603336 | O48: =[1]!AgePb76($N$48) -> 5006.178765 | P48: 38.011 | Q48: 17.98 | R48: 15.46 | S48: 37.82 | W48: 14363
A49: N14B | B49: 0.3267 | C49: 0.0879 | D49: 0.2321 | E49: 16.9 | F49: 1.073905325 | G49: =[1]!AgePb6U8(F49) -> 4702.230205 | H49: 46 | I49: 0.8260652174 | J49: =[1]!AgePb8Th2(I49) -> 12171.06614 | K49: 2.64 | L49: 18.149 | M49: 15.444 | N49: 0.8509559755 | O49: =[1]!AgePb76($N$49) -> 5009.510048 | P49: 37.999 | Q49: 17.9 | R49: 15.43 | S49: 37.79 | W49: 14340
A50: Albania | F50: 0 | I50: 0 | N50: 0 | W50: 13845
A51: AL-1 | B51: 0.5491 | C51: 0.017 | D51: 0.0454 | E51: 1.94 | F51: 9.353092784 | G51: =[1]!AgePb6U8(F51) -> 15067.10907 | H51: 5.35 | I51: 7.064485981 | J51: =[1]!AgePb8Th2(I51) -> 42192.41991 | K51: 2.67 | L51: 18.145 | M51: 15.474 | N51: 0.8527969138 | O51: =[1]!AgePb76($N$51) -> 5012.575739 | P51: 37.795 | Q51: 18.1 | R51: 15.47 | S51: 37.75 | W51: 13772
A52: AL-2 | B52: 0.3164 | C52: 0.0255 | D52: 0.092 | E52: 5.11 | F52: 3.037181996 | G52: =[1]!AgePb6U8(F52) -> 8996.273475 | H52: 19 | I52: 2.015105263 | J52: =[1]!AgePb8Th2(I52) -> 22306.91749 | K52: 3.61 | L52: 15.52 | M52: 15.501 | N52: 0.9987757732 | O52: =[1]!AgePb76($N$52) -> 5235.651057 | P52: 38.287 | Q52: 18.39 | R52: 15.49 | S52: 38.13 | W52: 13652
A53: L | B53: 0.2223 | C53: 0.0215 | D53: 0.0626 | E53: 6.08 | F53: 3.010526316 | G53: =[1]!AgePb6U8(F53) -> 8953.569596 | H53: 18.3 | I53: 2.076994536 | J53: =[1]!AgePb8Th2(I53) -> 22717.60122 | K53: 2.91 | L53: 18.304 | M53: 15.488 | N53: 0.8461538462 | O53: =[1]!AgePb76($N$53) -> 5001.479854 | P53: 38.009 | Q53: 18.15 | R53: 15.48 | S53: 37.86 | W53: 13580
A54: AL-4 | B54: 0.1091 | C54: 0.0565 | D54: 0.1225 | E54: 33 | F54: 0.5642424242 | G54: =[1]!AgePb6U8(F54) -> 2884.136231 | H54: 73.9 | I54: 0.521759134 | J54: =[1]!AgePb8Th2(I54) -> 8486.447512 | K54: 2.17 | L54: 18.62 | M54: 15.531 | N54: 0.8341031149 | O54: =[1]!AgePb76($N$54) -> 4981.113336 | P54: 38.558 | Q54: 17.76 | R54: 15.49 | S54: 37.95 | W54: 13404
A55: IA-509 | B55: 0.1036 | C55: 0.0214 | D55: 0.0587 | E55: 13.2 | F55: 1.428484848 | G55: =[1]!AgePb6U8(F55) -> 5719.694077 | H55: 37.4 | I55: 1.032941176 | J55: =[1]!AgePb8Th2(I55) -> 14340.24457 | K55: 2.74 | L55: 18.856 | M55: 15.491 | N55: 0.8215422147 | O55: =[1]!AgePb76($N$55) -> 4959.549039 | P55: 38.632 | Q55: 18.51 | R55: 15.47 | S55: 38.32 | W55: 13403
A56: RU-124 | B56: 0.4869 | C56: 0.0209 | D56: 0.077 | E56: 2.68 | F56: 6.754850746 | G56: =[1]!AgePb6U8(F56) -> 13204.30975 | H56: 10.2 | I56: 3.701470588 | J56: =[1]!AgePb8Th2(I56) -> 31286.01012 | K56: 3.69 | L56: 18.103 | M56: 15.47 | N56: 0.8545544937 | O56: =[1]!AgePb76($N$56) -> 5015.496064 | P56: 37.755 | Q56: 18.03 | R56: 15.47 | S56: 37.67 | W56: 13204
A57: RU-143 | B57: 0.0845 | C57: 0.0404 | D57: 0.1822 | E57: 30.7 | F57: 0.6159609121 | G57: =[1]!AgePb6U8(F57) -> 3093.826087 | H57: 143 | I57: 0.2723986014 | J57: =[1]!AgePb8Th2(I57) -> 4869.202258 | K57: 4.51 | L57: 18.91 | M57: 15.529 | N57: 0.8212057113 | O57: =[1]!AgePb76($N$57) -> 4958.966527 | P57: 38.953 | Q57: 18.11 | R57: 15.49 | S57: 37.78 | W57: 13006
F58: 0 | I58: 0 | N58: 0 | W58: 12780
F59: 0 | I59: 0 | N59: 0 | W59: 12171
A60: 95/10-13A | B60: 1.983 | C60: 0.4627 | D60: 1.661 | E60: 15.1 | F60: 1.270529801 | G60: =[1]!AgePb6U8(F60) -> 5286.144702 | H60: 56.1 | I60: 0.6993939394 | J60: =[1]!AgePb8Th2(I60) -> 10717.97233 | K60: 3.59 | L60: 19.185 | M60: 15.567 | N60: 0.8114151681 | O60: =[1]!AgePb76($N$60) -> 4941.90633 | P60: 39.236 | Q60: 18.8 | R60: 15.55 | S60: 38.79 | W60: 11757
A61: L | B61: 2.293 | C61: 0.1413 | D61: 0.2544 | E61: 3.96 | F61: 4.779040404 | G61: =[1]!AgePb6U8(F61) -> 11308.54246 | H61: 7.37 | I61: 5.273134328 | J61: =[1]!AgePb8Th2(I61) -> 37115.23239 | K61: 1.8 | L61: 18.925 | M61: 15.552 | N61: 0.8217701453 | O61: =[1]!AgePb76($N$61) -> 4959.94346 | P61: 38.863 | Q61: 18.83 | R61: 15.55 | S61: 38.8 | W61: 11659
A62: 95/10-15A | B62: 5.797 | C62: 1.243 | D62: 5.112 | E62: 14 | F62: 1.384214286 | G62: =[1]!AgePb6U8(F62) -> 5601.093506 | H62: 59.4 | I62: 0.6646296296 | J62: =[1]!AgePb8Th2(I62) -> 10300.20524 | K62: 4.11 | L62: 19.379 | M62: 15.592 | N62: 0.8045822798 | O62: =[1]!AgePb76($N$62) -> 4929.869672 | P62: 39.479 | Q62: 19.03 | R62: 15.58 | S62: 39.01 | W62: 11540
A63: L | B63: 2.24 | C63: 0.3936 | D63: 0.943 | E63: 11.4 | F63: 1.685877193 | G63: =[1]!AgePb6U8(F63) -> 6369.10476 | H63: 28.1 | I63: 1.387615658 | J63: =[1]!AgePb8Th2(I63) -> 17590.60607 | K63: 2.4 | L63: 19.219 | M63: 15.559 | N63: 0.8095634528 | O63: =[1]!AgePb76($N$63) -> 4938.655073 | P63: 38.992 | Q63: 18.93 | R63: 15.54 | S63: 38.77 | W63: 11537
A64: 96/23-4 | B64: 2.4 | C64: 0.4771 | D64: 2.634 | E64: 12.9 | F64: 1.482170543 | G64: =[1]!AgePb6U8(F64) -> 5860.650419 | H64: 73.4 | I64: 0.5327520436 | J64: =[1]!AgePb8Th2(I64) -> 8631.932106 | K64: 5.52 | L64: 19.12 | M64: 15.619 | N64: 0.8168933054 | O64: =[1]!AgePb76($N$64) -> 4951.478882 | P64: 39.104 | Q64: 18.8 | R64: 15.6 | S64: 38.52 | W64: 11427
A65: L | B65: 0.8582 | C65: 0.115 | D65: 0.2638 | E65: 8.62 | F65: 2.202784223 | G65: =[1]!AgePb6U8(F65) -> 7503.758267 | H65: 20.4 | I65: 1.905784314 | J65: =[1]!AgePb8Th2(I65) -> 21560.45157 | K65: 2.29 | L65: 18.988 | M65: 15.593 | N65: 0.821202865 | O65: =[1]!AgePb76($N$65) -> 4958.961599 | P65: 38.878 | Q65: 18.77 | R65: 15.58 | S65: 38.72 | W65: 11377
A66: 96/24-1 | B66: 1.39 | C66: 0.2542 | D66: 1.074 | E66: 11.8 | F66: 1.623983051 | G66: =[1]!AgePb6U8(F66) -> 6218.813291 | H66: 51.6 | I66: 0.7557170543 | J66: =[1]!AgePb8Th2(I66) -> 11377.00559 | K66: 4.23 | L66: 19.163 | M66: 15.609 | N66: 0.8145384334 | O66: =[1]!AgePb76($N$66) -> 4947.372347 | P66: 38.995 | Q66: 18.87 | R66: 15.59 | S66: 38.58 | W66: 11366
A67: L | B67: 0.5053 | C67: 0.0835 | D67: 0.2092 | E67: 10.6 | F67: 1.784716981 | G67: =[1]!AgePb6U8(F67) -> 6602.070882 | H67: 27.4 | I67: 1.412116788 | J67: =[1]!AgePb8Th2(I67) -> 17796.96205 | K67: 2.51 | L67: 18.918 | M67: 15.593 | N67: 0.8242414632 | O67: =[1]!AgePb76($N$67) -> 4964.212482 | P67: 38.692 | Q67: 18.65 | R67: 15.58 | S67: 38.47 | W67: 11313
A68: 96/8-10A | B68: 9.043 | C68: 1.318 | D68: 7.057 | E68: 9.43 | F68: 1.987910923 | G68: =[1]!AgePb6U8(F68) -> 7056.080291 | H68: 52.2 | I68: 0.7547318008 | J68: =[1]!AgePb8Th2(I68) -> 11365.65993 | K68: 5.35 | L68: 18.746 | M68: 15.714 | N68: 0.8382588286 | O68: =[1]!AgePb76($N$68) -> 4988.171878 | P68: 39.397 | Q68: 18.55 | R68: 15.7 | S68: 39.05 | W68: 11309
A69: L | B69: 6.352 | C69: 0.8176 | D69: 3.088 | E69: 8.31 | F69: =(L69/E69) -> 2.252948255 | G69: =[1]!AgePb6U8(F69) -> 7603.943533 | H69: 32.4 | I69: =(P69/H69) -> 1.212746914 | J69: =[1]!AgePb8Th2(I69) -> 16053.25298 | K69: 3.78 | L69: 18.722 | M69: 15.701 | N69: =(M69/L69) -> 0.8386390343 | O69: =[1]!AgePb76($N$69) -> 4988.815806 | P69: 39.293 | Q69: 18.55 | R69: 15.69 | S69: 39.08 | W69: 11248
A70: 96/34-2 | B70: 0.9777 | C70: 0.1942 | D70: 0.6091 | E70: 12.5 | F70: 1.4616 | G70: =[1]!AgePb6U8(F70) -> 5807.004319 | H70: 40.6 | I70: 0.94091133 | J70: =[1]!AgePb8Th2(I70) -> 13403.89329 | K70: 3.14 | L70: 18.27 | M70: 15.53 | N70: 0.8500273673 | O70: =[1]!AgePb76($N$70) -> 5007.960975 | P70: 38.201 | Q70: 18.01 | R70: 15.52 | S70: 37.93 | W70: 11241
A71: 96/34-3 | B71: 0.4613 | C71: 0.1049 | D71: 0.2797 | E71: 14.3 | F71: 1.279300699 | G71: =[1]!AgePb6U8(F71) -> 5310.998776 | H71: 39.5 | I71: 0.9648607595 | J71: =[1]!AgePb8Th2(I71) -> 13651.77125 | K71: 2.67 | L71: 18.294 | M71: 15.527 | N71: 0.8487482235 | O71: =[1]!AgePb76($N$71) -> 5005.824205 | P71: 38.112 | Q71: 17.99 | R71: 15.51 | S71: 37.85 | W71: 10718
A72: 96/34-4 | B72: 0.5488 | C72: 0.1069 | D72: 0.2427 | E72: 12.2 | F72: 1.48295082 | G72: =[1]!AgePb6U8(F72) -> 5862.676548 | H72: 28.7 | I72: 1.325052265 | J72: =[1]!AgePb8Th2(I72) -> 17053.91649 | K72: 2.27 | L72: 18.092 | M72: 15.523 | N72: 0.8580035375 | O72: =[1]!AgePb76($N$72) -> 5021.208364 | P72: 38.029 | Q72: 17.84 | R72: 15.51 | S72: 37.84 | W72: 10699
A73: DSDP | B73: Site | F73: 0 | I73: 0 | N73: 0 | W73: 10699
A74: 261-34R-2 | B74: 0.1198 | C74: 0.1143 | D74: 0.0457 | E74: 60.2 | F74: 0.3134717608 | G74: =[1]!AgePb6U8(F74) -> 1757.768449 | H74: 24.9 | I74: 1.510763052 | J74: =[1]!AgePb8Th2(I74) -> 18607.10888 | K74: 0.4 | L74: 18.871 | M74: 15.525 | N74: 0.8226909014 | O74: =[1]!AgePb76($N$74) -> 4961.535593 | P74: 37.618 | Q74: 17.44 | R74: 15.45 | S74: 37.43 | W74: 10360
A75: 261-35R-2 | B75: 0.2998 | C75: 0.2874 | D75: 0.0518 | E75: 60.3 | F75: 0.3114593698 | G75: =[1]!AgePb6U8(F75) -> 1747.884222 | H75: 11.2 | I75: 3.347678571 | J75: =[1]!AgePb8Th2(I75) -> 29704.74059 | K75: 0.18 | L75: 18.781 | M75: 15.515 | N75: 0.8261008466 | O75: =[1]!AgePb76($N$75) -> 4967.415472 | P75: 37.494 | Q75: 17.34 | R75: 15.44 | S75: 37.41 | W75: 10300
A76: L | B76: 0.1513 | C76: 0.157 | D76: 0.0089 | E76: 65.4 | F76: 0.2889908257 | G76: =[1]!AgePb6U8(F76) -> 1636.484168 | H76: 3.85 | I76: 9.735844156 | J76: =[1]!AgePb8Th2(I76) -> 47975.50407 | K76: 0.06 | L76: 18.9 | M76: 15.524 | N76: 0.8213756614 | O76: =[1]!AgePb76($N$76) -> 4959.260755 | P76: 37.483 | Q76: 17.34 | R76: 15.45 | S76: 37.45 | W76: 9643
A77: 261-35R-4 | B77: 0.6038 | C77: 1.011 | D77: 0.4523 | E77: 108 | F77: 0.1868888889 | G77: =[1]!AgePb6U8(F77) -> 1104.499627 | H77: 50.1 | I77: 0.7600399202 | J77: =[1]!AgePb8Th2(I77) -> 11426.71027 | K77: 0.45 | L77: 20.184 | M77: 15.609 | N77: 0.7733353151 | O77: =[1]!AgePb76($N$77) -> 4873.403178 | P77: 38.078 | Q77: 17.6 | R77: 15.48 | S77: 37.7 | W77: 9427
A78: L | B78: 0.219 | C78: 0.157 | D78: 0.3274 | E78: 47.1 | F78: 0.4460934183 | G78: =[1]!AgePb6U8(F78) -> 2377.861249 | H78: 101 | I78: 0.3790990099 | J78: =[1]!AgePb8Th2(I78) -> 6496.824549 | K78: 2.09 | L78: 21.011 | M78: 15.671 | N78: 0.7458474133 | O78: =[1]!AgePb76($N$78) -> 4821.682612 | P78: 38.289 | Q78: 19.89 | R78: 15.62 | S78: 37.52 | W78: 9357
A79: 261-37R-2 | B79: 0.1927 | C79: 0.0393 | D79: 0.0561 | E79: 12.7 | F79: 1.42992126 | G79: =[1]!AgePb6U8(F79) -> 5723.505905 | H79: 18.8 | I79: 2.003404255 | J79: =[1]!AgePb8Th2(I79) -> 22228.32536 | K79: 1.43 | L79: 18.16 | M79: 15.497 | N79: 0.8533590308 | O79: =[1]!AgePb76($N$79) -> 5013.510425 | P79: 37.664 | Q79: 17.86 | R79: 15.48 | S79: 37.52 | W79: 9300
A80: L | B80: 0.0758 | C80: 0.0181 | D80: 0.0118 | E80: 15 | F80: 1.212733333 | G80: =[1]!AgePb6U8(F80) -> 5119.926213 | H80: 10 | I80: 3.7646 | J80: =[1]!AgePb8Th2(I80) -> 31555.60562 | K80: 0.65 | L80: 18.191 | M80: 15.489 | N80: 0.8514650102 | O80: =[1]!AgePb76($N$80) -> 5010.358441 | P80: 37.646 | Q80: 17.83 | R80: 15.47 | S80: 37.57 | W80: 9123
A81: ODP | B81: Site | F81: 0 | I81: 0 | N81: 0 | W81: 9014
A82: 765C-63R-4 | B82: 0.314 | C82: 0.5413 | D82: 0.0621 | E82: 110 | F82: 0.1793454545 | G82: =[1]!AgePb6U8(F82) -> 1063.397808 | H82: 13 | I82: 2.883307692 | J82: =[1]!AgePb8Th2(I82) -> 27421.67334 | K82: 0.12 | L82: 19.728 | M82: 15.552 | N82: 0.7883211679 | O82: =[1]!AgePb76($N$82) -> 4900.781454 | P82: 37.483 | Q82: 17.05 | R82: 15.42 | S82: 37.38 | W82: 8996
A83: 765D-21R-1 | B83: 0.3425 | C83: 0.0716 | D83: 0.1268 | E83: 13.1 | F83: 1.383587786 | G83: =[1]!AgePb6U8(F83) -> 5599.399361 | H83: 23.9 | I83: 1.578828452 | J83: =[1]!AgePb8Th2(I83) -> 19147.75558 | K83: 1.77 | L83: 18.125 | M83: 15.475 | N83: 0.8537931034 | O83: =[1]!AgePb76($N$83) -> 5014.231752 | P83: 37.734 | Q83: 17.81 | R83: 15.46 | S83: 37.55 | W83: 8954
A84: Paleotethyan | B84: sites | F84: 0 | I84: 0 | N84: 0 | W84: 8770
A85: Mayodia | B85: 275 | F85: 0 | I85: 0 | N85: 0 | W85: 8632
A86: AP-146 | B86: 1.216 | C86: 0.3671 | D86: 1.208 | E86: 19 | F86: 0.9608421053 | G86: =[1]!AgePb6U8(F86) -> 4340.847874 | H86: 64.6 | I86: 0.5886996904 | J86: =[1]!AgePb8Th2(I86) -> 9356.561432 | K86: 3.29 | L86: 18.256 | M86: 15.485 | N86: 0.8482142857 | O86: =[1]!AgePb76($N$86) -> 5004.931266 | P86: 38.03 | Q86: 17.43 | R86: 15.44 | S86: 37.15 | W86: 8508
A87: AP-148 | B87: 1.089 | C87: 0.1762 | D87: 0.8593 | E87: 10.1 | F87: 1.779108911 | G87: =[1]!AgePb6U8(F87) -> 6589.075524 | H87: 51 | I87: 0.7439803922 | J87: =[1]!AgePb8Th2(I87) -> 11241.43673 | K87: 4.88 | L87: 17.969 | M87: 15.46 | N87: 0.8603706383 | O87: =[1]!AgePb76($N$87) -> 5025.114662 | P87: 37.943 | Q87: 17.53 | R87: 15.44 | S87: 37.24 | W87: 8486
A88: Lancang | F88: 0 | I88: 0 | N88: 0 | W88: 8315
A89: HN-4 | B89: 0.593 | C89: 0.0274 | D89: 0.0255 | E89: 2.94 | F89: 6.26122449 | G89: =[1]!AgePb6U8(F89) -> 12780.32862 | H89: 2.82 | I89: 13.61205674 | J89: =[1]!AgePb8Th2(I89) -> 54206.10393 | K89: 0.93 | L89: 18.408 | M89: 15.604 | N89: 0.8476749239 | O89: =[1]!AgePb76($N$89) -> 5004.02865 | P89: 38.386 | Q89: 18.27 | R89: 15.6 | S89: 38.34 | W89: 8314
A90: Ailaoshan | F90: 0 | I90: 0 | N90: 0 | W90: 8072
A91: LZK | B91: 1.551 | C91: 0.0623 | D91: 0.0525 | E91: 2.56 | F91: 7.219921875 | G91: =[1]!AgePb6U8(F91) -> 13579.7628 | H91: 2.23 | I91: 17.3367713 | J91: =[1]!AgePb8Th2(I91) -> 58795.52106 | K91: 0.84 | L91: 18.483 | M91: 15.682 | N91: 0.8484553373 | O91: =[1]!AgePb76($N$91) -> 5005.334466 | P91: 38.661 | Q91: 18.34 | R91: 15.67 | S91: 38.62 | W91: 8057
A92: Changning_Menglian | B92: 350 | F92: 0 | I92: 0 | N92: 0 | W92: 8024
A93: MW-10 | B93: 0.4615 | C93: 0.043 | D93: 0.1038 | E93: 5.78 | F93: 3.048442907 | G93: =[1]!AgePb6U8(F93) -> 9014.229426 | H93: 14.4 | I93: 2.614513889 | J93: =[1]!AgePb8Th2(I93) -> 25971.85197 | K93: 2.41 | L93: 17.62 | M93: 15.437 | N93: 0.8761066969 | O93: =[1]!AgePb76($N$93) -> 5050.796493 | P93: 37.649 | Q93: 17.3 | R93: 15.42 | S93: 37.4 | W93: 7604
A94: MX | B94: 0.5 | C94: 0.1218 | D94: 0.4234 | E94: 15.7 | F94: 1.18611465 | G94: =[1]!AgePb6U8(F94) -> 5041.907079 | H94: 56.2 | I94: 0.6978113879 | J94: =[1]!AgePb8Th2(I94) -> 10699.14104 | K94: 3.48 | L94: 18.622 | M94: 15.542 | N94: 0.8346042316 | O94: =[1]!AgePb76($N$94) -> 4981.966469 | P94: 39.217 | Q94: 17.75 | R94: 15.5 | S94: 38.24 | W94: 7504
F95: Average | G95: =AVERAGE(G4:G94) -> 7014.140251 | J95: =AVERAGE(J4:J94) -> 22675.45055 | O95: =AVERAGE(O4:O94) -> 4998.740802 | W95: 7056
F96: Maximum | G96: =MAX(G4:G94) -> 15747.08148 | J96: =MAX(J4:J94) -> 58795.52106 | O96: =MAX(O4:O94) -> 5235.651057 | W96: 7002
F97: Minimum | G97: =MIN(G4:G94) -> 1063.397808 | J97: =MIN(J4:J94) -> 4869.202258 | O97: =MIN(O4:O94) -> 4821.682612 | W97: 6602
F98: Std Deviation | G98: =STDEV(G4:G94) -> 3459.800138 | J98: =STDEV(J4:J94) -> 12915.84281 | O98: =STDEV(O4:O94) -> 52.63966988 | W98: 6589
W99: 6497
W100: 6421
G101: Table 2 | W101: 6398
W102: 6369
G103: 206Pb/238U | H103: MAXIMUM | I103: MINIMUM | J103: DIFFERENCE | K103: AVERAGE | L103: 4600 To 4999 | M103: 5000 To 5999 | N103: 6,000 To 9999 | O103: 10,000 To 19,999 | P103: Over 19,999 | Q103: Total | W103: 6357
H104: 15747.08148 | I104: 1063.397808 | J104: 14683.68368 | K104: 7014.140251 | L104: 3 | M104: 15 | N104: 24 | O104: 13 | Q104: =SUM(L104:P104) -> 55 | W104: 6219
G105: 208Pb/232Th | H105: MAXIMUM | I105: MINIMUM | J105: DIFFERENCE | K105: AVERAGE | L105: 4600 To 4999 | M105: 5000 To 5999 | N105: 6,000 To 9999 | O105: 10,000 To 19,999 | P105: Over 19,999 | Q105: Total | W105: 5863
H106: 58795.28338 | I106: 4869.182574 | J106: 53926.10081 | K106: 22675.35889 | L106: 1 | M106: 2 | N106: 5 | O106: 30 | P106: 32 | Q106: =SUM(L106:P106) -> 70 | W106: 5861
G107: 207Pb/206Pb | H107: MAXIMUM | I107: MINIMUM | J107: DIFFERENCE | K107: AVERAGE | L107: 4600 To 4999 | M107: 5000 To 5999 | N107: 6,000 To 9999 | O107: 10,000 To 19,999 | P107: Over 19,999 | Q107: Total | W107: 5807
H108: 5235.651057 | I108: 4821.682612 | J108: 413.9684446 | K108: 4998.740802 | L108: 27 | M108: 43 | Q108: =SUM(L108:P108) -> 70 | W108: 5724
W109: 5720
F110: Dating | G110: 206Pb/238U | H110: 208Pb/232Th | I110: 207Pb/206Pb | W110: 5601
F111: Summary | G111: Age | H111: Age | I111: Age | L111: 206Pb/238U | M111: 206Pb/238U | N111: 206Pb/238U | O111: 206Pb/238U | W111: 5599
A112: 208Pb/232Th | F112: Average | G112: 7014.140251 | H112: 22675.45055 | I112: 4998.740802 | L112: Age Sorted | M112: Age Sorted | N112: Age Sorted | O112: Age Sorted | W112: 5573
A113: Age | B113: Age | C113: Age | D113: Age | F113: Maximum | G113: 15747.08148 | H113: 58795.52106 | I113: 5235.651057 | L113: 15747.08148 | M113: 10359.62509 | N113: 8071.897827 | O113: 6218.813291 | W113: 5573
A114: 58795.52106 | B114: 29704.74059 | C114: 18607.10888 | D114: 11426.71027 | F114: Minimum | G114: 1063.397808 | H114: 4869.202258 | I114: 4821.682612 | L114: 15067.10907 | M114: 9642.763926 | N114: 8024.406328 | O114: 5862.676548 | W114: 5515
A115: 54206.10393 | B115: 27709.77012 | C115: 18120.8872 | D115: 11377.00559 | F115: Std Deviation | G115: 3459.800138 | H115: 12915.84281 | I115: 52.63966988 | L115: 14363.27619 | M115: 9426.580294 | N115: 7603.943533 | O115: 5860.650419 | W115: 5462
A116: 48251.86157 | B116: 27421.67334 | C116: 17796.96205 | D116: 11365.65993 | L116: 13579.7628 | M116: 9300.100528 | N116: 7503.758267 | O116: 5807.004319 | W116: 5425
A117: 47975.50407 | B117: 26673.97462 | C117: 17787.32132 | D117: 11241.43673 | L117: 13204.30975 | M117: 9122.791144 | N117: 7056.080291 | O117: 5723.505905 | W117: 5311
A118: 46117.0199 | B118: 26369.11815 | C118: 17590.60607 | D118: 10717.97233 | L118: 12780.32862 | M118: 9014.229426 | N118: 7002.391859 | O118: 5719.694077 | W118: 5286
A119: 42203.43089 | B119: 25971.85197 | C119: 17536.45446 | D119: 10699.14104 | L119: 11757.23854 | M119: 8996.273475 | N119: 6602.070882 | O119: 5601.093506 | W119: 5236
A120: 42192.41991 | B120: 25589.86671 | C120: 17053.91649 | D120: 10698.98362 | L120: 11658.50095 | M120: 8953.569596 | N120: 6589.075524 | O120: 5599.399361 | W120: 5120
A121: 41603.98553 | B121: 25096.01021 | C121: 16053.25298 | D121: 10300.20524 | L121: 11537.39661 | M121: 8770.417493 | N121: 6421.023131 | O121: 5572.65906 | W121: 5115
A122: 41342.73158 | B122: 24010.43849 | C122: 15299.46755 | D122: 9356.561432 | L122: 11312.92768 | M122: 8507.95998 | N122: 6398.001442 | O122: 5514.915087 | W122: 5062
A123: 41231.06517 | B123: 22717.60122 | C123: 14340.24457 | D123: 8631.932106 | L123: 11308.54246 | M123: 8314.961269 | N123: 6369.10476 | O123: 5461.832741 | W123: 5052
A124: 39637.34726 | B124: 22306.91749 | C124: 13844.83397 | D124: 8486.447512 | L124: 11247.75725 | M124: 8314.109041 | N124: 6356.764881 | O124: 5310.998776 | W124: 5052
A125: 38124.53202 | B125: 22228.32536 | C125: 13772.34089 | D125: 8056.959962 | W125: 5051
A126: 37115.23239 | B126: 21826.96052 | C126: 13651.77125 | D126: 6496.824549 | W126: 5051
A127: 35011.9463 | B127: 21560.45157 | C127: 13403.89329 | D127: 5573.175644 | W127: 5049
A128: 33584.32376 | B128: 19910.00138 | C128: 13403.42473 | D128: 5424.931712 | W128: 5044
A129: 31555.60562 | B129: 19593.65573 | C129: 13006.06089 | D129: 4869.202258 | W129: 5043
A130: 31286.01012 | B130: 19147.75558 | C130: 12171.06614 | W130: 5043
A131: 30740.10871 | B131: 18764.60167 | C131: 11540.31131 | W131: 5042
A132: 29704.74059 | W132: 5042
A133: 27709.77012 | W133: 5041
A134: 27421.67334 | W134: 5041
A135: 26673.97462 | W135: 5038
A136: 26369.11815 | W136: 5029
A137: 25971.85197 | W137: 5027
A138: 25589.86671 | W138: 5027
A139: 25096.01021 | W139: 5025
A140: 24010.43849 | W140: 5021
A141: 22717.60122 | W141: 5020
A142: 22306.91749 | W142: 5018
A143: 22228.32536 | W143: 5016
A144: 21826.96052 | W144: 5015
A145: 21560.45157 | W145: 5014
A146: 19910.00138 | W146: 5014
A147: 19593.65573 | W147: 5013
A148: 19147.75558 | W148: 5013
A149: 18764.60167 | L149: 6218.813291 | W149: 5013
A150: 18607.10888 | B150: 1 | L150: 5862.676548 | W150: 5012
A151: 18120.8872 | B151: 2 | L151: 5860.650419 | W151: 5012
A152: 17796.96205 | B152: 3 | L152: 5807.004319 | W152: 5012
A153: 17787.32132 | B153: 4 | L153: 5723.505905 | W153: 5011
A154: 17590.60607 | B154: 5 | L154: 5719.694077 | W154: 5010
A155: 17536.45446 | B155: 6 | L155: 5601.093506 | W155: 5010
A156: 17053.91649 | B156: 7 | L156: 5599.399361 | W156: 5008
A157: 16053.25298 | B157: 8 | L157: 5572.65906 | W157: 5006
A158: 15299.46755 | B158: 9 | L158: 5514.915087 | W158: 5006
A159: 14340.24457 | B159: 10 | L159: 5461.832741 | W159: 5005
A160: 13844.83397 | B160: 11 | L160: 5310.998776 | W160: 5005
A161: 13772.34089 | B161: 12 | L161: 5286.144702 | W161: 5004
A162: 13651.77125 | B162: 13 | L162: 5119.926213 | W162: 5004
A163: 13403.89329 | B163: 14 | L163: 5114.542301 | W163: 5002
A164: 13403.42473 | B164: 15 | L164: 5041.907079 | W164: 5001
A165: 13006.06089 | B165: 16 | L165: 4748.558926 | W165: 4998
A166: 12171.06614 | B166: 17 | L166: 4702.230205 | W166: 4995
A167: 11540.31131 | B167: 18 | L167: 4638.752421 | W167: 4990
A168: 11426.71027 | B168: 55 | L168: 4401.630019 | W168: 4989
A169: 11377.00559 | B169: 56 | L169: 4340.847874 | W169: 4988
A170: 11365.65993 | B170: 57 | L170: 4108.627384 | W170: 4982
A171: 11241.43673 | B171: 58 | L171: 3592.794013 | W171: 4981
A172: 10717.97233 | B172: 59 | L172: 3548.18501 | W172: 4967
A173: 10699.14104 | B173: 60 | L173: 3538.886384 | W173: 4964
A174: 10698.98362 | B174: 61 | L174: 3093.826087 | W174: 4962
A175: 10300.20524 | B175: 62 | L175: 2884.136231 | W175: 4960
A176: 9356.561432 | B176: 63 | L176: 2601.552746 | W176: 4960
A177: 8631.932106 | B177: 64 | L177: 2377.861249 | W177: 4959
A178: 8486.447512 | B178: 65 | L178: 1757.768449 | W178: 4959
A179: 8056.959962 | B179: 66 | L179: 1747.884222 | W179: 4959
A180: 6496.824549 | B180: 67 | L180: 1636.484168 | W180: 4953
A181: 5573.175644 | B181: 68 | L181: 1104.499627 | W181: 4951
A182: 5424.931712 | B182: 69 | L182: 1063.397808 | W182: 4951
A183: 4869.202258 | B183: 70 | W183: 4947
A184: 0 | W184: 4947
A185: 0 | W185: 4942
A186: 0 | W186: 4939
A187: 0 | W187: 4930
A188: 0 | W188: 4928
A189: 0 | W189: 4901
A190: 0 | W190: 4873
A191: 0 | W191: 4869
A192: 0 | W192: 4822
A193: 0
A194: 0
A195: 0
A196: 0
A197: 0
A198: 0
A199: 0
A200: 0
... 4 more rows

Sheet Iso_Plot_010
A1: Sample | B1: 206Pb/204Pb | C1: 207Pb/204Pb | D1: 207Pb/206Pb | E1: Age
B2: 18.888 | C2: 15.605 | D2: =(C2/B2) -> 0.8261859382 | E2: =[1]!AgePb76($D$2) -> 4967.561868
A3: 98T04 | B3: 18.813 | C3: 15.556 | D3: =(C3/B3) -> 0.8268750332 | E3: =[1]!AgePb76($D$3) -> 4968.746833
A4: Bangdaco
A5: 02T394 | B5: 18.214 | C5: 15.501 | D5: =(C5/B5) -> 0.8510486439 | E5: =[1]!AgePb76($D$5) -> 5009.664536
A6: 02T395 | B6: 18.414 | C6: 15.513 | D6: 0.8424568263 | E6: =[1]!AgePb76($D$6) -> 4995.264591
A7: 02T396 | B7: 18.387 | C7: 15.49 | D7: 0.8424430304 | E7: =[1]!AgePb76($D$7) -> 4995.241344
A8: 98T07 | B8: 18.964 | C8: 15.702 | D8: 0.8279898756 | E8: =[1]!AgePb76($D$8) -> 4970.66169
A9: 98T15 | B9: 19.105 | C9: 15.828 | D9: 0.8284742214 | E9: =[1]!AgePb76($D$9) -> 4971.492751
A10: 98T16 | B10: 19.012 | C10: 15.731 | D10: 0.8274247843 | E10: =[1]!AgePb76($D$10) -> 4969.69143
A11: 98T33 | B11: 18.883 | C11: 15.642 | D11: 0.8283641371 | E11: =[1]!AgePb76($D$11) -> 4971.303909
A12: 98T38 | B12: 19.052 | C12: 15.766 | D12: 0.8275246693 | E12: =[1]!AgePb76($D$12) -> 4969.862983
A13: 98T43 | B13: 18.984 | C13: 15.696 | D13: 0.8268015171 | E13: =[1]!AgePb76($D$13) -> 4968.620465
A14: 98T44 | B14: 18.936 | C14: 15.675 | D14: 0.8277883397 | E14: =[1]!AgePb76($D$14) -> 4970.315734
A15: 98T46 | B15: 19.058 | C15: 15.761 | D15: 0.827001784 | E15: =[1]!AgePb76($D$15) -> 4968.964679
A16: Yulinshan
A17: 98T49 | B17: 18.946 | C17: 15.676 | D17: =(C17/B17) -> 0.8274042014 | E17: =[1]!AgePb76($D$17) -> 4969.656076
A18: 98T51 | B18: 18.967 | C18: 15.704 | D18: 0.8279643592 | E18: =[1]!AgePb76($D$18) -> 4970.617894
A19: 98T52 | B19: 18.966 | C19: 15.699 | D19: 0.8277443847 | E19: =[1]!AgePb76($D$19) -> 4970.240269
A20: 98T53 | B20: 18.944 | C20: 15.667 | D20: 0.8270164696 | E20: =[1]!AgePb76($D$20) -> 4968.989916
A21: 98T54 | B21: 18.987 | C21: 15.73 | D21: 0.828461579 | E21: =[1]!AgePb76($D$21) -> 4971.471065
A22: 98T57 | B22: 19.026 | C22: 15.744 | D22: 0.8274992116 | E22: =[1]!AgePb76($D$22) -> 4969.819262
A26: MAXIMUM | B26: MINIMUM | C26: DIFFERENCE | D26: AVERAGE | E26: 4600 To 4999 | F26: 5000 To 5999 | G26: 6,000 To 9999 | H26: 10,000 To 19,999 | I26: Over 19,999 | J26: Total
A27: 5009.664536 | B27: 4967.561868 | C27: 42.1026683 | D27: 4974.641436 | E27: 18 | F27: 1 | G27: 0 | H27: 0 | I27: 0 | J27: =SUM(E27:I27) -> 19

Sheet Iso_Plot_011
A1: Table 4 | B1: 206Pb/204Pb | C1: 207Pb/204Pb | D1: 207Pb/206Pb | E1: Age
B2: 17.487 | C2: 15.472 | D2: =(C2/B2) -> 0.8847715446 | E2: =[1]!AgePb76($D$2) -> 5064.729693
B3: 17.708 | C3: 15.488 | D3: =(C3/B3) -> 0.8746329343 | E3: =[1]!AgePb76($D$3) -> 5048.412118
B4: 18.117 | C4: 15.513 | D4: 0.856267594 | E4: =[1]!AgePb76($D$4) -> 5018.336351
B5: 18.403 | C5: 15.514 | D5: 0.8430147259 | E5: =[1]!AgePb76($D$5) -> 4996.204361
B6: 18.245 | C6: 15.506 | D6: 0.8498766785 | E6: =[1]!AgePb76($D$6) -> 5007.709432
B7: 18.322 | C7: 15.511 | D7: 0.8465778845 | E7: =[1]!AgePb76($D$7) -> 5002.190883
B8: 18.352 | C8: 15.526 | D8: 0.8460113339 | E8: =[1]!AgePb76($D$8) -> 5001.240804
B9: 17.756 | C9: 15.468 | D9: 0.8711421491 | E9: =[1]!AgePb76($D$9) -> 5042.747387
B10: 17.909 | C10: 15.49 | D10: 0.8649282484 | E10: =[1]!AgePb76($D$10) -> 5032.603808
B15: MAXIMUM | C15: MINIMUM | D15: DIFFERENCE | E15: AVERAGE | F15: 4600 To 4999 | G15: 5000 To 5999 | H15: 6,000 To 9999 | I15: 10,000 To 19,999 | J15: Over 19,999 | K15: Total
B16: 5064.729693 | C16: 4996.204361 | D16: 68.52533217 | E16: 5023.797204 | F16: 1 | G16: 8 | K16: =SUM(F16:J16) -> 9

Sheet Iso_Plot_012
A1: Sample | B1: U-238 | C1: Age | E1: U-238 | F1: Error | G1: Pb-207 | H1: Error | I1: Pb-204 | J1: Error | K1: Pb-204 | L1: Error | M1: TABLE 2
A2: Name | B2: Pb-206 | C2: Millions | E2: Pb-206 | F2: Level | G2: Pb-206 | H2: Level | I2: Pb-206 | J2: Level | K2: Pb-208 | L2: Level
A3: SHR04.1 | B3: 2.05 | C3: =[1]!AgePb6U8(1/B3) -> 2561.171942 | D3: 35 | E3: 2.05 | F3: =(E3 * (C3/100)) -> 52.50402481 | G3: 0.889 | H3: 0.012 | I3: 14.81 | J3: 0.31 | K3: 35.53 | L3: 0.96
A4: SHRO5.1 | B4: 2.5 | C4: =[1]!AgePb6U8(1/B4) -> 2169.039398 | D4: 14 | E4: 2.5 | F4: =(E4 * (C4/100)) -> 54.22598495 | G4: 0.916 | H4: 0.032 | I4: 16.24 | J4: 0.99 | K4: 33.6 | L4: 1.39
A5: SHR06.1 | B5: 3.28 | C5: =[1]!AgePb6U8(1/B5) -> 1715.452617 | D5: 29 | E5: 3.28 | F5: 56.26684583 | G5: 0.788 | H5: 0.054 | I5: 17.13 | J5: 0.76 | K5: 38.61 | L5: 1.91
A6: SHR13.1 | B6: 1.35 | C6: =[1]!AgePb6U8(1/B6) -> 3573.316588 | D6: 57 | E6: 1.35 | F6: 48.23977394 | G6: 0.876 | H6: 0.023 | I6: 15.89 | J6: 0.7 | K6: 37.72 | L6: 2
A7: SHRI5.1 | B7: 1.48 | C7: =[1]!AgePb6U8(1/B7) -> 3327.745189 | D7: 27 | E7: 1.48 | F7: 49.25062879 | G7: 0.833 | H7: 0.06 | I7: 14.36 | J7: 0.69 | K7: 36.92 | L7: 2.1
A8: SHR16.1 | B8: 2.29 | C8: =[1]!AgePb6U8(1/B8) -> 2335.7663 | D8: 18 | E8: 2.29 | F8: 53.48904826 | G8: 0.869 | H8: 0.016 | I8: 17.1 | J8: 0.59 | K8: 36.93 | L8: 1.43
A9: SHR19.1 | B9: 2.79 | C9: =[1]!AgePb6U8(1/B9) -> 1974.694106 | D9: 26 | E9: 2.79 | F9: 55.09396557 | G9: 0.821 | H9: 0.052 | I9: 16.1 | J9: 0.59 | K9: 35.57 | L9: 1.36
A10: SHR21.1 | B10: 2.16 | C10: =[1]!AgePb6U8(1/B10) -> 2452.627274 | D10: 15 | E10: 2.16 | F10: 52.97674912 | G10: 0.842 | H10: 0.023 | I10: 17.05 | J10: 0.88 | K10: 34.14 | L10: 1.1
A11: SHR26.1 | B11: 1.58 | C11: =[1]!AgePb6U8(1/B11) -> 3161.093002 | D11: 59 | E11: 1.58 | F11: 49.94526943 | G11: 0.922 | H11: 0.108 | I11: 14.33 | J11: 0.97 | K11: 35.12 | L11: 2.65
A12: SHR26.2 | B12: 1.79 | C12: =[1]!AgePb6U8(1/B12) -> 2861.086066 | D12: 42 | E12: 1.79 | F12: 51.21344058 | G12: 0.831 | H12: 0.04 | I12: 16.17 | J12: 0.95 | K12: 34.61 | L12: 2.26
A13: SHR27.1 | B13: 4.66 | C13: =[1]!AgePb6U8(1/B13) -> 1253.237351 | D13: 9.1 | E13: 4.66 | F13: 58.40086056 | G13: 0.867 | H13: 0.048 | I13: 16.26 | J13: 1.11 | K13: 38.68 | L13: 3.19
A14: SHR28.1 | B14: 4.09 | C14: =[1]!AgePb6U8(1/B14) -> 1410.042614 | D14: 29 | E14: 4.09 | F14: 57.67074292 | G14: 0.813 | H14: 0.02 | I14: 16.5 | J14: 0.56 | K14: 41.68 | L14: 1.7
A15: SHR29.1 | B15: 3.38 | C15: =[1]!AgePb6U8(1/B15) -> 1670.736599 | D15: 26 | E15: 3.38 | F15: 56.47089704 | G15: 0.827 | H15: 0.095 | I15: 35.12 | J15: 1.71
G17: Pb-207 | H17: Million | I17: Table 2 | K17: Table 2
A18: Meteoritics & Planetary Science | G18: Pb-206 | H18: Years | I18: Page 342 | K18: Page 342
A19: 2000, Volume 35 | G19: 0.889 | H19: =[1]!AgePb76($G$19) -> 5071.476647 | I19: Older Than Solar System
A20: Pages 341–346 | G20: 0.916 | H20: =[1]!AgePb76($G$20) -> 5113.771479 | I20: Older Than Solar System
G21: 0.788 | H21: =[1]!AgePb76($G$21) -> 4900.200529 | I21: Older Than Solar System
G22: 0.876 | H22: =[1]!AgePb76($G$22) -> 5050.624013 | I22: Older Than Solar System
G23: 0.833 | H23: =[1]!AgePb76($G$23) -> 4979.233401 | I23: Older Than Solar System
A24: Sample | B24: Pb206/U238 | C24: Pb-207/Pb-206 | G24: 0.869 | H24: =[1]!AgePb76($G$24) -> 5039.259238 | I24: Older Than Solar System
A25: Name | B25: Age | C25: Age | G25: 0.821 | H25: =[1]!AgePb76($G$25) -> 4958.6103
A26: SHR04.1 | B26: 7188.664565 | C26: 5071.476647 | G26: 0.842 | H26: =[1]!AgePb76($G$26) -> 4994.494585
A27: SHRO5.1 | B27: 8075.828967 | C27: 5113.771479 | G27: 0.922 | H27: =[1]!AgePb76($G$27) -> 5122.990853
A28: SHR06.1 | B28: 9372.783301 | C28: 4900.200529 | G28: 0.831 | H28: =[1]!AgePb76($G$28) -> 4975.818233 | I28: Meteorite
A29: SHR13.1 | B29: 5507.915089 | C29: 5050.624013 | G29: 0.867 | H29: =[1]!AgePb76($G$29) -> 5035.994309
A30: SHRI5.1 | B30: 5855.010863 | C30: 4979.233401 | G30: 0.813 | H30: =[1]!AgePb76($G$30) -> 4944.68273
A31: SHR16.1 | B31: 7676.954487 | C31: 5039.259238 | G31: 0.827 | H31: =[1]!AgePb76($G$31) -> 4968.961613
A32: SHR19.1 | B32: 8588.983201 | C32: 4958.6103
A33: SHR21.1 | B33: 7417.063836 | C33: 4994.494585
A34: SHR26.1 | B34: 6109.843023 | C34: 5122.990853
A35: SHR26.2 | B35: 6614.289095 | C35: 4975.818233
A36: SHR27.1 | B36: 11174.36836 | C36: 5035.994309
A37: SHR28.1 | B37: 10490.10689 | C37: 4944.68273
A38: SHR29.1 | B38: 9521.667845 | C38: 4968.961613
A39: AVG | B39: =AVERAGE(B26:B38) -> 7968.729194 | C39: =AVERAGE(C26:C38) -> 5012.009072
A40: MAX | B40: =MAX(B26:B38) -> 11174.36836 | C40: =MAX(C26:C38) -> 5122.990853
A41: MIN | B41: =MIN(B26:B38) -> 5507.915089 | C41: =MIN(C26:C38) -> 4900.200529
A42: STD DEV | B42: =STDEV(B26:B38) -> 1784.749859 | C42: =STDEV(C26:C38) -> 66.73778934

Sheet PlotDat4 (hidden)
A1: Source sheet | B1: Iso_Plot_013 | C1: 0.00607 | D1: 7e-05 | E1: 0 | F1: 3.971206782e-05
A2: Plot name | B2: Isochron4 | C2: 0.00557 | D2: 0.00015 | E2: 0.11 | F2: 0.0005356151785
A3: Plot Type | B3: 12 | C3: 0.00502 | D3: 3e-05
A4: 1st free col | B4: 7 | C4: 0.00682 | D4: 0.00012
A5: Sigma Level | B5: 1 | C5: 0.00565 | D5: 3e-05
A6: Absolute Errs | B6: TRUE | C6: 0.00563 | D6: 5e-05
A7: Symbol Type | B7: 4 | C7: 0.06937 | D7: 0.00035
A8: Inverse Plot | B8: FALSE | C8: 0.00538 | D8: 3e-05
A9: Color Plot | B9: TRUE | C9: 0.00645 | D9: 0.0001
A10: 3D plot | B10: FALSE | C10: 0.00553 | D10: 0.00011
A11: Linear | B11: FALSE | C11: 0.00545 | D11: 4e-05
A12: Data Range | B12: H3:I24 | C12: 0.00685 | D12: 0.00011
A13: Filled Symbols | B13: TRUE | C13: 0.00608 | D13: 6e-05
A14: ConcAge | B14: FALSE | C14: 0.00567 | D14: 4e-05
A15: ConcSwap | B15: FALSE | C15: 0.00563 | D15: 5e-05
A16: 1st Symbol-row | B16: 1 | C16: 0.00522 | D16: 9e-05
C17: 0.00552 | D17: 3e-05
C18: 0.00565 | D18: 5e-05
C19: 0.00584 | D19: 9e-05
C20: 0.00538 | D20: 3e-05
C21: 0.00542 | D21: 3e-05
C22: 0.00575 | D22: 7e-05
C23: IsoLine | D23: IsoLine

Sheet Iso_Plot_013
E1: 207Pb/206Pb | H1: 206Pb/238U | N1: 40059
A2: Table 4 | B2: 206Pb/204Pb | C2: 207Pb/204Pb | D2: 207Pb/206Pb | E2: Age | F2: 238U/204Pb | G2: 206Pb/238U | H2: Age | N2: 35742
B3: 15.515 | C3: 14.993 | D3: =(C3/B3) -> 0.9663551402 | E3: =[1]!AgePb6U8(D3) -> 4358.946955 | F3: 3.47 | G3: =(B3/F3) -> 4.471181556 | H3: =[1]!AgePb6U8(G3) -> 10955.64609 | N3: 34459
B4: 0 | C4: 0 | D4: 0 | E4: =[1]!AgePb6U8(D4) -> 0 | F4: 0 | G4: 0 | N4: 33978
B5: 14.334 | C5: 14.809 | D5: =(C5/B5) -> 1.033137994 | E5: =[1]!AgePb6U8(D5) -> 4574.249213 | F5: 0 | G5: 0 | N5: 28118
B6: 17.126 | C6: 15.239 | D6: 0.889816653 | E6: =[1]!AgePb6U8(D6) -> 4103.012509 | F6: 0 | G6: 0 | N6: 27473
B7: 14.606 | C7: 14.965 | D7: 1.02457894 | E7: =[1]!AgePb6U8(D7) -> 4547.053977 | F7: 0.07 | G7: =(B7/F7) -> 208.6571429 | H7: =[1]!AgePb6U8(G7) -> 34459.13646 | N7: 25884
B8: 17.882 | C8: 15.3 | D8: 0.8556089923 | E8: =[1]!AgePb6U8(D8) -> 3985.256663 | F8: 2.12 | G8: 8.43490566 | H8: =[1]!AgePb6U8(G8) -> 14468.43629 | N8: 21209
B9: 19.551 | C9: 15.716 | D9: 0.8038463506 | E9: =[1]!AgePb6U8(D9) -> 3802.87669 | F9: 10.55 | G9: 1.853175355 | H9: =[1]!AgePb6U8(G9) -> 6758.630355 | N9: 21092
B10: 18.882 | C10: 15.546 | D10: 0.8233238004 | E10: =[1]!AgePb6U8(D10) -> 3872.11023 | F10: 0.27 | G10: 69.93333333 | H10: =[1]!AgePb6U8(G10) -> 27472.9442 | N10: 20648
B11: 14.19 | C11: 15.783 | D11: 1.112262156 | E11: =[1]!AgePb6U8(D11) -> 4820.367351 | F11: 2.28 | G11: 6.223684211 | H11: =[1]!AgePb6U8(G11) -> 12746.91443 | N11: 17527
B12: 16.886 | C12: 15.373 | D12: 0.9103991472 | E12: =[1]!AgePb6U8(D12) -> 4172.842532 | F12: 2.28 | G12: 7.406140351 | H12: =[1]!AgePb6U8(G12) -> 13724.17362 | N12: 16337
B13: 0 | C13: 0 | D13: 0 | E13: =[1]!AgePb6U8(D13) -> 0 | F13: 0 | G13: 0 | N13: 16026
B14: 15.417 | C14: 15.213 | D14: 0.9867678537 | E14: =[1]!AgePb6U8(D14) -> 4425.522154 | F14: 0 | G14: 0 | N14: 15626
B15: 17.898 | C15: 15.48 | D15: 0.8649011063 | E15: =[1]!AgePb6U8(D15) -> 4017.457054 | F15: 0 | G15: 0 | N15: 15018
B16: 15.491 | C16: 15.302 | D16: 0.9877993674 | E16: =[1]!AgePb6U8(D16) -> 4428.868211 | F16: 0 | G16: 0 | N16: 14468
B17: 16.572 | C17: 15.378 | D17: 0.9279507603 | E17: =[1]!AgePb6U8(D17) -> 4231.797948 | F17: 0 | G17: 0 | N17: 14371
B18: 15.289 | C18: 15.18 | D18: 0.9928706913 | E18: =[1]!AgePb6U8(D18) -> 4445.293523 | F18: 0.06 | G18: 254.8166667 | H18: =[1]!AgePb6U8(G18) -> 35741.89229 | N18: 13724
B19: 19.952 | C19: 15.823 | D19: 0.793053328 | E19: =[1]!AgePb6U8(D19) -> 3764.18976 | F19: 0.04 | G19: 498.8 | H19: =[1]!AgePb6U8(G19) -> 40059.3587 | N19: 13724
B20: 17.26 | C20: 15.429 | D20: 0.8939165701 | E20: =[1]!AgePb6U8(D20) -> 4116.982719 | F20: 8.42 | G20: 2.049881235 | H20: =[1]!AgePb6U8(G20) -> 7188.413541 | N20: 13404
B21: 39.091 | C21: 15.624 | D21: 0.3996827914 | E21: =[1]!AgePb6U8(D21) -> 2167.57862 | F21: 138 | G21: 0.2832681159 | H21: =[1]!AgePb6U8(G21) -> 1607.800416 | N21: 13404
B22: 19.716 | C22: 15.679 | D22: 0.7952424427 | E22: =[1]!AgePb6U8(D22) -> 3772.0553 | F22: 16 | G22: 1.23225 | H22: =[1]!AgePb6U8(G22) -> 5176.535345 | N22: 12747
B23: 19.351 | C23: 15.799 | D23: 0.8164435946 | E23: =[1]!AgePb6U8(D23) -> 3847.739053 | F23: 0.25 | G23: 77.404 | H23: =[1]!AgePb6U8(G23) -> 28118.45252 | N23: 12622
B24: 17.167 | C24: 15.466 | D24: 0.9009145453 | E24: =[1]!AgePb6U8(D24) -> 4140.758163 | F24: 2.07 | G24: 8.293236715 | H24: =[1]!AgePb6U8(G24) -> 14370.90669 | N24: 12165
B25: 18.261 | C25: 15.601 | D25: 0.8543343738 | E25: =[1]!AgePb6U8(D25) -> 3980.827098 | F25: 0.72 | G25: 25.3625 | H25: =[1]!AgePb6U8(G25) -> 21092.29683 | N25: 11432
B26: 16.448 | C26: 15.44 | D26: 0.9387159533 | E26: =[1]!AgePb6U8(D26) -> 4267.692984 | F26: 2.35 | G26: 6.999148936 | H26: =[1]!AgePb6U8(G26) -> 13404.25562 | N26: 10956
B27: 0 | C27: 0 | D27: 0 | E27: =[1]!AgePb6U8(D27) -> 0 | F27: 0 | G27: 0 | N27: 10956
B28: 15.713 | C28: 15.405 | D28: 0.9803983962 | E28: =[1]!AgePb6U8(D28) -> 4404.822141 | F28: 0 | G28: 0 | N28: 10049
B29: 18.002 | C29: 15.539 | D29: 0.8631818687 | E29: =[1]!AgePb6U8(D29) -> 4011.511415 | F29: 0 | G29: 0 | N29: 9250
B30: 15.487 | C30: 15.39 | D30: 0.9937366824 | E30: =[1]!AgePb6U8(D30) -> 4448.094168 | F30: 0.08 | G30: 193.5875 | H30: =[1]!AgePb6U8(G30) -> 33978.28805 | N30: 7382
B31: 18.303 | C31: 15.597 | D31: 0.8521553844 | E31: =[1]!AgePb6U8(D31) -> 3973.247597 | F31: 37.74 | G31: 0.4849761526 | H31: =[1]!AgePb6U8(G31) -> 2548.903873 | N31: 7188
B32: 19.642 | C32: 15.714 | D32: 0.8000203645 | E32: =[1]!AgePb6U8(D32) -> 3789.189225 | F32: 6.14 | G32: 3.199022801 | H32: =[1]!AgePb6U8(G32) -> 9249.649198 | N32: 6792
B33: 19.264 | C33: 15.624 | D33: 0.8110465116 | E33: =[1]!AgePb6U8(D33) -> 3828.556721 | F33: 8.99 | G33: 2.142825362 | H33: =[1]!AgePb6U8(G33) -> 7381.931939 | N33: 6759
B34: 17.964 | C34: 15.566 | D34: 0.8665107994 | E34: =[1]!AgePb6U8(D34) -> 4023.01889 | F34: 0.33 | G34: 54.43636364 | H34: =[1]!AgePb6U8(G34) -> 25883.87276 | N34: 6265
B35: 17.731 | C35: 15.585 | D35: 0.8789690373 | E35: =[1]!AgePb6U8(D35) -> 4065.903252 | F35: 1.61 | G35: 11.01304348 | H35: =[1]!AgePb6U8(G35) -> 16025.74063 | N35: 5865
B36: 18.09 | C36: 15.594 | D36: 0.8620232172 | E36: =[1]!AgePb6U8(D36) -> 4007.501355 | F36: 0.7 | G36: 25.84285714 | H36: =[1]!AgePb6U8(G36) -> 21208.7011 | N36: 5177
B37: 19.327 | C37: 15.561 | D37: 0.8051430641 | E37: =[1]!AgePb6U8(D37) -> 3807.509096 | F37: 16.6 | G37: 1.164277108 | H37: =[1]!AgePb6U8(G37) -> 4977.188761 | N37: 4977
G38: Average | H38: =AVERAGE(H3:H37) -> 17025.0029 | N38: 4820
G39: Maximum | H39: =MAX(H3:H38) -> 40059.3587
G40: Minimum | H40: =MIN(H3:H39) -> 1607.800416
G41: Std Deviation | H41: =STDEV(H4:H37) -> 11600.71744
E44: 207Pb/206Pb | H44: 206Pb/238U
A45: Table 5 | B45: 206Pb/204Pb | C45: 207Pb/204Pb | D45: 207Pb/206Pb | E45: Age | F45: 238U/204Pb | G45: 206Pb/238U | H45: Age
B46: 17.497 | C46: 15.52 | D46: =(C46/B46) -> 0.8870092016 | E46: =[1]!AgePb6U8(D46) -> 4093.4288 | F46: 0 | G46: 0
B47: 17.192 | C47: 15.312 | D47: 0.8906468125 | E47: =[1]!AgePb6U8(D47) -> 4105.84367 | F47: 3.07 | G47: =(B47/F47) -> 5.6 | H47: =[1]!AgePb6U8(G47) -> 12164.83255
B48: 16.68 | C48: 15.255 | D48: 0.9145683453 | E48: =[1]!AgePb6U8(D48) -> 4186.895665 | F48: 0 | G48: 0
B49: 19.24 | C49: 15.589 | D49: 0.8102390852 | E49: =[1]!AgePb6U8(D49) -> 3825.682049 | F49: 0 | G49: 0
B50: 18.222 | C50: 15.638 | D50: 0.8581933926 | E50: =[1]!AgePb6U8(D50) -> 3994.228663 | F50: 1.57 | G50: 11.60636943 | H50: =[1]!AgePb6U8(G50) -> 16336.51698
B51: 17.496 | C51: 15.551 | D51: 0.888831733 | E51: =[1]!AgePb6U8(D51) -> 4099.65194 | F51: 0 | G51: 0
B52: 19.827 | C52: 15.771 | D52: 0.7954304736 | E52: =[1]!AgePb6U8(D52) -> 3772.730452 | F52: 1.4 | G52: 14.16214286 | H52: =[1]!AgePb6U8(G52) -> 17526.52196
B53: 19.45 | C53: 15.582 | D53: 0.8011311054 | E53: =[1]!AgePb6U8(D53) -> 3793.165895 | F53: 1.89 | G53: 10.29100529 | H53: =[1]!AgePb6U8(G53) -> 15626.14934
B54: 19.359 | C54: 15.656 | D54: 0.8087194586 | E54: =[1]!AgePb6U8(D54) -> 3820.268258 | F54: 0.82 | G54: 23.60853659 | H54: =[1]!AgePb6U8(G54) -> 20648.46671
B55: 18.085 | C55: 15.629 | D55: 0.8641968482 | E55: =[1]!AgePb6U8(D55) -> 4015.022182 | F55: 1.95 | G55: 9.274358974 | H55: =[1]!AgePb6U8(G55) -> 15017.89764
B56: 19.034 | C56: 15.674 | D56: 0.8234737838 | E56: =[1]!AgePb6U8(D56) -> 3872.640479 | F56: 10.19 | G56: 1.867909715 | H56: =[1]!AgePb6U8(G56) -> 6791.835244
B57: 17.293 | C57: 15.594 | D57: 0.9017521541 | E57: =[1]!AgePb6U8(D57) -> 4143.59805 | F57: 0 | G57: 0
B58: 18.793 | C58: 15.574 | D58: 0.8287128186 | E58: =[1]!AgePb6U8(D58) -> 3891.135159 | F58: 0 | G58: 0
B59: 16.886 | C59: 15.373 | D59: 0.9103991472 | E59: =[1]!AgePb6U8(D59) -> 4172.842532 | F59: 2.28 | G59: 7.406140351 | H59: =[1]!AgePb6U8(G59) -> 13724.17362
B60: 15.515 | C60: 14.993 | D60: 0.9663551402 | E60: =[1]!AgePb6U8(D60) -> 4358.946955 | F60: 3.47 | G60: 4.471181556 | H60: =[1]!AgePb6U8(G60) -> 10955.64609
B61: 16.448 | C61: 15.44 | D61: 0.9387159533 | E61: =[1]!AgePb6U8(D61) -> 4267.692984 | F61: 2.35 | G61: 6.999148936 | H61: =[1]!AgePb6U8(G61) -> 13404.25562
B62: 18.563 | C62: 15.618 | D62: 0.8413510747 | E62: =[1]!AgePb6U8(D62) -> 3935.533163 | F62: 0 | G62: 0
B63: 17.999 | C63: 15.501 | D63: 0.8612145119 | E63: =[1]!AgePb6U8(D63) -> 4004.70097 | F63: 3.68 | G63: 4.891032609 | H63: =[1]!AgePb6U8(G63) -> 11432.27267
B64: 17.706 | C64: 15.527 | D64: 0.8769343725 | E64: =[1]!AgePb6U8(D64) -> 4058.918891 | F64: 2.91 | G64: 6.084536082 | H64: =[1]!AgePb6U8(G64) -> 12621.52711
B65: 22.474 | C65: 15.027 | D65: 0.6686393165 | E65: =[1]!AgePb6U8(D65) -> 3300.618945 | F65: 13.68 | G65: 1.642836257 | H65: =[1]!AgePb6U8(G65) -> 6264.964902
B66: 18.545 | C66: 15.503 | D66: 0.8359665678 | E66: =[1]!AgePb6U8(D66) -> 3916.654845 | F66: 0 | G66: 0
B67: 18.518 | C67: 15.469 | D67: 0.8353493898 | E67: =[1]!AgePb6U8(D67) -> 3914.487455 | F67: 0 | G67: 0
B68: 19.066 | C68: 15.625 | D68: 0.8195216616 | E68: =[1]!AgePb6U8(D68) -> 3858.653623 | F68: 5.08 | G68: 3.753149606 | H68: =[1]!AgePb6U8(G68) -> 10048.7186
B69: 19.199 | C69: 15.653 | D69: 0.8153028804 | E69: =[1]!AgePb6U8(D69) -> 3843.689476 | F69: 0 | G69: 0
B70: 17.391 | C70: 15.424 | D70: 0.8868955207 | E70: =[1]!AgePb6U8(D70) -> 4093.040431 | F70: 0 | G70: 0
B71: 17.387 | C71: 15.421 | D71: 0.8869270144 | E71: =[1]!AgePb6U8(D71) -> 4093.148026 | F71: 0 | G71: 0
B72: 17.954 | C72: 15.421 | D72: 0.8589172329 | E72: =[1]!AgePb6U8(D72) -> 3996.739309 | F72: 12.1 | G72: 1.483801653 | H72: =[1]!AgePb6U8(G72) -> 5864.885164
B73: 17.557 | C73: 15.587 | D73: 0.8877940423 | E73: =[1]!AgePb6U8(D73) -> 4096.109421 | F73: 0 | G73: 0
G74: Average | H74: =AVERAGE(H46:H73) -> 12561.91095
G75: Maximum | H75: =MAX(H46:H74) -> 20648.46671
G76: Minimum | H76: =MIN(H46:H75) -> 5864.885164
G77: Std Deviation | H77: =STDEV(H46:H73) -> 4224.91092
B80: MAXIMUM | C80: MINIMUM | D80: DIFFERENCE | E80: AVERAGE | F80: 4600 To 4999 | G80: 5000 To 5999 | H80: 6,000 To 9999 | I80: 10,000 To 19,999 | J80: Over 19,999 | K80: Total
A81: 207Pb/206Pb | B81: 4820.367351 | C81: 2167.57862 | D81: 2652.788731 | E81: 4028.815014 | F81: 1 | K81: =SUM(F81:J81) -> 1
A82: 206Pb/238U | B82: 40059.3587 | C82: 1607.800416 | D82: 38451.55828 | E82: 15308.42907 | F82: 1 | G82: 2 | H82: 6 | I82: 18 | J82: 10 | K82: =SUM(F82:J82) -> 37
F85: Dating | G85: Table 4 | H85: Table 5
F86: Summary | G86: Age | H86: Age
F87: Average | G87: 17025.0029 | H87: 12561.91095
F88: Maximum | G88: 40059.3587 | H88: 20648.46671
F89: Minimum | G89: 1607.800416 | H89: 5864.885164
F90: Std Deviation | G90: 11600.71744 | H90: 4224.91092

Sheet Iso_Plot_014
A1: Sample | B1: Pb-207/207 | C1: Error | D1: Rho | F1: Pb-207/206 | G1: Age | H1: Table 1
A2: Number | F2: Ratios | G2: Million Years | H2: Page 145
A3: CIL | B3: 0.7645 | C3: 0.395 | D3: 0.904 | F3: 0.7645 | G3: 4856.995464 | H3: Older Than Earth
A4: CIR | B4: 0.70089 | C4: 0.331 | D4: 0.901 | F4: 0.70089 | G4: 4732.544313 | H4: Older Than Earth
B5: 0.73486 | C5: 1.39 | D5: 0.975 | F5: 0.73486 | G5: 4800.437788 | H5: Older Than Earth
A6: C1-L1-5
A7: C1-L6 | B7: 0.72328 | C7: 0.786 | D7: 0.98 | F7: 0.72328 | G7: 4777.677113 | H7: Older Than Earth
A8: C1-L7 | B8: 0.79329 | C8: 0.023 | D8: 0.363 | F8: 0.79329 | G8: 4909.737052 | H8: Older Than Earth
A9: C1-L8 | B9: 0.74517 | C9: 0.294 | D9: 0.831 | F9: 0.74517 | G9: 4820.382479 | H9: Older Than Earth
A10: C1-L9 | B10: 0.71424 | C10: 0.205 | D10: 0.78 | F10: 0.71424 | G10: 4759.636764 | H10: Older Than Earth
A11: Cl-L70 | B11: 0.71813 | C11: 1.89 | D11: 983 | F11: 0.71813 | G11: 4767.42942 | H11: Older Than Earth
A12: Cl -Lit | B12: 0.74147 | C12: 0.997 | D12: 984 | F12: 0.74147 | G12: 4813.258887 | H12: Older Than Earth
A13: C1-L12 | B13: 0.72163 | C13: 0.041 | D13: 0.263 | F13: 0.72163 | G13: 4774.402377 | H13: Older Than Earth
A14: Total
A16: C2-Ll | B16: 0.96956 | C16: 0.315 | D16: 969 | F16: 0.96956 | G16: 5193.89626 | H16: Older Than Solar System
A17: C2-L2 | B17: 0.96678 | C17: 0.172 | D17: 0.804 | F17: 0.96678 | G17: 5189.853972 | H17: Older Than Solar System
A18: C2-L3 | B18: 0.90034 | C18: 1.12 | D18: 0.963 | F18: 0.90034 | G18: 5089.40414 | H18: Older Than Solar System
A19: C2-L4 | B19: 0.83415 | C19: 0.171 | D19: 0.633 | F19: 0.83415 | G19: 4981.193179 | H19: Older Than Earth
A20: C2-L5 | B20: 0.82235 | C20: 0.017 | D20: 0.653 | F20: 0.82235 | G20: 4960.946342 | H20: Older Than Earth
A21: C2-L6 | B21: 0.8573 | C21: 0.991 | D21: 0.192 | F21: 0.8573 | G21: 5020.045148 | H21: Older Than Earth
A22: C2-L7 | B22: 0.80025 | C22: 2.03 | D22: 0.979 | F22: 0.80025 | G22: 4922.181559 | H22: Older Than Earth
A23: C2-L9 | B23: 0.66183 | C23: 0.799 | D23: 0.992 | F23: 0.66183 | G23: 4649.989453 | H23: Older Than Earth
A24: C2-R | B24: 0.62941 | C24: 0.994 | D24: 0.999 | F24: 0.62941 | G24: 4577.403489 | H24: Older Than Earth
A25: Total
A26: C4 | B26: 0.956 | C26: 0.21 | D26: 0.268 | F26: 0.956 | G26: 5174.06204 | H26: Older Than Solar System
A27: C4-L6 | B27: 0.85288 | C27: 0.147 | D27: 0 | F27: 0.85288 | G27: 5012.713936 | H27: Older Than Solar System
A28: C4-L7 | B28: 0.90345 | C28: 1.1 | D28: 0.967 | F28: 0.90345 | G28: 5094.278946 | H28: Older Than Solar System
A29: C4-L8 | B29: 0.87649 | C29: 0.183 | D29: 0.796 | F29: 0.87649 | G29: 5051.415935 | H29: Older Than Solar System
A31: C4-Ll0 | B31: 0.71748 | C31: 4.46 | D31: 0.995 | F31: 0.71748 | G31: 4766.130447 | H31: Older Than Earth
A32: C4-Ll1 | B32: 0.73344 | C32: 3.37 | D32: 0.994 | F32: 0.73344 | G32: 4797.667427 | H32: Older Than Earth
A33: Total
A34: C7 - Single Chondrule (39.1 mg) - uncrushed - Copenhagen University | B34: 0.90115 | C34: 0.022 | D34: 0.831 | F34: 0.90115 | G34: 5090.675501 | H34: Older Than Solar System
A35: C7-L1-5
A36: C7-L6 | B36: 0.7746 | C36: 0.877 | D36: 0.983 | F36: 0.7746 | G36: 4875.735424 | H36: Older Than Earth
A37: C7-L7 | B37: 0.86481 | C37: 0.035 | D37: 0.001 | F37: 0.86481 | G37: 5032.41003 | H37: Older Than Solar System
A38: C7-L8 | B38: 0.85781 | C38: 0.027 | D38: -0.247 | F38: 0.85781 | G38: 5020.888474 | H38: Older Than Solar System
A39: C7-L9 | B39: 0.72081 | C39: 0.092 | D39: 0.908 | F39: 0.72081 | G39: 4772.771957 | H39: Older Than Earth
A40: C7-Ll0 | B40: 0.73786 | C40: 0.092 | D40: 0.965 | F40: 0.73786 | G40: 4806.27193 | H40: Older Than Earth
A41: C7-Ll1 | B41: 0.73167 | C41: 0.936 | D41: 0.992 | F41: 0.73167 | G41: 4794.206205 | H41: Older Than Earth
A42: C7-L12 | B42: 0.74201 | C42: 0.38 | D42: 0.984 | F42: 0.74201 | G42: 4814.300907 | H42: Older Than Earth
A43: Total
A44: C12 - 10 chondrules (21.1 mg) - crushed - Olso University | B44: 0.87533 | C44: 0.013 | D44: 0.037 | F44: 0.87533 | G44: 5049.540419 | H44: Older Than Solar System
A45: C12-L1
A46: C12-L2 | B46: 0.88364 | C46: 0.052 | D46: 0.383 | F46: 0.88364 | G46: 5062.918391 | H46: Older Than Solar System
A47: C12-L3 | B47: 0.97801 | C47: 0.013 | D47: 0.568 | F47: 0.97801 | G47: 5206.108213 | H47: Older Than Solar System
A48: C12-L4
A49: C12-L5 | B49: 0.84666 | C49: 0.025 | D49: -0.109 | F49: 0.84666 | G49: 5002.328531 | H49: Older Than Solar System
A50: C12-L6 | B50: 0.82973 | C50: 0.141 | D50: 0.338 | F50: 0.82973 | G50: 4973.645064 | H50: Older Than Earth
A51: C12-L7 | B51: 0.83612 | C51: 0.019 | D51: 0.09 | F51: 0.83612 | G51: 4984.543702 | H51: Older Than Earth
A52: C12-LS | B52: 0.67436 | C52: 0.206 | D52: 0.955 | F52: 0.67436 | G52: 4677.027816 | H52: Older Than Earth
A53: C12-L9 | B53: 0.71718 | C53: 0.085 | D53: 0.613 | F53: 0.71718 | G53: 4765.530497 | H53: Older Than Earth
A54: C12-L70 | B54: 0.75116 | C54: 0.145 | D54: 0.487 | F54: 0.75116 | G54: 4831.835401 | H54: Older Than Earth
F55: AVG | G55: =AVERAGE(G3:G54) -> 4910.819581
F56: MAX | G56: =MAX(G3:G54) -> 5206.108213
C57: Table 1 | F57: MIN | G57: =MIN(G3:G54) -> 4577.403489
C58: Page 145 | F58: STD DEV | G58: =STDEV(G3:G54) -> 159.4564374 | H58: Meteorite
A59: Sample | B59: Age | C59: Age
A60: Number | B60: Million Years | C60: Category
A61: CIL | B61: 4856.995464 | C61: Older Than Earth | F61: Sample | G61: Age | H61: Age
A62: CIR | B62: 4732.544313 | C62: Older Than Earth | F62: Number | G62: Million Years | H62: Category
B63: 4800.437788 | C63: Older Than Earth | F63: C2-L1 | G63: 5193.89626 | H63: Older Than Solar System
A64: C1-L6 | B64: 4777.677113 | C64: Older Than Earth | F64: C2-L2 | G64: 5189.853972 | H64: Older Than Solar System
A65: C1-L7 | B65: 4909.737052 | C65: Older Than Earth | F65: C2-L3 | G65: 5089.40414 | H65: Older Than Solar System
A66: C1-L8 | B66: 4820.382479 | C66: Older Than Earth | F66: C2-L6 | G66: 5020.045148 | H66: Older Than Solar System
A67: C1-L9 | B67: 4759.636764 | C67: Older Than Earth | F67: C4 | G67: 5174.06204 | H67: Older Than Solar System
A68: Cl-L70 | B68: 4767.42942 | C68: Older Than Earth | F68: C4-L6 | G68: 5012.713936 | H68: Older Than Solar System
A69: Cl -Lit | B69: 4813.258887 | C69: Older Than Earth | F69: C4-L7 | G69: 5094.278946 | H69: Older Than Solar System
A70: C1-L12 | B70: 4774.402377 | C70: Older Than Earth | F70: C4-L8 | G70: 5051.415935 | H70: Older Than Solar System
A71: C2-L1 | B71: 5193.89626 | C71: Older Than Solar System | F71: C7 | G71: 5090.675501 | H71: Older Than Solar System
A72: C2-L2 | B72: 5189.853972 | C72: Older Than Solar System | F72: C7-L7 | G72: 5032.41003 | H72: Older Than Solar System
A73: C2-L3 | B73: 5089.40414 | C73: Older Than Solar System | F73: C7-L8 | G73: 5020.888474 | H73: Older Than Solar System
A74: C2-L4 | B74: 4981.193179 | C74: Older Than Earth | F74: C12-10 | G74: 5049.540419 | H74: Older Than Solar System
A75: C2-L5 | B75: 4960.946342 | C75: Older Than Earth | F75: C12-L2 | G75: 5062.918391 | H75: Older Than Solar System
A76: C2-L6 | B76: 5020.045148 | C76: Older Than Solar System | F76: C12-L3 | G76: 5206.108213 | H76: Older Than Solar System
A77: C2-L7 | B77: 4922.181559 | C77: Older Than Earth | F77: C12-L5 | G77: 5002.328531 | H77: Older Than Solar System
A78: C2-L9 | B78: 4649.989453 | C78: Older Than Earth
A79: C2-R | B79: 4577.403489 | C79: Older Than Earth
A80: C4 | B80: 5174.06204 | C80: Older Than Solar System
A81: C4-L6 | B81: 5012.713936 | C81: Older Than Solar System
A82: C4-L7 | B82: 5094.278946 | C82: Older Than Solar System
A83: C4-L8 | B83: 5051.415935 | C83: Older Than Solar System
A84: C4-10 | B84: 4766.130447 | C84: Older Than Earth
A85: C4-L11 | B85: 4797.667427 | C85: Older Than Earth
A86: C7 | B86: 5090.675501 | C86: Older Than Solar System
A87: C7-L6 | B87: 4875.735424 | C87: Older Than Earth
A88: C7-L7 | B88: 5032.41003 | C88: Older Than Solar System
A89: C7-L8 | B89: 5020.888474 | C89: Older Than Solar System
A90: C7-L9 | B90: 4772.771957 | C90: Older Than Earth
A91: C7-L10 | B91: 4806.27193 | C91: Older Than Earth
A92: C7-L11 | B92: 4794.206205 | C92: Older Than Earth
A93: C7-L12 | B93: 4814.300907 | C93: Older Than Earth
A94: C12-10 | B94: 5049.540419 | C94: Older Than Solar System
A95: C12-L2 | B95: 5062.918391 | C95: Older Than Solar System
A96: C12-L3 | B96: 5206.108213 | C96: Older Than Solar System
A97: C12-L5 | B97: 5002.328531 | C97: Older Than Solar System
A98: C12-L6 | B98: 4973.645064 | C98: Older Than Earth
A99: C12-L7 | B99: 4984.543702 | C99: Older Than Earth
A100: C12-LS | B100: 4677.027816 | C100: Older Than Earth
A101: C12-L9 | B101: 4765.530497 | C101: Older Than Earth
A102: C12-L70 | B102: 4831.835401 | C102: Older Than Earth
A109: Table I
A110: Isotnpic data for Allende chondrules
A111: Sample | B111: Acid | C111: MS Method' | D111: Treatment | E111: Duration | F111: U (ng) | G111: Pb (ng) | H111: 206Pb/204Pb | I111: 208U/204Pb | J111: 208U/206Pb | K111: 208U/206Pb | L111: 2u0Pb1205Pb | M111: %err | N111: 20JPb/t06Pb | O111: %err | P111: Rho
H112: Ratio | I112: Ratio | J112: Ratio | K112: Age | L112: (corr.) | N112: (corr.)
A113: Cl - Single Chondrule - Copenhagen University'
A114: FragmentA (6.4 mg) - Immeshed
A115: CIL | B115: 6M HCI | C115: SF | D115: HP(90")-US | E115: 2days-10 | H115: 30.259 | I115: 1.5362 | L115: 0.032618 | M115: 0.131 | N115: 0.7645 | O115: 0.395 | P115: 0.904
A116: C1R | B116: 28M HF | C116: SF | D116: HP (145") | E116: 3days | H116: 56.58 | I116: 1.291 | L116: 0.017358 | M116: 0.121 | N116: 0.70089 | O116: 0.331 | P116: 0.901
A117: Fragment a (31.1 mg) - crushed | B117: DD | C117: x5 US | D117: 5 | F117: 0.033 | G117: 36.1919 | H117: 36.1919 | I117: 1.5679 | K117: 0.02602 | L117: 0.589 | M117: 0.73486 | N117: 1.39 | O117: 0.975
A118: C1-L1-5 | B118: 2M HCI
A119: C1-L6 | B119: 6M HCI | C119: DD | D119: US | E119: 5 | G119: 0.072 | H119: 41.852 | I119: 1.4409 | L119: 0.023026 | M119: 0.294 | N119: 0.72328 | O119: 0.786 | P119: 0.98
A120: C1-L7 | B120: 6M HCI | C120: SF | D120: US | E120: 5 | G120: 0.311 | H120: 20.626 | I120: 1.9357 | L120: 0.047885 | M120: 0.031 | N120: 0.79329 | O120: 0.023 | P120: 0.363
A121: C1-L8 | B121: 6M HCI | C121: SF | D121: HP(100°)-US | E121: 2012-05-15 | F121: - | G121: 0.144 | H121: 34.645 | I121: 1.5264 | J121: - | K121: - | L121: 0.028134 | M121: 0.12 | N121: 0.74517 | O121: 0.294 | P121: 0.831
A122: C1-L9 | B122: 1M HF | C122: SF | D122: 88(100°)-US | E122: 66-5 | F122: - | G122: 0.29 | H122: 47.928 | I122: 1.3526 | J122: - | K122: - | L122: 0.020632 | M122: 0.076 | N122: 0.71424 | O122: 0.205 | P122: 0.78
A123: Cl-LID | B123: 7M HF | C123: DD | D123: 88(100°)-05 | E123: 1day-5 | G123: 0.032 | H123: 42.9284 | I123: 1.4798 | L123: 0.021589 | M123: 0.703 | N123: 0.71813 | O123: 1.89 | P123: 983
A124: Cl-Lit | B124: 28M HF+ 14M HNO3 | C124: DD | D124: HP(130°)-US | E124: 2days-5 | G124: 0.046 | H124: 35.1806 | I124: 1.5605 | L124: 0.02729 | M124: 0.403 | N124: 0.74147 | O124: 0.997 | P124: 984
A125: C1-L12 | B125: 28M HF+ 14M HNO3 | C125: SF | D125: Oven(200°) | E125: 3days | G125: 1.427 | H125: 44.2368 | I125: 1.4115 | L125: 0.022473 | M125: 0.02 | N125: 0.72163 | O125: 0.041 | P125: 0.263
A126: Total | G126: 2.355
A127: C2 - 8 chondrules (9.1 mg) - uncrushed - Copenhagen University | B127: 5 | D127: 0.133 | E127: 12.759 | F127: 2.5895 | H127: 12.759 | I127: 2.5895 | J127: 0.181 | K127: 0.96956 | L127: 0.315 | M127: 969
A128: C2-L2 | B128: 4M HNO3 | C128: SF | D128: HP(110°)-US-HP | E128: 2005-05-05 | G128: 0.23 | H128: 12.9985 | I128: 2.5734 | L128: 0.076855 | M128: 0.102 | N128: 0.96678 | O128: 0.172 | P128: 0.804
A129: C2-L3 | B129: 2M HCI | C129: DD | D129: US | E129: 5 | G129: 0.022 | H129: 16.008 | I129: 2.3084 | L129: 0.062939 | M129: 0.534 | N129: 0.90034 | O129: 1.12 | P129: 0.963
A130: C2-L4 | B130: 1-120 HP | C130: DD | D130: 11P(110°)-US | E130: overnight -5 | G130: 0.019 | H130: 20.822 | I130: 2.081 | L130: 0.047044 | M130: 0.151 | N130: 0.83415 | O130: 0.171 | P130: 0.633
A131: C2-L5 | B131: 2M HCI | C131: SF | D131: US | E131: 5 | F131: - | G131: 0.233 | H131: 21.348 | I131: 1.9835 | L131: 0.046693 | M131: 0.019 | N131: 0.82235 | O131: 0.017 | P131: 0.653
A132: C2-L6 | B132: 2M HCI | C132: DI) | D132: US | E132: 5 | F132: - | G132: 0.009 | H132: 18.271 | I132: 2.1044 | L132: 0.054445 | M132: 0.466 | N132: 0.8573 | O132: 0.991 | P132: 0.192
A133: C2-L7 | B133: 6M HCI | C133: DD | D133: US | E133: 5 | G133: 0.007 | H133: 23.083 | I133: 2.0851 | L133: 0.039551 | M133: 1.93 | N133: 0.80025 | O133: 2.03 | P133: 0.979
A134: C2-L9 | B134: 6M HCI | C134: SF | D134: HP(90")-85 | E134: 2012-05-15 | F134: - | G134: -" | H134: 101.75 | I134: 1.5219 | L134: 0.008792 | M134: 0.462 | N134: 0.66183 | O134: 0.799 | P134: 0.992
A135: C2-R | B135: 28M HF+ 14M HNO3 | C135: SF | D135: HP(145°1 | E135: 3days | H135: 404.53 | I135: 2.3874 | L135: 0.001303 | M135: 1.1 | N135: 0.62941 | O135: 0.994 | P135: 0.999
A136: Total | G136: 0.652
A137: C4 - Single Chondrule (7.61 mg) - uncrushed - Copenhagen University | B137: 2005-05-05 | D137: 0.211 | E137: 13.5352 | F137: 2.6538 | H137: 13.5352 | I137: 2.6538 | J137: 0.102 | K137: 0.956 | L137: 0.21 | M137: 0.268
A138: C4-L6 | B138: 2M 88r | C138: DO | D138: 5 | E138: 5 | G138: 0.002 | H138: 18.8305 | I138: 2.0314 | L138: 0.051691 | M138: 0.491 | N138: 0.85288 | O138: 0.147 | P138: 0
A139: C4-L7 | B139: 6M HCI | C139: DI) | D139: US | E139: S | F139: - | G139: 0.013 | H139: 16.3009 | I139: 2.1787 | L139: 0.063125 | M139: 0.714 | N139: 0.90345 | O139: 1.1 | P139: 0.967
A140: C4-L8 | B140: 6M HCI | C140: DD | D140: HP (100') | E140: 15 | G140: 0.025 | H140: 17.7008 | I140: 2.0721 | L140: 0.056482 | M140: 0.229 | N140: 0.87649 | O140: 0.183 | P140: 0.796
A141: C4-L9 | B141: 1M HF | C141: DD | D141: HP(1000-US | E141: 14h-5 | G141: ca. 0
A142: C4-L10 | B142: 7M HF | C142: DD | D142: HP(80°)-US | E142: 76 -5 | G142: 0.01 | H142: 33.868 | I142: 1.9196 | L142: 0.021446 | M142: 1.81 | N142: 0.71748 | O142: 4.46 | P142: 0.995
A143: C4-L11 | B143: 28M HF+ 14M HNO3 | C143: DD | D143: HP(140°) | E143: 3days | G143: 0.011 | H143: 30.0236 | I143: 1.8888 | L143: 0.026519 | M143: 1.52 | N143: 0.73344 | O143: 3.37 | P143: 0.994
A144: Total | E144: 0.272
A145: C7 - Single Chondrule (39.1 mg) - uncrushed - Copenhagen University | B145: 2005-05-05 | C145: - | D145: 0.807 | E145: 15.959 | F145: 2.2468 | G145: - | H145: 15.959 | I145: 2.2468 | J145: 0.014 | K145: 0.90115 | L145: 0.022 | M145: 0.831
A146: C7-L6 | B146: 2M I18r | C146: DD | D146: US | E146: S | G146: 0.032 | H146: 26.793 | I146: 1.7422 | L146: 0.035662 | M146: 0.379 | N146: 0.7746 | O146: 0.877 | P146: 0.983
A147: C7-L7 | B147: 6M HCI | C147: DD | D147: US | E147: 5 | G147: 0.094 | H147: 18.3838 | I147: 2.0487 | L147: 0.054117 | M147: 0.05 | N147: 0.86481 | O147: 0.035 | P147: 0.001
A148: C7-L8 | B148: 6M HCI | C148: DD | D148: 88(100") | E148: 15 | G148: 0.246 | H148: 19.0008 | I148: 1.9518 | L148: 0.052349 | M148: 0.021 | N148: 0.85781 | O148: 0.027 | P148: -0.247
A149: C7-L9 | B149: 1M HF | C149: SF-01)614 | D149: 88(100°)-US | E149: 140 -5 | G149: 0.512 | H149: 46.0764 | I149: 1.4683 | L149: 0.021693 | M149: 0.041 | N149: 0.72081 | O149: 0.092 | P149: 0.908
A150: C7-L70 | B150: 7M HF | C150: SF- 006)4 | D150: HP(80")-US | E150: 7h-5 | G150: 0.489 | H150: 38.101 | I150: 1.4868 | L150: 0.025988 | M150: 0.036 | N150: 0.73786 | O150: 0.092 | P150: 0.965
A151: C7-L71 | B151: 28M HF | C151: DD | D151: HP(130°)-US | E151: 2days-5 | G151: 0.052 | H151: 38.1782 | I151: 1.5369 | L151: 0.024674 | M151: 0.369 | N151: 0.73167 | O151: 0.936 | P151: 0.992
A152: C7-L12 | B152: 28M HF+ 14M HNO3 | C152: DD | D152: HP(145°) | E152: 3days | G152: 0.11 | H152: 35.25 | I152: 1.5552 | L152: 0.027607 | M152: 0.16 | N152: 0.74201 | O152: 0.38 | P152: 0.984
A153: Total | E153: 2.342
A154: C12 - 10 chondrules (21.1 mg) - crushed - Olso University | B154: US-HP(110°)-US | C154: 2005-05-05 | D154: 0.055 | E154: 0.541 | F154: 17.3613 | G154: 2.1362 | H154: 6.246 | I154: 2.1362 | J154: 0.057521 | K154: 0.091 | L154: 0.87533 | M154: 0.013 | N154: 0.037
A155: C12-L2 | B155: 2M HCI US | C155: SF | D155: US | E155: S | F155: 0.016 | G155: 0.085 | H155: 16.8427 | I155: 2.1683 | J155: 11.183 | K155: 207 | L155: 0.059455 | M155: 0.175 | N155: 0.88364 | O155: 0.052 | P155: 0.383
A156: C12-L3 | B156: 4M 11NO3 05+118 | C156: SF | D156: 281-1P (110°)-US | E156: 10 | F156: 2 | G156: 0.061 | H156: 12.6247 | I156: 2.1631 | J156: 2.1631 | K156: 2.816 | L156: 0.88 | M156: 0.079094 | N156: 40 | O156: 0.97801 | P156: 0.013 | Q156: 0.568
A157: C12-L4 | B157: Water liP | C157: did not run | D157: HP(110°) | E157: US | F157: overnight | G157: 5
A158: C12-L5 | B158: 2M HCI 08+HP | C158: SF-I)D614 | D158: HP(110°)-US | E158: 10e 5 | F158: 0.014 | G158: 0.109 | H158: 19.9705 | I158: 2.0021 | J158: 8.567 | K158: 2.1 | L158: 0.049692 | M158: 0.113 | N158: 0.84666 | O158: 0.025 | P158: -0.109
A159: C12-L6 | B159: 6M HCI US | C159: DI) | D159: US | E159: 5 | F159: 0.002 | G159: 0.012 | H159: 21.232 | I159: 1.9899 | J159: 8.142 | K159: 12.1 | L159: 0.045895 | M159: 0.717 | N159: 0.82973 | O159: 0.141 | P159: 0.338
A160: C12-L7 | B160: 6M HCI US+HP | C160: SF-DD6)4 | D160: HP(110°)-85 | E160: 2012-05-15 | F160: 0.024 | G160: 0.147 | H160: 21.131 | I160: 1.9626 | J160: 11.47 | K160: 1.32 | L160: 0.047408 | M160: 0.138 | N160: 0.83612 | O160: 0.019 | P160: 0.09
A161: C12-LS | B161: 1M HF US | C161: DD | D161: 5 | E161: S | F161: 0.037 | G161: 0.072 | H161: 79.78 | I161: 1.2573 | J161: 116.22 | K161: 4 | L161: 0.011199 | M161: 3.05 | N161: 0.67436 | O161: 0.206 | P161: 0.955
A162: C12-L9 | B162: 1MHF US+HP | C162: SF | D162: HP(1100-US | E162: 2012-05-26 | F162: 0.076 | G162: 0.181 | H162: 46.974 | I162: 1.4538 | J162: 55.508 | K162: 1.05 | L162: 0.020821 | M162: 0.613 | N162: 71718 | O162: 0.085 | P162: 0.613
A163: C12-L70 | B163: 28M HF+ 14M HNO3 HP | C163: SF-006)4 | D163: HP(145°) | E163: 3days | F163: 0.044 | G163: 0.173 | H163: 33.058 | I163: 1.6285 | J163: 33.058 | K163: 1.23 | L163: 0.029809 | M163: 0.806 | N163: 0.75116 | O163: 0.145 | P163: 0.487
D164: 329 | E164: 2312

Sheet Iso_Plot_015
A1: Pb206-Pb-207 | B1: Age | C1: Age | E1: Pb206-Pb-207 | F1: Age | G1: Age | I1: Pb206-Pb-207 | J1: Age | K1: Age | M1: Pb206-Pb-207 | N1: Age | O1: Age | S1: 5379
A2: Ratio | B2: Million Years | C2: Category | E2: Ratio | F2: Million Years | G2: Category | I2: Ratio | J2: Million Years | K2: Category | M2: Ratio | N2: Million Years | O2: Category | S2: 5359
A3: 0.73085 | B3: 4792.59967 | C3: Older Than Earth | E3: 0.79873 | F3: 4919.47365 | G3: Older Than Earth | I3: 0.84336 | J3: 4996.785637 | K3: Older Than Earth | M3: 0.82891 | N3: 4972.240036 | O3: Older Than Earth | S3: 5344
A4: 0.80647 | B4: 4933.205875 | C4: Older Than Earth | E4: 0.83006 | F4: 4974.210086 | G4: Older Than Earth | I4: 0.90695 | J4: 5099.743831 | K4: Older Than Solar System | M4: 0.8899 | N4: 5072.908299 | O4: Older Than Solar System | S4: 5336
A5: 0.74939 | B5: 4828.461315 | C5: Older Than Earth | E5: 0.79731 | F5: 4916.938934 | G5: Older Than Earth | I5: 0.83128 | J5: 4976.296883 | K5: Older Than Earth | M5: 0.71173 | N5: 4754.584498 | O5: Older Than Earth | S5: 5334
A6: 0.86665 | B6: 5035.422125 | C6: Older Than Solar System | E6: 0.85705 | F6: 5019.631559 | G6: Older Than Solar System | I6: 0.86255 | J6: 5028.701069 | K6: Older Than Solar System | M6: 0.87125 | N6: 5042.922764 | O6: Older Than Solar System | S6: 5333
A7: 0.71885 | B7: 4768.866817 | C7: Older Than Earth | E7: 0.82845 | F7: 4971.451203 | G7: Older Than Earth | I7: 0.85613 | J7: 5018.108446 | K7: Older Than Solar System | M7: 0.77816 | N7: 4882.278819 | O7: Older Than Earth | S7: 5325
A8: 0.84518 | B8: 4999.84547 | C8: Older Than Solar System | E8: 0.85871 | F8: 5022.375397 | G8: Older Than Solar System | I8: 0.86644 | J8: 5035.078697 | K8: Older Than Solar System | M8: 0.89581 | N8: 5082.271505 | O8: Older Than Solar System | S8: 5321
A9: 0.82836 | B9: 4971.296811 | C9: Older Than Earth | E9: 0.84018 | F9: 4991.422459 | G9: Older Than Earth | I9: 0.80744 | J9: 4934.916945 | K9: Older Than Earth | M9: 0.80491 | N9: 4930.449455 | O9: Older Than Earth | S9: 5296
A10: 0.83172 | B10: 4977.048699 | C10: Older Than Earth | E10: 0.85888 | F10: 5022.656075 | G10: Older Than Solar System | I10: 0.92835 | J10: 5132.679046 | K10: Older Than Solar System | M10: 0.89269 | N10: 5077.336684 | O10: Older Than Solar System | S10: 5267
A11: 0.86306 | B11: 5029.538947 | C11: Older Than Solar System | E11: 0.85681 | F11: 5019.234392 | G11: Older Than Solar System | I11: 0.80844 | J11: 4936.678647 | K11: Older Than Earth | M11: 0.77419 | N11: 4874.979775 | O11: Older Than Earth | S11: 5259
A12: 0.72122 | B12: 4773.587414 | C12: Older Than Earth | E12: 0.64423 | F12: 4611.069989 | I12: 0.9199 | J12: 5119.771322 | K12: Older Than Solar System | M12: 0.85401 | N12: 5014.592037 | O12: Older Than Solar System | S12: 5258
A13: 0.84983 | B13: 5007.631502 | C13: Older Than Solar System | E13: 0.62159 | F13: 4559.294333 | I13: 0.92542 | J13: 5128.217497 | K13: Older Than Solar System | M13: 0.89561 | N13: 5081.955717 | O13: Older Than Solar System | S13: 5250
A14: 0.81891 | B14: 4954.985694 | C14: Older Than Earth | E14: 0.62987 | F14: 4578.461203 | I14: 0.7259 | J14: 4782.860644 | K14: Older Than Earth | M14: 0.98433 | N14: 5215.169162 | O14: Older Than Solar System | S14: 5245
A15: 0.96359 | B15: 5185.200338 | C15: Older Than Solar System | E15: 0.62624 | F15: 4570.091827 | I15: 0.90807 | J15: 5101.487873 | K15: Older Than Solar System | M15: 0.92618 | N15: 5129.376195 | O15: Older Than Solar System | S15: 5244
A16: 0.78653 | B16: 4897.53839 | C16: Older Than Earth | E16: 0.6437 | F16: 4609.880371 | I16: 0.90861 | J16: 5102.327937 | K16: Older Than Solar System | M16: 0.99857 | N16: 5235.361506 | O16: Older Than Solar System | S16: 5244
A17: 0.98081 | B17: 5210.130175 | C17: Older Than Solar System | E17: 0.63425 | F17: 4588.491158 | I17: AVG | J17: =AVERAGE(J3:J16) -> 5028.118177 | K17: Table 5 | M17: 0.95025 | N17: 5165.561448 | O17: Older Than Solar System | S17: 5238
A18: 0.68995 | B18: 4709.928275 | C18: Older Than Earth | E18: 0.65196 | F18: 4628.302181 | G18: Older Than Earth | I18: MAX | J18: =MAX(J3:J16) -> 5132.679046 | K18: Page 1590 | M18: 1.01559 | N18: 5259.100314 | O18: Older Than Solar System | S18: 5235
A19: 0.9112 | B19: 5106.349788 | C19: Older Than Solar System | E19: 0.66154 | F19: 4649.357191 | G19: Older Than Earth | I19: MIN | J19: =MIN(J3:J16) -> 4782.860644 | M19: 0.64767 | N19: 4618.765866 | S19: 5215
A20: 1.09068 | B20: 5359.045509 | C20: Older Than Solar System | E20: 0.63823 | F20: 4597.540911 | I20: STD DEV | J20: =STDEV(J3:J16) -> 98.60123884 | M20: AVG | N20: =AVERAGE(N3:N19) -> 5024.109064 | O20: Table 6 | S20: 5210
A21: 0.70469 | B21: 4740.311788 | C21: Older Than Earth | E21: 0.648 | F21: 4619.501829 | M21: MAX | N21: =MAX(N3:N19) -> 5259.100314 | O21: Page 1590 | S21: 5193
A22: 0.87958 | B22: 5056.399096 | C22: Older Than Solar System | E22: 0.6569 | F22: 4639.200441 | M22: MIN | N22: =MIN(N3:N19) -> 4618.765866 | S22: 5185
A23: 0.96906 | B23: 5193.170135 | C23: Older Than Solar System | E23: AVG | F23: =AVERAGE(F3:F22) -> 4775.429259 | G23: Table 4 | M23: STD DEV | N23: =STDEV(N3:N19) -> 171.4998267 | S23: 5166
A24: 0.69308 | B24: 4716.437799 | C24: Older Than Earth | E24: MAX | F24: =MAX(F3:F22) -> 5022.656075 | G24: Page 1599 | S24: 5133
A25: 0.80688 | B25: 4933.929378 | C25: Older Than Earth | E25: MIN | F25: =MIN(F3:F22) -> 4559.294333 | S25: 5129
A26: 0.65601 | B26: 4637.243488 | C26: Older Than Earth | E26: STD DEV | F26: =STDEV(F3:F22) -> 196.7688142 | S26: 5128
A27: 0.82706 | B27: 4969.064722 | C27: Older Than Earth | S27: 5120
A28: 0.68483 | B28: 4699.211722 | C28: Older Than Earth | S28: 5106
A29: 0.80082 | B29: 4923.195614 | C29: Older Than Earth | S29: 5102
A30: 0.68338 | B30: 4696.161183 | C30: Older Than Earth | S30: 5101
A31: 0.70765 | B31: 4746.331294 | C31: Older Than Earth | S31: 5100
A32: 0.73443 | B32: 4799.599479 | C32: Older Than Earth | S32: 5082
A33: 0.82824 | B33: 4971.090928 | C33: Older Than Earth | S33: 5082
A34: AVG | B34: =AVERAGE(B3:B33) -> 4923.317079 | C34: Table 3 | S34: 5077
A35: MAX | B35: =MAX(B3:B33) -> 5359.045509 | C35: Page 1588 | S35: 5073
A36: MIN | B36: =MIN(B3:B33) -> 4637.243488 | S36: 5056
A37: STD DEV | B37: =STDEV(B3:B33) -> 176.7737778 | L37: Pb206-Pb-207 | M37: Age | N37: Age | S37: 5043
L38: Ratio | M38: Million Years | N38: Category | S38: 5035
A39: Allende | B39: Whole-rock-R0 | C39: 0.817 | D39: 0.7 | E39: 10.0744 | F39: 10.0595 | G39: 0.0018 | H39: 10.7802 | I39: 0.0018 | J39: 30.2802 | K39: 0.0018 | L39: 1.07164 | M39: =[1]!AgePb76($L$39) -> 5334.406572 | N39: Older Than Solar System | S39: 5035
A40: CV3 | B40: L0 | C40: 0.212 | D40: 0.3 | E40: 10.2087 | F40: 10.2075 | G40: 0.0034 | H40: 10.8667 | I40: 0.0026 | J40: 30.4131 | K40: 0.003 | L40: 1.06458 | M40: =[1]!AgePb76($L$40) -> 5325.152926 | N40: Older Than Solar System | S40: 5030
A41: MNHN | B41: CAI-MNHN-A-R2 | C41: 0.041 | D41: 0.4 | E41: 21.4276 | F41: 21.4631 | G41: 0.0055 | H41: 17.8955 | I41: 0.0043 | J41: 45.6548 | K41: 0.0047 | L41: 0.83378 | M41: =[1]!AgePb76($L$41) -> 4980.562956 | N41: 5 | S41: 5029
B42: L1 | C42: 0.028 | D42: 1.3 | E42: 11.6308 | F42: 11.6286 | G42: 0.0034 | H42: 11.7298 | I42: 0.0082 | J42: 32.2183 | K42: 0.0083 | L42: 1.0087 | M42: =[1]!AgePb76($L$42) -> 5249.541441 | N42: Older Than Solar System | S42: 5029
B43: L2 | C43: 0.039 | D43: 1.8 | E43: 11.7045 | F43: 11.7019 | G43: 0.0025 | H43: 11.8735 | I43: 0.0071 | J43: 32.4806 | K43: 0.0058 | L43: 1.01467 | M43: =[1]!AgePb76($L$43) -> 5257.827918 | N43: Older Than Solar System | S43: 5023
B44: CAI-MNHN-B-R2 | C44: 0.02 | D44: 0.3 | E44: 35.3774 | F44: 36.1462 | G44: 0.019 | H44: 26.5553 | I44: 0.0194 | J44: 65.9696 | K44: 0.0193 | L44: 0.73466 | M44: =[1]!AgePb76($L$44) -> 4800.047942 | N44: 80 | S44: 5022
B45: L1 | C45: 0.02 | D45: 1.8 | E45: 10.7423 | F45: 10.74 | G45: 0.0018 | H45: 11.1946 | I45: 0.004 | J45: 31.2416 | K45: 0.0041 | L45: 1.04233 | M45: =[1]!AgePb76($L$45) -> 5295.560132 | N45: Older Than Solar System | S45: 5020
B46: L2 | C46: 0.027 | D46: 0.1 | E46: 18.9577 | F46: 18.9589 | G46: 0.0198 | H46: 16.3567 | I46: 0.0188 | J46: 41.432 | K46: 0.0193 | L46: 0.86275 | M46: =[1]!AgePb76($L$46) -> 5029.029711 | N46: Older Than Solar System | S46: 5019
A47: UCLA | B47: CAI-UCLA-A-R2 | C47: 0.04 | D47: 0.2 | E47: 75.6525 | F47: 79.5621 | G47: 0.0355 | H47: 54.1571 | I47: 0.0336 | J47: 110.7024 | K47: 0.0308 | L47: 0.68069 | M47: =[1]!AgePb76($L$47) -> 4690.483526 | N47: 80 | S47: 5018
B48: L1 | C48: 0.02 | D48: 1.3 | E48: 11.7424 | F48: 11.7403 | G48: 0.0029 | H48: 11.7994 | I48: 0.0075 | J48: 31.8265 | K48: 0.0056 | L48: 1.00503 | M48: =[1]!AgePb76($L$48) -> 5244.421646 | N48: Older Than Solar System | S48: 5016
B49: L2 | C49: 0.035 | D49: 0.2 | E49: 30.3939 | F49: 30.4315 | G49: 0.0115 | H49: 23.5929 | I49: 0.0111 | J49: 48.3265 | K49: 0.0095 | L49: 0.77528 | M49: =[1]!AgePb76($L$49) -> 4876.987758 | N49: 5 | S49: 5015
B50: CAI-UCLA-B-R2 | C50: 0.025 | D50: 0.2 | E50: 64.0099 | F50: 66.7515 | G50: 0.0535 | H50: 46.1543 | I50: 0.0536 | J50: 102.1554 | K50: 0.0528 | L50: 0.69144 | M50: =[1]!AgePb76($L$50) -> 4713.030988 | N50: 79 | S50: 5008
B51: L1 | C51: 0.03 | D51: 1.2 | E51: 11.7617 | F51: 11.7585 | G51: 0.0039 | H51: 11.8113 | I51: 0.0045 | J51: 31.913 | K51: 0.0041 | L51: 1.0045 | M51: =[1]!AgePb76($L$51) -> 5243.680643 | N51: Older Than Solar System | S51: 5000
B52: L2 | C52: 0.021 | D52: 0.2 | E52: 31.5346 | F52: 31.6124 | G52: 0.0307 | H52: 24.1457 | I52: 0.0259 | J52: 51.5115 | K52: 0.0314 | L52: 0.7638 | M52: =[1]!AgePb76($L$52) -> 4855.686894 | N52: 94 | S52: 4997
B53: CAI-UCLA-C-R2 | C53: 0.035 | D53: 0.2 | E53: 56.2464 | F53: 58.8031 | G53: 0.0192 | H53: 41.1736 | I53: 0.0194 | J53: 92.3165 | K53: 0.0203 | L53: 0.7002 | M53: =[1]!AgePb76($L$53) -> 4731.129075 | N53: 95 | S53: 4991
B54: L1 | C54: 0.018 | D54: 1.5 | E54: 11.711 | F54: 11.7079 | G54: 0.0034 | H54: 11.7726 | I54: 0.0033 | J54: 31.9127 | K54: 0.0034 | L54: 1.00553 | M54: =[1]!AgePb76($L$54) -> 5245.120328 | N54: Older Than Solar System | S54: 4981
B55: L2 | C55: 0.018 | D55: 0.2 | E55: 25.6849 | F55: 25.7226 | G55: 0.0217 | H55: 20.476 | I55: 0.0197 | J55: 47.7047 | K55: 0.0234 | L55: 0.79603 | M55: =[1]!AgePb76($L$55) -> 4914.649999 | N55: 7 | S55: 4977
B56: Olivine-R0 | C56: 0.6 | D56: 0.8 | E56: 9.9052 | F56: 9.905 | G56: 0.0021 | H56: 10.6861 | I56: 0.0026 | J56: 30.1532 | K56: 0.0028 | L56: 1.07887 | M56: =[1]!AgePb76($L$56) -> 5343.816618 | N56: Older Than Solar System | S56: 4976
B57: L0 | C57: 0.198 | D57: 1.2 | E57: 10.0271 | F57: 10.0267 | G57: 0.002 | H57: 10.7602 | I57: 0.0025 | J57: 30.2504 | K57: 0.0028 | L57: 1.07315 | M57: =[1]!AgePb76($L$57) -> 5336.377401 | N57: Older Than Solar System | S57: 4974
A58: Murchison | B58: Whole-rock-R0 | C58: 0.784 | D58: 1 | E58: 10.0889 | F58: 10.0741 | G58: 0.0019 | H58: 10.782 | I58: 0.0023 | J58: 30.2557 | K58: 0.0024 | L58: 1.07027 | M58: =[1]!AgePb76($L$58) -> 5332.615932 | N58: Older Than Solar System | S58: 4972
A59: CM2 | B59: L0 | C59: 0.221 | D59: 1.7 | E59: 10.2599 | F59: 10.2587 | G59: 0.0031 | H59: 10.885 | I59: 0.003 | J59: 30.416 | K59: 0.0034 | L59: 1.06105 | M59: =[1]!AgePb76($L$59) -> 5320.501791 | N59: Older Than Solar System | S59: 4971
B60: CAI-R0-Murch | C60: 0.248 | D60: 0.4 | E60: 11.921 | F60: 11.9229 | G60: 0.0026 | H60: 11.9291 | I60: 0.0033 | J60: 34.1505 | K60: 0.0025 | L60: 1.00052 | M60: =[1]!AgePb76($L$60) -> 5238.102891 | N60: Older Than Solar System | S60: 4971
B61: L0 | C61: 0.14 | D61: 0.1 | E61: 11.2361 | F61: 11.2351 | G61: 0.0032 | H61: 11.4745 | I61: 0.0028 | J61: 32.5067 | K61: 0.0027 | L61: 1.02131 | M61: =[1]!AgePb76($L$61) -> 5266.984074 | N61: Older Than Solar System | S61: 4971
A62: ENSL | B62: Blanke | C62: mean | F62: 18.35 | G62: 0.4 | H62: 15.71 | I62: 0.4 | J62: 38.25 | K62: 0.4 | L62: 0.8549 | M62: =[1]!AgePb76($L$62) -> 5016.069393 | N62: Older Than Solar System | S62: 4969
A63: Canyon-Diablo | B63: Troilitef | F63: 9.307 | G63: 0.003 | H63: 10.294 | I63: 0.003 | J63: 29.476 | K63: 0.009 | L63: 1.10605 | M63: =[1]!AgePb76($L$63) -> 5378.606625 | N63: Older Than Solar System | S63: 4955
L64: AVG | M64: =AVERAGE(M39:M63) -> 5120.815807 | N64: Table 2 | S64: 4937
L65: MAX | M65: =MAX(M39:M63) -> 5378.606625 | N65: Page 1587 | S65: 4935
L66: MIN | M66: =MIN(M39:M63) -> 4690.483526 | S66: 4934
L67: STD DEV | M67: =STDEV(M39:M63) -> 232.6590301 | S67: 4933
S68: 4930
S69: 4923
S70: 4919
S71: 4917
S72: 4915
S73: 4898
S74: 4882
S75: 4877
S76: 4875
S77: 4856
S78: 4828
S79: 4800
S80: 4800
S81: 4793
S82: 4783
S83: 4774
S84: 4769
S85: 4755
S86: 4746
S87: 4740
S88: 4731
S89: 4716
S90: 4713
S91: 4710

Sheet Iso_Plot_016
E1: 207Pb/206Pb | O1: 99274.74573
A2: Sample | B2: 206Pb/204Pb | C2: 207Pb/204Pb | D2: 207Pb/206Pb | E2: Age | F2: Model Age | G2: Table 9 | O2: 95540.7447
A3: TE-118 | B3: 18.6034 | C3: 15.7231 | D3: =(C3/B3) -> 0.8451734629 | E3: =[1]!AgePb76(D3) -> 4999.834493 | F3: 3600 | O3: 71705.77471
A4: TE-126 | B4: 18.563 | C4: 15.6986 | D4: =(C4/B4) -> 0.8456930453 | E4: =[1]!AgePb76(D4) -> 5000.706752 | F4: 3600 | O4: 70276.62381
A5: TE-137 | B5: 18.5211 | C5: 15.7332 | D5: 0.8494743833 | E5: =[1]!AgePb76(D5) -> 5007.037652 | F5: 3600 | O5: 68343.49494
A6: TE-138 | B6: 18.4571 | C6: 15.6795 | D6: 0.8495104865 | E6: =[1]!AgePb76(D6) -> 5007.097953 | F6: 3600 | O6: 67704.35205
A7: TE-025 | B7: 18.7968 | C7: 15.7579 | D7: 0.8383288645 | E7: =[1]!AgePb76(D7) -> 4988.290517 | F7: 3600 | O7: 6943.92153
A8: TE-150 | B8: 18.5892 | C8: 15.6761 | D8: 0.8432907279 | E8: =[1]!AgePb76(D8) -> 4996.669036 | F8: 3600 | O8: 5559.910686
O9: 5013.085563
E10: 208Pb/232Th | O10: 5007.097953
A11: Sample | B11: 232Th/204Pb | C11: 208Pb/204Pb | D11: 208Pb/232Th | E11: Age | F11: Model Age | O11: 5007.037652
A12: TE-118 | B12: 1.3933 | C12: 39.582 | D12: =(C12/B12) -> 28.40881361 | E12: =[1]!AgePb8Th2(D12) -> 68343.49494 | F12: 3600 | O12: 5000.706752
A13: TE-126 | B13: 1.4339 | C13: 39.4228 | D13: 27.49340958 | E13: =[1]!AgePb8Th2(D13) -> 67704.35205 | F13: 3600 | O13: 4999.834493
A14: TE-137 | B14: 1.2677 | C14: 39.7556 | D14: 31.3604165 | E14: =[1]!AgePb8Th2(D14) -> 70276.62381 | F14: 3600 | O14: 4996.669036
A15: TE-138 | B15: 1.1726 | C15: 39.5534 | D15: 33.73136619 | E15: =[1]!AgePb8Th2(D15) -> 71705.77471 | F15: 3600 | O15: 4988.290517
A16: TE-025 | B16: 0.3527 | C16: 39.4821 | D16: 111.942444 | E16: =[1]!AgePb8Th2(D16) -> 95540.7447 | F16: 3600
A17: TE-150 | B17: 0.2902 | C17: 39.1361 | D17: 134.8590627 | E17: =[1]!AgePb8Th2(D17) -> 99274.74573 | F17: 3600
E19: 206Pb/238U
A20: Sample | B20: 238U/204Pb | C20: 206Pb/204Pb | D20: 206Pb/238U | E20: Age | F20: Model Age
A21: TE-118 | B21: 36.65 | C21: 18.6034 | D21: =(C21/B21) -> 0.5075961801 | E21: =[1]!AgePb6U8(D21) -> 2646.359056 | F21: 3600
A22: TE-126 | B22: 15.78 | C22: 18.563 | D22: 1.176362484 | E22: =[1]!AgePb6U8(D22) -> 5013.085563 | F22: 3600
A23: TE-137 | B23: 23.51 | C23: 18.5211 | D23: 0.7877966823 | E23: =[1]!AgePb6U8(D23) -> 3745.263226 | F23: 3600
A24: TE-138 | B24: 17.12 | C24: 18.4571 | D24: 1.078101636 | E24: =[1]!AgePb6U8(D24) -> 4715.260607 | F24: 3600
A25: TE-025 | B25: 13.73 | C25: 18.7968 | D25: 1.369031318 | E25: =[1]!AgePb6U8(D25) -> 5559.910686 | F25: 3600
A26: TE-150 | B26: 9.6 | C26: 18.5892 | D26: 1.936375 | E26: =[1]!AgePb6U8(D26) -> 6943.92153 | F26: 3600
B29: MAXIMUM | C29: MINIMUM | D29: DIFFERENCE | E29: AVERAGE | F29: 4600 To 4999 | G29: 5000 To 5999 | H29: 6,000 To 9999 | I29: 10,000 To 19,999 | J29: Over 19,999 | K29: Total
A30: 206Pb/238U | B30: 6943.92153 | C30: 2646.359056 | D30: 4297.562474 | E30: 4770.633445 | F30: 1 | G30: 2 | H30: 1 | K30: =SUM(F30:J30) -> 4
A31: 208Pb/232Th | B31: 99274.74573 | C31: 67704.35205 | D31: 31570.39367 | E31: 78807.62265 | J31: 6 | K31: =SUM(F31:J31) -> 6
A32: 207Pb/206Pb | B32: 5007.097953 | C32: 4988.290517 | D32: 18.80743623 | E32: 4999.9394 | F32: 3 | G32: 3 | K32: =SUM(F32:J32) -> 6
D37: 207Pb/206Pb | E37: 208Pb/232Th | F37: 206Pb/238U | G37: Model
D38: Age | E38: Age | F38: Age | G38: Age
D39: 4999.834493 | E39: 68343.49494 | F39: 2646.359056 | G39: 3600
D40: 5000.706752 | E40: 67704.35205 | F40: 5013.085563 | G40: 3600
D41: 5007.037652 | E41: 70276.62381 | F41: 3745.263226 | G41: 3600
D42: 5007.097953 | E42: 71705.77471 | F42: 4715.260607 | G42: 3600
D43: 4988.290517 | E43: 95540.7447 | F43: 5559.910686 | G43: 3600
D44: 4996.669036 | E44: 99274.74573 | F44: 6943.92153 | G44: 3600

Sheet Iso_Plot_017
A1: Table 4 | H1: Age | J1: Age | L1: Age | R1: 10084
A2: Sample | B2: 238U/204Pb | C2: 232Th/204Pb | D2: 206Pb/204Pb | E2: 207Pb/204Pb | F2: 208Pb/204Pb | G2: 207Pb/206Pb | H2: 207Pb/206Pb | I2: 208Pb/232Th | J2: 208Pb/232Th | K2: 206Pb/238U | L2: 206Pb/238U | R2: 9320
A3: 780 | B3: 15.9 | C3: 80 | D3: 19.409 | E3: 15.645 | F3: 39.44 | G3: =(E3/D3) -> 0.8060693493 | H3: =[1]!AgePb76(G3) -> 4932.498493 | I3: =(F3/C3) -> 0.493 | J3: =[1]!AgePb8Th2(I3) -> 8100.808864 | K3: =(D3/B3) -> 1.220691824 | L3: =[1]!AgePb6U8(K3) -> 5143.070296 | R3: 8101
A4: 781 | B4: 12 | C4: 101 | D4: 19.423 | E4: 15.627 | F4: 39.38 | G4: =(E4/D4) -> 0.8045616022 | H4: =[1]!AgePb76(G4) -> 4929.833082 | I4: =(F4/C4) -> 0.3899009901 | J4: =[1]!AgePb8Th2(I4) -> 6654.522778 | K4: =(D4/B4) -> 1.618583333 | L4: =[1]!AgePb6U8(K4) -> 6205.533983 | R4: 7743
A5: 782 | B5: 21.3 | C5: 288 | D5: 19.475 | E5: 15.632 | F5: 39.8 | G5: 0.8026700899 | H5: =[1]!AgePb76(G5) -> 4926.481721 | I5: 0.1381944444 | J5: =[1]!AgePb8Th2(I5) -> 2616.335244 | K5: 0.9143192488 | L5: =[1]!AgePb6U8(K5) -> 4186.056895 | R5: 7502
A6: 783 | B6: 27.5 | C6: 88 | D6: 19.732 | E6: 15.623 | F6: 39.55 | G6: 0.7917595783 | H6: =[1]!AgePb76(G6) -> 4906.985067 | I6: 0.4494318182 | J6: =[1]!AgePb8Th2(I6) -> 7502.205763 | K6: 0.7175272727 | L6: =[1]!AgePb6U8(K6) -> 3486.772759 | R6: 7080
A7: 784 | B7: 18 | C7: 118 | D7: 19.514 | E7: 15.643 | F7: 39.45 | G7: 0.8016295993 | H7: =[1]!AgePb76(G7) -> 4924.634607 | I7: 0.3343220339 | J7: =[1]!AgePb8Th2(I7) -> 5829.678081 | K7: 1.084111111 | L7: =[1]!AgePb6U8(K7) -> 4733.875512 | R7: 7060
A8: 785 | B8: 24.7 | C8: 120 | D8: 19.613 | E8: 15.639 | F8: 39.53 | G8: 0.7973792892 | H8: =[1]!AgePb76(G8) -> 4917.062727 | I8: 0.3294166667 | J8: =[1]!AgePb8Th2(I8) -> 5755.234958 | K8: 0.794048583 | L8: =[1]!AgePb6U8(K8) -> 3767.766924 | R8: 6891
A9: 786 | B9: 33.4 | C9: 97 | D9: 19.505 | E9: 15.651 | F9: 39.41 | G9: 0.8024096386 | H9: =[1]!AgePb76(G9) -> 4926.019598 | I9: 0.4062886598 | J9: =[1]!AgePb8Th2(I9) -> 6891.441698 | K9: 0.5839820359 | L9: =[1]!AgePb6U8(K9) -> 2964.976325 | R9: 6655
A10: 286 | B10: 8.6 | C10: 61 | D10: 19.985 | E10: 15.613 | F10: 39.46 | G10: 0.7812359269 | H10: =[1]!AgePb76(G10) -> 4887.906848 | I10: 0.6468852459 | J10: =[1]!AgePb8Th2(I10) -> 10083.59321 | K10: 2.323837209 | L10: =[1]!AgePb6U8(K10) -> 7742.916367 | R10: 6507
A11: 288 | B11: 35.4 | C11: 174 | D11: 19.702 | E11: 15.782 | F11: 40.06 | G11: =(E11/D11) -> 0.8010354279 | H11: =[1]!AgePb76(G11) -> 4923.57867 | I11: =(F11/C11) -> 0.2302298851 | J11: =[1]!AgePb8Th2(I11) -> 4187.994954 | K11: =(D11/B11) -> 0.5565536723 | L11: =[1]!AgePb6U8(K11) -> 2852.371913 | R11: 6387
A12: 289 | B12: 31 | C12: 139 | D12: 19.534 | E12: 15.581 | F12: 39.27 | G12: 0.797634893 | H12: =[1]!AgePb76(G12) -> 4917.519295 | I12: 0.2825179856 | J12: =[1]!AgePb8Th2(I12) -> 5029.314236 | K12: 0.6301290323 | L12: =[1]!AgePb6U8(K12) -> 3150.09942 | R12: 6313
A13: 290 | B13: 43.7 | C13: 107 | D13: 19.678 | E13: 15.592 | F13: 39.23 | G13: 0.7923569468 | H13: =[1]!AgePb76(G13) -> 4908.059921 | I13: 0.366635514 | J13: =[1]!AgePb8Th2(I13) -> 6313.327745 | K13: 0.4502974828 | L13: =[1]!AgePb6U8(K13) -> 2396.574994 | R13: 6206
A14: 291 | B14: 45.7 | C14: 67 | D14: 19.653 | E14: 15.629 | F14: 39.25 | G14: 0.7952475449 | H14: =[1]!AgePb76(G14) -> 4913.248859 | I14: 0.5858208955 | J14: =[1]!AgePb8Th2(I14) -> 9319.902747 | K14: 0.4300437637 | L14: =[1]!AgePb6U8(K14) -> 2305.914893 | R14: 5830
A15: 292 | B15: 24.9 | C15: 169 | D15: 19.726 | E15: 15.606 | F15: 39.41 | G15: 0.7911385988 | H15: =[1]!AgePb76(G15) -> 4905.866814 | I15: 0.2331952663 | J15: =[1]!AgePb8Th2(I15) -> 4236.656462 | K15: 0.7922088353 | L15: =[1]!AgePb6U8(K15) -> 3761.152911 | R15: 5755
A16: 293 | B16: 11.6 | C16: 180 | D16: 19.643 | E16: 15.624 | F16: 39.45 | G16: 0.7953978517 | H16: =[1]!AgePb76(G16) -> 4913.518126 | I16: 0.2191666667 | J16: =[1]!AgePb8Th2(I16) -> 4005.40809 | K16: 1.693362069 | L16: =[1]!AgePb6U8(K16) -> 6387.044338 | R16: 5143
A17: 294 | B17: 9.8 | C17: 94 | D17: 19.501 | E17: 15.638 | F17: 39.43 | G17: 0.8019075945 | H17: =[1]!AgePb76(G17) -> 4925.128363 | I17: 0.4194680851 | J17: =[1]!AgePb8Th2(I17) -> 7079.984103 | K17: 1.989897959 | L17: =[1]!AgePb6U8(K17) -> 7060.365895 | R17: 5029
A18: 295 | B18: 11 | C18: 161 | D18: 19.185 | E18: 15.647 | F18: 39.31 | G18: 0.8155850925 | H18: =[1]!AgePb76(G18) -> 4949.199116 | I18: 0.2441614907 | J18: =[1]!AgePb8Th2(I18) -> 4415.599829 | K18: 1.744090909 | L18: =[1]!AgePb6U8(K18) -> 6507.331761 | R18: 4949
G19: Average | H19: =AVERAGE(H3:H18) -> 4919.221332 | J19: =AVERAGE(J3:J18) -> 6126.375548 | L19: =AVERAGE(L3:L18) -> 4540.739074 | R19: 4932
G20: Maximum | H20: =MAX(H3:H19) -> 4949.199116 | J20: =MAX(J3:J19) -> 10083.59321 | L20: =MAX(L3:L19) -> 7742.916367 | R20: 4930
G21: Minimum | H21: =MIN(H3:H20) -> 4887.906848 | J21: =MIN(J3:J20) -> 2616.335244 | L21: =MIN(L3:L20) -> 2305.914893 | R21: 4926
G22: Std Deviation | H22: =STDEV(H3:H18) -> 13.85320476 | J22: =STDEV(J3:J18) -> 2032.426869 | L22: =STDEV(L3:L18) -> 1757.871622 | R22: 4926
R23: 4925
R24: 4925
G25: MAXIMUM | H25: MINIMUM | I25: DIFFERENCE | J25: AVERAGE | K25: 4600 To 4999 | L25: 5000 To 5999 | M25: 6,000 To 9999 | N25: 10,000 To 19,999 | O25: Over 19,999 | P25: Total | R25: 4924
F26: 207Pb/206Pb | G26: 4949.199116 | H26: 4887.906848 | I26: 61.29226777 | J26: 4919.221332 | K26: 16 | P26: =SUM(K26:O26) -> 16 | R26: 4918
F27: 208Pb/232Th | G27: 10083.59321 | H27: 2616.335244 | I27: 7467.257968 | J27: 6126.375548 | L27: 3 | M27: 7 | N27: 1 | P27: =SUM(K27:O27) -> 11 | R27: 4917
F28: 206Pb/238U | G28: 7742.916367 | H28: 2305.914893 | I28: 5437.001474 | J28: 4540.739074 | K28: 1 | L28: 1 | M28: 5 | P28: =SUM(K28:O28) -> 7 | R28: 4914
R29: 4913
R30: 4908
H31: MAXIMUM | I31: MINIMUM | J31: DIFFERENCE | K31: AVERAGE | R31: 4907
F32: Age | H32: 10083.59321 | I32: 2616.335244 | J32: 7467.257968 | K32: 6126.375548 | R32: 4906
F33: 208Pb/232Th | R33: 4888
F34: 10083.59321
F35: 9319.902747 | H35: Dating | I35: Age | J35: Age | K35: Age
F36: 8100.808864 | H36: Summary | I36: 207Pb/206Pb | J36: 208Pb/232Th | K36: 206Pb/238U
F37: 7502.205763 | H37: Average | I37: 4919.221332 | J37: 6126.375548 | K37: 4540.739074
F38: 7079.984103 | H38: Maximum | I38: 4949.199116 | J38: 10083.59321 | K38: 7742.916367
F39: 6891.441698 | H39: Minimum | I39: 4887.906848 | J39: 2616.335244 | K39: 2305.914893
F40: 6654.522778 | H40: Std Deviation | I40: 13.85320476 | J40: 2032.426869 | K40: 1757.871622
F41: 6313.327745
F42: 5829.678081
F43: 5755.234958
F44: 5029.314236
F45: 4415.599829
F46: 4236.656462
F47: 4187.994954
F48: 4005.40809
F49: 2616.335244

Sheet Iso_Plot_018
R1: 352962
A2: Table 1 | R2: 82030
A3: Sample | B3: 207Pb/206Pb | C3: 207Pb/206Pb | D3: 206Pb/204Pb | F3: 207Pb/204Pb | H3: 208Pb/204Pb | J3: 206Pb/238U | K3: 206Pb/238U | L3: 238U/204Pb | M3: 232Th/204Pb | N3: 208Pb/232Th | O3: 208Pb/232Th | R3: 57900
A4: Number | B4: Ratio | C4: Age | D4: Ratio | F4: Ratio | H4: Ratio | J4: Ratio | K4: Age | L4: Ratio | M4: Ratio | N4: Ratio | O4: Age | R4: 31193
A5: HD1939Pb1-Cc | B5: =(F5/D5) -> 0.8446128858 | C5: =[1]!AgePb76($B$5) -> 4998.892774 | D5: 18.47 | E5: 0.09 | F5: 15.6 | G5: 0.14 | H5: 39.24 | I5: =(1/J5) -> 2.712506768 | J5: =(D5/L5) -> 0.3686626747 | K5: =[1]!AgePb6U8(J5) -> 2023.104678 | L5: 50.1 | M5: 22900 | N5: =(H5/M5) -> 0.001713537118 | O5: =[1]!AgePb8Th2(N5) -> 34.60476378 | R5: 28600
A6: HD1939-Mn2 | B6: 0 | C6: 0 | J6: 0 | L6: - | M6: - | N6: 0 | R6: 28058
A7: HD2055Pb6-Cc | B7: =(F7/D7) -> 0.7540029112 | C7: =[1]!AgePb76($B$7) -> 4837.237033 | D7: 20.61 | E7: 0.3 | F7: 15.54 | G7: 0.34 | H7: 37.53 | I7: =(1/J7) -> 0.8927704998 | J7: =(D7/L7) -> 1.120108696 | K7: =[1]!AgePb6U8(J7) -> 4844.26984 | L7: 18.4 | N7: 0 | R7: 23318
B8: 0 | C8: 0 | J8: 0 | N8: 0 | R8: 21152
A9: HD2055Pb7-Cc1 | B9: 0.8213909378 | C9: =[1]!AgePb76($B$9) -> 4959.287199 | D9: 18.98 | E9: 0.092 | F9: 15.59 | G9: 0.14 | H9: 39.18 | I9: =(1/J9) -> 4.109589041 | J9: 0.2433333333 | K9: =[1]!AgePb6U8(J9) -> 1404.002869 | L9: 78 | N9: 0 | R9: 20209
A10: HD2055Pb7-Cc2 | B10: 0.8152400835 | C10: =[1]!AgePb76($B$10) -> 4948.597236 | D10: 19.16 | E10: 0.22 | F10: 15.62 | G10: 0.24 | H10: 39.28 | I10: 0.7202505219 | J10: 1.388405797 | K10: =[1]!AgePb6U8(J10) -> 5612.416521 | L10: 13.8 | M10: 1480 | N10: =(H10/M10) -> 0.02654054054 | O10: =[1]!AgePb8Th2(N10) -> 529.4482193 | R10: 16434
A11: HD2055Pb10-Cc | B11: 0.778553616 | C11: =[1]!AgePb76($B$11) -> 4883.00034 | D11: 20.05 | E11: 0.16 | F11: 15.61 | G11: 0.2 | H11: 39.3 | I11: 5.685785536 | J11: 0.175877193 | K11: =[1]!AgePb6U8(J11) -> 1044.412031 | L11: 114 | N11: 0 | R11: 15648
A12: HD2055Pb11-Cc | B12: 0.08808487486 | C12: =[1]!AgePb76($B$12) -> 1384.335949 | D12: 183.8 | E12: 0.53 | F12: 16.19 | G12: 0.23 | H12: 39.97 | I12: 15.28835691 | J12: 0.06540925267 | K12: =[1]!AgePb6U8(J12) -> 408.4383572 | L12: 2810 | N12: 0 | R12: 15434
A13: HD2055Pb11-Op | B13: 0.017999002 | C13: 0 | D13: 2004 | E13: 2.2 | F13: 36.07 | G13: 1.8 | H13: 41.28 | I13: 5788.423154 | J13: 0.0001727586207 | K13: =[1]!AgePb6U8(J13) -> 1.113577435 | L13: 11600000 | M13: 19900 | N13: 0.002074371859 | O13: =[1]!AgePb8Th2(N13) -> 41.88425105 | R13: 13503
A14: HD2055Pb12-Cc | B14: 0.05192915876 | C14: =[1]!AgePb76($B$14) -> 282.291782 | D14: 316.2 | E14: 0.47 | F14: 16.42 | G14: 0.21 | H14: 39.91 | I14: 7.273877293 | J14: 0.1374782609 | K14: =[1]!AgePb6U8(J14) -> 830.3868515 | L14: 2300 | N14: 0 | R14: 12900
A15: HD2055Pb12-Op | B15: 0.04029008864 | C15: =[1]!AgePb76($B$15) -> -332.3341065 | D15: 6205 | E15: 3..2 | F15: 250 | G15: 3.1 | H15: 44.51 | I15: 1110.394843 | J15: 0.0009005805515 | K15: =[1]!AgePb6U8(J15) -> 5.802902641 | L15: 6890000 | M15: 1.16e-06 | N15: 38370689.66 | O15: =[1]!AgePb8Th2(N15) -> 352962.1923 | R15: 12301
A16: HD-2057-Pb1-Cc | B16: 0.1425045704 | C16: =[1]!AgePb76($B$16) -> 2257.863581 | D16: 109.4 | E16: 0.67 | F16: 15.59 | G16: 0.22 | H16: 39.2 | I16: 0.244 | J16: 0.3038888889 | K16: =[1]!AgePb6U8(J16) -> 1710.564074 | L16: 360 | M16: 1760 | N16: 0.02227272727 | O16: =[1]!AgePb8Th2(N16) -> 445.2412858 | R16: 11023
A17: HD-2057-Pb2-Cc | B17: 0.376541717 | C17: =[1]!AgePb76($B$17) -> 3817.947108 | D17: 41.35 | E17: 0.2 | F17: 15.57 | G17: 0.2 | H17: 38.43 | I17: 0.229 | J17: 0.07020373514 | K17: =[1]!AgePb6U8(J17) -> 437.3829945 | L17: 589 | M17: 1690 | N17: 0.02273964497 | O17: =[1]!AgePb8Th2(N17) -> 454.4710072 | R17: 8442
A18: HD-2057-Pb2-Op | B18: 0.02309868875 | C18: 0 | D18: 1449 | E18: 3.62 | F18: 33.47 | G18: 2.03 | H18: 39.72 | I18: 0.632 | J18: 0.0002281889764 | K18: =[1]!AgePb6U8(J18) -> 1.470832846 | L18: 6350000 | M18: 13900 | N18: 0.002857553957 | O18: =[1]!AgePb8Th2(N18) -> 57.67516747 | R18: 8126
A19: HD2059Pb4-Cc | B19: 0.1919118537 | C19: =[1]!AgePb76($B$19) -> 2758.61541 | D19: 82.59 | E19: 0.22 | F19: 15.85 | G19: 0.25 | H19: 39.52 | I19: 0.3 | J19: 0.4009223301 | K19: =[1]!AgePb6U8(J19) -> 2173.284944 | L19: 206 | M19: 415 | N19: 0.09522891566 | O19: =[1]!AgePb8Th2(N19) -> 1838.572952 | R19: 8010
A20: HD2062Pb1-Cc | B20: 0.03858615611 | C20: =[1]!AgePb76($B$20) -> -444.7733138 | D20: 407.4 | E20: 0.5 | F20: 15.72 | G20: 0.21 | H20: 44.83 | I20: 0.3 | J20: 7.122377622 | K20: =[1]!AgePb6U8(J20) -> 13502.80691 | L20: 57.2 | N20: 0 | R20: 7940
A21: HD2062Pb2-Cc | B21: 0.8123044838 | C21: =[1]!AgePb76($B$21) -> 4943.464994 | D21: 19.18 | E21: 0.12 | F21: 15.58 | G21: 0.17 | H21: 39.14 | I21: 0.18 | J21: 0.35917603 | K21: =[1]!AgePb6U8(J21) -> 1978.266919 | L21: 53.4 | M21: 27800 | N21: 0.001407913669 | O21: =[1]!AgePb8Th2(N21) -> 28.43705888 | R21: 7556
A22: HD2062Pb3-Mn | B22: 0.859030837 | C22: =[1]!AgePb76($B$22) -> 5022.905064 | D22: 18.16 | E22: 0.058 | F22: 15.6 | G22: 0.087 | H22: 39.18 | I22: 0.12 | J22: 4.528678304 | K22: =[1]!AgePb6U8(J22) -> 11023.03808 | L22: 4.01 | M22: 1600 | N22: 0.0244875 | O22: =[1]!AgePb8Th2(N22) -> 488.9840839 | R22: 7504
A23: HD2062-Mn2 | B23: 0 | C23: 0 | J23: 0 | L23: - | M23: - | N23: 0 | R23: 6416
A24: HD2065Pb4-Cc | B24: 0.2358518964 | C24: =[1]!AgePb76($B$24) -> 3092.190936 | D24: 66.44 | E24: 0.19 | F24: 15.67 | G24: 0.23 | H24: 39.18 | I24: 0.25 | J24: 0.1139622642 | K24: =[1]!AgePb6U8(J24) -> 695.7180773 | L24: 583 | M24: 3790 | N24: 0.01033773087 | O24: =[1]!AgePb8Th2(N24) -> 207.8759365 | R24: 6372
A25: HD2074Pb1-Cc2 | B25: 0.02798198198 | C25: 0 | D25: 555 | E25: 1 | F25: 15.53 | G25: 0.33 | H25: 43.61 | I25: 0.77 | J25: 0.1278801843 | K25: =[1]!AgePb6U8(J25) -> 775.7610177 | L25: 4340 | N25: 0 | R25: 6372
A26: HD2074Pb1-Cc3 | B26: 0.4612884161 | C26: =[1]!AgePb76($B$26) -> 4122.019377 | D26: 33.84 | E26: 0.29 | F26: 15.61 | G26: 0.33 | H26: 39.18 | I26: 0.42 | J26: 0.02773770492 | K26: =[1]!AgePb6U8(J26) -> 176.3737864 | L26: 1220 | M26: 825 | N26: 0.04749090909 | O26: =[1]!AgePb8Th2(N26) -> 937.8007904 | R26: 6292
A27: HD2074Pb2-Cc1 | B27: 0.1784507994 | C27: =[1]!AgePb76($B$27) -> 2638.525159 | D27: 88.82 | E27: 0.56 | F27: 15.85 | G27: 0.29 | H27: 39.48 | I27: 0.33 | J27: 0.02912131148 | K27: =[1]!AgePb6U8(J27) -> 185.046527 | L27: 3050 | N27: 0 | R27: 5612
A28: HD2074Pb2-Cc2 | B28: 0.3933483371 | C28: =[1]!AgePb76($B$28) -> 3883.845506 | D28: 39.99 | E28: 0.38 | F28: 15.73 | G28: 0.43 | H28: 38.61 | I28: 0.43 | J28: 0.02272159091 | K28: =[1]!AgePb6U8(J28) -> 144.8335232 | L28: 1760 | M28: 482 | N28: 0.08010373444 | O28: =[1]!AgePb8Th2(N28) -> 1557.495441 | R28: 5389
A29: HD2074Pb2-Op | B29: 0.05650014607 | C29: =[1]!AgePb76($B$29) -> 472.0762838 | D29: 342.3 | E29: 4.7 | F29: 19.34 | G29: 1.6 | H29: 38.05 | I29: 1.8 | J29: 8.84496124e-05 | K29: =[1]!AgePb6U8(J29) -> 0.5701576211 | L29: 3870000 | M29: 34700 | N29: 0.001096541787 | O29: =[1]!AgePb8Th2(N29) -> 22.15141029 | R29: 5024
A30: HD2089APbl-Ccl | B30: 0.005852568876 | C30: 0 | D30: 2686 | E30: 1.8 | F30: 15.72 | G30: 0.6 | H30: 72.02 | I30: 1 | J30: 2.464220183 | K30: =[1]!AgePb6U8(J30) -> 8009.589377 | L30: 1090 | N30: 0 | R30: 5023
A31: HD2089APb1-Cc2a | B31: 0.001137879911 | C31: 0 | D31: 13490 | E31: 6.3 | F31: 15.35 | G31: 2.9 | H31: 210.2 | I31: 5.4 | J31: 1.705436157 | K31: =[1]!AgePb6U8(J31) -> 6415.878422 | L31: 7910 | N31: 0 | R31: 5020
A32: HD2089APb1-Cc2b | B32: 0.0007023060797 | C32: 0 | D32: 23850 | E32: 8.5 | F32: 16.75 | G32: 4.5 | H32: 341.1 | I32: 7.9 | J32: 2.228971963 | K32: =[1]!AgePb6U8(J32) -> 7556.2534 | L32: 10700 | M32: — | N32: 0 | R32: 5019
A33: HD2089APb1-Cc2c | B33: 0.007870416876 | C33: 0 | D33: 1991 | E33: 3.5 | F33: 15.67 | G33: 0.57 | H33: 65.93 | I33: 1.6 | J33: 1.687288136 | K33: =[1]!AgePb6U8(J33) -> 6372.490295 | L33: 1180 | N33: 0 | R33: 5000
A34: HD2089APb1-Cc3 | B34: 0.01362445415 | C34: 0 | D34: 1145 | E34: 1.6 | F34: 15.6 | G34: 0.71 | H34: 53.63 | I34: 0.8 | J34: 1.013274336 | K34: =[1]!AgePb6U8(J34) -> 4510.958386 | L34: 1130 | M34: 43600 | N34: 0.001230045872 | O34: =[1]!AgePb8Th2(N34) -> 24.84668994 | R34: 4999
A35: HD2089APb2-Cc | B35: 0.2803671046 | C35: =[1]!AgePb76($B$35) -> 3364.97651 | D35: 55.57 | E35: 0.14 | F35: 15.58 | G35: 0.17 | H35: 39.62 | I35: 0.2 | J35: 9.958781362 | K35: =[1]!AgePb6U8(J35) -> 15433.62505 | L35: 5.58 | M35: 56300 | N35: 0.0007037300178 | O35: =[1]!AgePb8Th2(N35) -> 14.21894929 | R35: 4989
A36: HD2089APb3-Mn | B36: 0.8387096774 | C36: =[1]!AgePb76($B$36) -> 4988.935415 | D36: 18.6 | E36: 0.06 | F36: 15.6 | G36: 0.09 | H36: 39.17 | I36: 0.12 | J36: 5.740740741 | K36: =[1]!AgePb6U8(J36) -> 12300.853 | L36: 3.24 | M36: 10500 | N36: 0.00373047619 | O36: =[1]!AgePb8Th2(N36) -> 75.26094433 | R36: 4965
A37: HD2089A-Mn2 | B37: 0 | C37: 0 | J37: 0 | N37: 0 | R37: 4959
A38: HD2092Pb1-Cc | B38: 0.7903797468 | C38: =[1]!AgePb76($B$38) -> 4904.499013 | D38: 19.75 | E38: 0.14 | F38: 15.61 | G38: 0.18 | H38: 39.69 | I38: 0.22 | J38: 0.07342007435 | K38: =[1]!AgePb6U8(J38) -> 456.7276856 | L38: 269 | M38: 288000 | N38: 0.0001378125 | O38: =[1]!AgePb8Th2(N38) -> 2.785305806 | R38: 4950
A39: HD2092Pb1-Mn | B39: 0.8574573473 | C39: =[1]!AgePb76($B$39) -> 5020.305391 | D39: 18.17 | E39: 0.06 | F39: 15.58 | G39: 0.09 | H39: 39.054 | I39: 0.12 | J39: 76.66666667 | K39: =[1]!AgePb6U8(J39) -> 28057.54176 | L39: 0.237 | M39: 4940 | N39: 0.007905668016 | O39: =[1]!AgePb8Th2(N39) -> 159.162849 | R39: 4949
A40: HD2092-Mn2 | B40: 0 | J40: 0 | L40: - | M40: - | N40: 0 | R40: 4943
A41: HD2098Pb3-Cc | B41: 0.6244488978 | C41: =[1]!AgePb76($B$41) -> 4565.943035 | D41: 24.95 | E41: 0.11 | F41: 15.58 | G41: 0.15 | H41: 39.33 | I41: 0.2 | J41: 1.103982301 | K41: =[1]!AgePb6U8(J41) -> 4795.048398 | L41: 22.6 | M41: 15100 | N41: 0.002604635762 | O41: =[1]!AgePb8Th2(N41) -> 52.57705056 | R41: 4904
A42: HD2109Pb1-Cc | B42: 0.6638334042 | C42: =[1]!AgePb76($B$42) -> 4654.349208 | D42: 23.53 | E42: 0.13 | F42: 15.62 | G42: 0.17 | H42: 39.48 | I42: 0.21 | J42: 2.704597701 | K42: =[1]!AgePb6U8(J42) -> 8442.060726 | L42: 8.7 | M42: 41700 | N42: 0.0009467625899 | O42: =[1]!AgePb8Th2(N42) -> 19.12712871 | R42: 4883
A43: HD2155Pb1-Cc | B43: 0.4461934745 | C43: =[1]!AgePb76($B$43) -> 4072.567262 | D43: 34.94 | E43: 0.17 | F43: 15.59 | G43: 0.21 | H43: 39.61 | I43: 0.23 | J43: 0.2241180244 | K43: =[1]!AgePb6U8(J43) -> 1303.597773 | L43: 155.9 | M43: 14800 | N43: 0.002676351351 | O43: =[1]!AgePb8Th2(N43) -> 54.02276504 | R43: 4845
A44: HD2177Pb1-Cc | B44: 0.08180388044 | C44: =[1]!AgePb76($B$44) -> 1240.825307 | D44: 190.7 | E44: 0.15 | F44: 15.6 | G44: 0.18 | H44: 40.17 | I44: 0.22 | J44: 0.7362934363 | K44: =[1]!AgePb6U8(J44) -> 3556.825992 | L44: 259 | M44: 12200 | N44: 0.003292622951 | O44: =[1]!AgePb8Th2(N44) -> 66.44192294 | R44: 4844
A45: HD2177Pb2-Cc | B45: 0.6713978495 | C45: =[1]!AgePb76($B$45) -> 4670.684657 | D45: 23.25 | E45: 0.26 | F45: 15.61 | G45: 0.31 | H45: 39.16 | I45: 0.43 | J45: 0.0477412731 | K45: =[1]!AgePb6U8(J45) -> 300.6393464 | L45: 487 | M45: 13500 | N45: 0.002900740741 | O45: =[1]!AgePb8Th2(N45) -> 58.54556262 | R45: 4837
A46: HD2177Pb1-Mn | B46: 8.575357536 | C46: =[1]!AgePb76($B$46) -> 8125.856407 | D46: 18.18 | E46: 0.06 | F46: 155.9 | G46: 0.09 | H46: 39.16 | I46: 0.12 | J46: 10.32954545 | K46: =[1]!AgePb6U8(J46) -> 15648.11575 | L46: 1.76 | M46: 18300 | N46: 0.00213989071 | O46: =[1]!AgePb8Th2(N46) -> 43.20574846
A47: HD2177-Mn2 | B47: 0 | D47: — | E47: — | F47: — | G47: — | H47: — | I47: — | J47: 0 | L47: — | M47: — | N47: 0
A48: HD2227Pb1-Cc | B48: 0.5322856167 | C48: =[1]!AgePb76($B$48) -> 4333.205985 | D48: 29.27 | E48: 0.1 | F48: 15.58 | G48: 0.16 | H48: 39.55 | I48: 0.21 | J48: 0.1175502008 | K48: =[1]!AgePb6U8(J48) -> 716.4478254 | L48: 249 | M48: 71600 | N48: 0.0005523743017 | O48: =[1]!AgePb8Th2(N48) -> 11.16163313
A49: HD2227Pb1-Mn | B49: 0.8569069895 | C49: =[1]!AgePb76($B$49) -> 5019.394911 | D49: 18.17 | E49: 0.06 | F49: 15.57 | G49: 0.09 | H49: 39.09 | I49: 0.12 | J49: 11.7987013 | K49: =[1]!AgePb6U8(J49) -> 16434.12541 | L49: 1.54 | M49: 16200 | N49: 0.002412962963 | O49: =[1]!AgePb8Th2(N49) -> 48.71261127
A50: HD2227-Mn2 | B50: 0 | J50: 0 | L50: - | M50: - | N50: 0
A51: HD2231Pb1-Cc | B51: 0.8450323974 | C51: =[1]!AgePb76($B$51) -> 4999.597578 | D51: 18.52 | E51: 0.3 | F51: 15.65 | G51: 0.33 | H51: 39.18 | I51: 0.35 | J51: 0.0255801105 | K51: =[1]!AgePb6U8(J51) -> 162.8261979 | L51: 724 | M51: 349000 | N51: 0.0001122636103 | O51: =[1]!AgePb8Th2(N51) -> 2.268970373
A52: HD2233Pb1-Ch1 | B52: 0.06843667546 | C52: =[1]!AgePb76($B$52) -> 881.8074682 | D52: 303.2 | E52: 0.92 | F52: 20.75 | G52: 0.43 | H52: 50.04 | I52: 0.47 | J52: 0.001804761905 | K52: =[1]!AgePb6U8(J52) -> 11.62375683 | L52: 168000 | M52: — | N52: 0
A53: HD2233Pb1-Ch2 | B53: 0.07630057803 | C53: =[1]!AgePb76($B$53) -> 1102.968018 | D53: 294.1 | E53: 0.88 | F53: 22.44 | G53: 0.8 | H53: 48.89 | I53: 0.79 | J53: 0.001289912281 | K53: =[1]!AgePb6U8(J53) -> 8.309950418 | L53: 228000 | M53: 160 | N53: 0.3055625 | O53: =[1]!AgePb8Th2(N53) -> 5389.266951
A54: HD2233Pb2-Ch1 | B54: 0.1351940095 | C54: =[1]!AgePb76($B$54) -> 2166.516909 | D54: 146.9 | E54: 0.33 | F54: 19.86 | G54: 0.31 | H54: 41.76 | I54: 2.1 | J54: 0.001255555556 | K54: =[1]!AgePb6U8(J54) -> 8.088754262 | L54: 117000 | N54: 0
A55: HD2233Pb2-Ch2 | B55: 0.1112778065 | C55: =[1]!AgePb76($B$55) -> 1820.38949 | D55: 193.3 | E55: 0.25 | F55: 21.51 | G55: 0.21 | H55: 43.59 | I55: 0.25 | J55: 0.001185889571 | K55: =[1]!AgePb6U8(J55) -> 7.640206021 | L55: 163000 | M55: 252 | N55: 0.1729761905 | O55: =[1]!AgePb8Th2(N55) -> 3224.745255
A56: HD2233Pb3-Ch | B56: 0.176599809 | C56: =[1]!AgePb76($B$56) -> 2621.195064 | D56: 104.7 | E56: 0.25 | F56: 18.49 | G56: 0.23 | H56: 40.93 | I56: 0.27 | J56: 0.001528467153 | K56: =[1]!AgePb6U8(J56) -> 9.845609903 | L56: 68500 | N56: 0
A57: HD2233Pb4-Ch | B57: 0.1389438944 | C57: =[1]!AgePb76($B$57) -> 2214.08623 | D57: 151.5 | E57: 0.95 | F57: 21.05 | G57: 0.62 | H57: 40.56 | I57: 4.8 | J57: 0.001845310597 | K57: =[1]!AgePb6U8(J57) -> 11.88467431 | L57: 82100 | N57: 0
A58: HD2233Pb5-Ch | B58: 0.3140726934 | C58: =[1]!AgePb76($B$58) -> 3541.050287 | D58: 53.65 | E58: 0.36 | F58: 16.85 | G58: 0.34 | H58: 39.5 | I58: 0.46 | J58: 0.002838624339 | K58: =[1]!AgePb6U8(J58) -> 18.27302532 | L58: 18900 | M58: — | N58: 0
A59: HD2247Pb1-Cc1 | B59: 0.8158032444 | C59: =[1]!AgePb76($B$59) -> 4949.57955 | D59: 19.11 | E59: 0.11 | F59: 15.59 | G59: 0.15 | H59: 31.22 | I59: 0.23 | J59: 0.337037037 | K59: =[1]!AgePb6U8(J59) -> 1872.399673 | L59: 56.7 | M59: 9960 | N59: 0.003134538153 | O59: =[1]!AgePb8Th2(N59) -> 63.25691217
A60: HD2247Pb1-Cc2 | B60: 0.8244315177 | C60: =[1]!AgePb76($B$60) -> 4964.540224 | D60: 18.91 | E60: 1.11 | F60: 15.59 | G60: 0.15 | H60: 39.24 | I60: 0.19 | J60: 0.1673451327 | K60: =[1]!AgePb6U8(J60) -> 997.4669018 | L60: 113 | M60: 30200 | N60: 0.001299337748 | O60: =[1]!AgePb8Th2(N60) -> 26.24546416
A61: HD2247Pb2-Cc | B61: 0.7578998542 | C61: =[1]!AgePb76($B$61) -> 4844.606187 | D61: 20.57 | E61: 0.17 | F61: 15.59 | G61: 0.21 | H61: 39.29 | I61: 0.23 | J61: 0.0001217159763 | K61: =[1]!AgePb6U8(J61) -> 0.7845838488 | L61: 169000 | M61: 4730 | N61: 0.008306553911 | O61: =[1]!AgePb8Th2(N61) -> 167.2004923
A62: HD2247Pb1-Op | B62: 0.206154193 | C62: =[1]!AgePb76($B$62) -> 2875.551114 | D62: 88.72 | E62: 0.11 | F62: 18.29 | G62: 0.15 | H62: 38.75 | I62: 0.192 | J62: 125.3107345 | K62: =[1]!AgePb6U8(J62) -> 31192.5545 | L62: 0.708 | M62: 158000 | N62: 0.0002452531646 | O62: =[1]!AgePb8Th2(N62) -> 4.956505203
A63: HD2247Pb1-Mn | B63: 0.859900717 | C63: =[1]!AgePb76($B$63) -> 5024.340085 | D63: 18.13 | E63: 0.06 | F63: 15.59 | G63: 0.09 | H63: 39.14 | I63: 0.12 | J63: 25.60734463 | K63: =[1]!AgePb6U8(J63) -> 21151.89229 | L63: 0.708 | M63: 3330 | N63: 0.01175375375 | O63: =[1]!AgePb8Th2(N63) -> 236.184233
A64: HD2247-Mn2 | B64: 0 | J64: 0 | L64: - | M64: - | N64: 0
A65: HD2293Pb1-Cc | B65: 0.4284935985 | C65: =[1]!AgePb76($B$65) -> 4012.206716 | D65: 36.71 | E65: 0.1 | F65: 15.73 | G65: 0.15 | H65: 39.24 | I65: 0.28 | J65: 0.1535983264 | K65: =[1]!AgePb6U8(J65) -> 921.1025737 | L65: 239 | N65: 0
A66: HD2293Pb1-Op | B66: 0.04502423081 | C66: =[1]!AgePb76($B$66) -> -54.34383626 | D66: 887.3 | E66: 2.7 | F66: 39.95 | G66: 1.9 | H66: 41.17 | I66: 1.4 | J66: 0.0009044852192 | K66: =[1]!AgePb6U8(J66) -> 5.828051048 | L66: 981000 | M66: 33400 | N66: 0.001232634731 | O66: =[1]!AgePb8Th2(N66) -> 24.8989522
A67: HD2294Pb1-Cc | B67: 0.2432558865 | C67: =[1]!AgePb76($B$67) -> 3141.396163 | D67: 64.13 | E67: 0.16 | F67: 15.6 | G67: 0.2 | H67: 39.61 | I67: 0.23 | J67: 36.23163842 | K67: =[1]!AgePb6U8(J67) -> 23317.7044 | L67: 1.77 | M67: 42500 | N67: 0.000932 | O67: =[1]!AgePb8Th2(N67) -> 18.8290239
B68: Average | C68: =AVERAGE(C3:C67) -> 2755.813876 | J68: Average | K68: =AVERAGE(K3:K67) -> 4890.692168 | N68: Average | O68: =AVERAGE(O3:O67) -> 9983.642069
B69: Maximum | C69: =MAX(C3:C68) -> 8125.856407 | J69: Maximum | K69: =MAX(K3:K68) -> 31192.5545 | N69: Maximum | O69: =MAX(O3:O68) -> 352962.1923
B70: Minimum | C70: =MIN(C3:C69) -> -444.7733138 | J70: Minimum | K70: =MIN(K3:K69) -> 0.5701576211 | N70: Minimum | O70: =MIN(O3:O69) -> 2.268970373
B71: Difference | C71: =(C69 + ABS(C70)) -> 8570.629721 | J71: Difference | K71: =(K69 + ABS(K70)) -> 31193.12466 | N71: Difference | O71: =(O69 + ABS(O70)) -> 352964.4612
H75: Chronology | I75: 207Pb/206Pb | J75: 206Pb/238U | K75: 208Pb/232Th
H76: Summary | I76: Age | J76: Age | K76: Age
A77: Table 3 | H77: Average | I77: 2755.813876 | J77: 4890.692168 | K77: 9983.642069
B78: 206Pb/238U Age | C78: 207Pb/235U Age | D78: 208Pb/232Th Age | H78: Maximum | I78: 8125.856407 | J78: 31192.5545 | K78: 352962.1923
A79: HD1939Pb1-Cc | B79: 38.2 | C79: 28 | D79: 96 | H79: Minimum | I79: -444.7733138 | J79: 0.5701576211 | K79: 2.268970373
A80: HD2055Pb6-Cc | B80: 798 | C80: — | D80: — | H80: Difference | I80: 8570.629721 | J80: 31193.12466 | K80: 352964.4612
A81: HD2055Pb7-Cc1 | B81: 631 | C81: 64 | D81: —
A82: HD2055Pb7-Cc2 | B82: 442 | C82: 285 | D82: 1864
A83: HD2055Pb10-Cc | B83: 103.8 | C83: 23 | D83: — | J83: Table 1 | K83: Table 3
A84: HD2055Pb11-Cc | B84: 365.3 | C84: 29.3 | D84: — | J84: 206Pb/238U | K84: 206Pb/238U
A85: HD2055Pb11-Op | B85: 1.096 | C85: 0.2451 | D85: 1951 | J85: Age Sorted | K85: Age Sorted
A86: HD2055Pb12-Cc | B86: 775.9 | C86: 49 | D86: — | J86: 31192.5545 | K86: 20209
A87: HD2055Pb12-Op | B87: 5.726 | C87: 4.702 | D87: 88 | J87: 28057.54176 | K87: 7940
A88: HD-2057-Pb1-Cc | B88: 1455 | C88: — | D88: — | J88: 23317.7044 | K88: 7504
A89: HD-2057-Pb2-Cc | B89: 248.8 | C89: — | D89: — | J89: 21151.89229 | K89: 6372
A90: HD-2057-Pb2-Op | B90: 1.454 | C90: 0.3944 | D90: — | J90: 16434.12541 | K90: 6292
A91: HD2059Pb4-Cc | B91: 1737.9 | C91: 162 | D91: 12900 | J91: 15648.11575 | K91: 4423
A92: HD2062Pb1-Cc | B92: 420.2 | C92: 3.29 | D92: — | J92: 15433.62505 | K92: 3353
A93: HD2062Pb2-Cc | B93: 118.8 | C93: — | D93: 9 | J93: 13502.80691 | K93: 3270
A94: HD2065Pb4-Cc | B94: 505.9 | C94: 18.8 | D94: 276 | J94: 12300.853 | K94: 2734
A95: HD2074Pb1-Cc2 | B95: 744.6 | C95: — | D95: — | J95: 11023.03808 | K95: 1737.9
A96: HD2074Pb1-Cc3 | B96: 81.37 | C96: 2.9 | D96: 1300 | J96: 8442.060726 | K96: 1473.4
A97: HD2074Pb2-Cc1 | B97: 145.7 | C97: 11.9 | D97: — | J97: 8009.589377 | K97: 1455
A98: HD2074Pb2-Cc2 | B98: 78.26 | C98: 10.9 | D98: — | J98: 7556.2534 | K98: 798
A99: HD2074Pb2-Op | B99: 0.5327 | C99: 0.1329 | D99: — | J99: 6415.878422 | K99: 775.9
A100: HD2089APb1-Cc1 | B100: 7940 | C100: 16 | D100: — | J100: 6372.490295 | K100: 744.6
A101: HD2089APb1-Cc2a | B101: 6372 | C101: — | D101: — | J101: 5612.416521 | K101: 631
A102: HD2089APb1-Cc2b | B102: 7504 | C102: 15 | D102: — | J102: 4844.26984 | K102: 505.9
A103: HD2089APb1-Cc2c | B103: 6292 | C103: 9 | D103: — | J103: 4795.048398 | K103: 474.5
A104: HD2089APb1-Cc3 | B104: 4423 | C104: n.d. | D104: 28600 | J104: 4510.958386 | K104: 442
A105: HD2089APb2-Cc | B105: 3270 | C105: n.d. | D105: 166 | J105: 3556.825992 | K105: 420.2
A106: HD2092Pb1-Cc | B106: 37.5 | C106: 10 | D106: 37 | J106: 2173.284944 | K106: 398.6
A107: HD2098Pb3-Cc | B107: 2734 | C107: — | D107: 250 | J107: 2023.104678 | K107: 365.3
A108: HD2109Pb1-Cc | B108: 3353 | C108: 486 | D108: 161 | J108: 1978.266919 | K108: 279.9
A109: HD2155Pb1-Cc | B109: 398.6 | C109: 0 | D109: 607 | J109: 1872.399673 | K109: 248.8
A110: HD2177Pb1-Cc | B110: 20209 | C110: 277 | D110: 1555 | J110: 1710.564074 | K110: 148.6
A111: HD2177Pb2-Cc | B111: 66.62 | C111: 6 | D111: 49 | J111: 1404.002869 | K111: 145.7
A112: HD2227Pb1-Cc | B112: 279.9 | C112: — | D112: 112 | J112: 1303.597773 | K112: 143
A113: HD2231Pb1-Cc | B113: 3.11 | C113: 12 | D113: 3.2 | J113: 1044.412031 | K113: 118.8
A114: HD2233Pb1-Ch1 | B114: 10.781 | C114: 4.218 | D114: — | J114: 997.4669018 | K114: 103.8
A115: HD2233Pb1-Ch2 | B115: 7.687 | C115: 4.133 | D115: 82030 | J115: 921.1025737 | K115: 81.37
A116: HD2233Pb2-Ch1 | B116: 6.979 | C116: 5.01 | D116: — | J116: 830.3868515 | K116: 78.26
A117: HD2233Pb2-Ch2 | B117: 6.85 | C117: 5.023 | D117: 57900 | J117: 775.7610177 | K117: 66.62
A118: HD2233Pb3-Ch | B118: 7.972 | C118: 5.78 | D118: — | J118: 716.4478254 | K118: 41.5
A119: HD2233Pb4-Ch | B119: 10.284 | C119: 9.1 | D119: — | J119: 695.7180773 | K119: 38.2
A120: HD2233Pb5-Ch | B120: 11.69 | C120: 8.95 | D120: — | J120: 456.7276856 | K120: 37.5
A121: HD2247Pb1-Cc1 | B121: 148.6 | C121: 16 | D121: 177 | J121: 437.3829945 | K121: 11.69
A122: HD2247Pb1-Cc2 | B122: 41.5 | C122: — | D122: 69 | J122: 408.4383572 | K122: 10.781
A123: HD2247Pb2-Cc | B123: 143 | C123: 6 | D123: 649 | J123: 300.6393464 | K123: 10.284
A124: HD2293Pb1-Cc | B124: 474.5 | C124: 81 | D124: — | J124: 185.046527 | K124: 7.972
A125: HD2293Pb1-Op | B125: 5.649 | C125: 3.433 | D125: 1120 | J125: 176.3737864 | K125: 7.687
A126: HD2294Pb1-Cc | B126: 1473.4 | C126: 12 | D126: 216 | J126: 162.8261979 | K126: 6.979
A127: Average | B127: =AVERAGE(B79:B126) -> 1540.232515 | C127: =AVERAGE(C79:C126) -> 45.54625405 | D127: =AVERAGE(D79:D126) -> 7687.408 | J127: 144.8335232 | K127: 6.85
A128: Maximum | B128: =MAX(B79:B126) -> 20209 | C128: =MAX(C79:C126) -> 486 | D128: =MAX(D79:D126) -> 82030 | J128: 18.27302532 | K128: 5.726
A129: Minimum | B129: =MIN(B79:B126) -> 0.5327 | C129: =MIN(C79:C126) -> 0 | D129: =MIN(D79:D126) -> 3.2 | J129: 11.88467431 | K129: 5.649
A130: Difference | B130: =(B128 - ABS(B129)) -> 20208.4673 | C130: =(C128 - ABS(C129)) -> 486 | D130: =(D128 - ABS(D129)) -> 82026.8 | J130: 11.62375683 | K130: 3.11
J131: 9.845609903 | K131: 1.454
J132: 8.309950418 | K132: 1.096
A133: Summary | B133: 206Pb/238U Age | C133: 207Pb/235U Age | D133: 208Pb/232Th Age | J133: 8.088754262 | K133: 0.5327
A134: Average | B134: 1540.232515 | C134: 45.54625405 | D134: 7687.408 | J134: 7.640206021
A135: Maximum | B135: 20209 | C135: 486 | D135: 82030 | J135: 5.828051048
A136: Minimum | B136: 0.5327 | C136: 0 | D136: 3.2 | J136: 5.802902641
A137: Difference | B137: 20208.4673 | C137: 486 | D137: 82026.8 | J137: 1.470832846
J138: 1.113577435
J139: 0.7845838488
J140: 0.5701576211

Sheet Iso_Plot_019
A1: 1,1,01 | H1: Pb207/206 | I1: Age | L1: Age, Pb 207/208
A2: 1,1,I | B2: 9.44 | C2: 0.012 | D2: 10.377 | E2: 0.014 | F2: 29.594 | G2: 0.05 | H2: 1.0992 | I2: 5369.924387 | J2: Older Than Solar System | K2: 0.0036 | L2: 4.56 | M2: 0.15
A3: 1,1,E1 | B3: 9.576 | C3: 0.01 | D3: 10.481 | E3: 0.012 | F3: 29.753 | G3: 0.04 | H3: 1.0945 | I3: 5363.934169 | J3: Older Than Solar System | K3: 0.0026 | L3: 4.72 | M3: 0.05
A4: I,I,E2 | B4: 9.53 | C4: 0.012 | D4: 10.433 | E4: 0.015 | F4: 29.661 | G4: 0.044 | H4: 1.0947 | I4: 5364.189624 | J4: Older Than Solar System | K4: 0.0027 | L4: 4.56 | M4: 0.1
A5: I,I,E2H20L | B5: 10.79 | C5: 0.08 | D5: 11.15 | E5: 0.1 | F5: 30.61 | G5: 0.27 | H5: 1.033 | I5: 5282.952099 | J5: Older Than Solar System | K5: 0.014 | L5: 4.45 | M5: 0.07
A6: 2,2,02
A7: 2,2,I | B7: 9.443 | C7: 0.008 | D7: 10.387 | E7: 0.011 | F7: 29.559 | G7: 0.037 | H7: 1.1 | I7: 5370.941308 | J7: Older Than Solar System | K7: 0.0028 | L7: 4.7 | M7: 0.1
A8: 2,2,E | B8: 9.487 | C8: 0.015 | D8: 10.405 | E8: 0.018 | F8: 29.556 | G8: 0.058 | H8: 1.0966 | I8: 5366.613995 | J8: Older Than Solar System | K8: 0.0035 | L8: 4.54 | M8: 0.13
A9: 2,2,EH20L | B9: 15.17 | C9: 0.11 | D9: 13.59 | E9: 0.12 | F9: 34.52 | G9: 0.31 | H9: 0.8958 | I9: 5082.255717 | J9: Older Than Solar System | K9: 0.012 | L9: 4.41 | M9: 0.03
A10: 3,3,07
A11: 3,3,1 | B11: 9.472 | C11: 0.013 | D11: 10.397 | E11: 0.015 | F11: 29.642 | G11: 0.045 | H11: 1.0976 | I11: 5367.888201 | J11: Older Than Solar System | K11: 0.0021 | L11: 4.56 | M11: 0.1
A12: 3,3,E | B12: 9.517 | C12: 0.01 | D12: 10.438 | E12: 0.011 | F12: 29.737 | G12: 0.037 | H12: 1.0967 | I12: 5366.74147 | J12: Older Than Solar System | K12: 0.0022 | L12: 4.7 | M12: 0.06
A13: 3,3,EH20L | B13: 10.03 | C13: 0.04 | D13: 10.74 | E13: 0.05 | F13: 30.03 | G13: 0.15 | H13: 1.0708 | I13: 5333.308948 | J13: Older Than Solar System | K13: 0.008 | L13: 4.55 | M13: 0.05
J17: Table 5
J18: Page 139
H19: Age | I19: Age | J19: Age
H20: Pb207/208 | I20: Pb207/206 | J20: Category
H21: 4560 | I21: 5369.924387 | J21: Older Than Solar System
H22: 4720 | I22: 5363.934169 | J22: Older Than Solar System
H23: 4560 | I23: 5364.189624 | J23: Older Than Solar System
H24: 4450 | I24: 5282.952099 | J24: Older Than Solar System
H25: 4700 | I25: 5370.941308 | J25: Older Than Solar System
H26: 4540 | I26: 5366.613995 | J26: Older Than Solar System
H27: 4410 | I27: 5082.255717 | J27: Older Than Solar System
H28: 4560 | I28: 5367.888201 | J28: Older Than Solar System
H29: 4700 | I29: 5366.74147 | J29: Older Than Solar System
H30: 4500 | I30: 5333.308948 | J30: Older Than Solar System
H31: AVG | I31: =AVERAGE(I21:I30) -> 5326.874992
H32: MAX | I32: =MAX(I21:I30) -> 5370.941308
H33: MIN | I33: =MIN(I21:I30) -> 5082.255717
H34: STD DEV | I34: =STDEV(I21:I30) -> 90.19772629 | J34: Meteorites

Sheet Iso_Plot_020
A2: Table 1.
A3: Samplel | B3: Weight (mg) | C3: Concentration | E3: (ppm) | F3: U238/Pb204 (v) | G3: Th232/U238 (k)
C4: Pb | D4: U | E4: Th
A5: 11-1 | B5: 570.7 | C5: 1.045 | D5: 0.0148 | F5: 0.642
A6: 7-2 | B6: 1272 | C6: 1.178 | D6: 0.0143 | F6: 0.569
A7: 1-3 | B7: 661 | C7: 1.088 | D7: 0.0121 | F7: 0.52
A8: 1-4 | B8: 636.2 | C8: 0.935 | D8: 0.012 | F8: 0.573 | J8: 3.17
A9: W-1 | B9: 805.8 | C9: 1.069 | D9: 0.0129 | F9: 0.542 | J9: -2.09
A10: W-2 | B10: 672.2 | C10: 0.966 | D10: 0,0119 | F10: 0.546 | J10: 3.65
A11: 9-1 | B11: 693.8 | C11: 1.139 | D11: 0.0141 | F11: 0.555 | J11: 6.94
A12: 9-2 | B12: 546,0 | C12: 1.215 | D12: 0.0138 | E12: 0.0424 | F12: 0.513 | G12: 3.17 | J12: 6.1
A13: 1-3 | B13: 344.8 | C13: 1.079 | D13: 0.013 | E13: 0.0261 | F13: 0.536 | G13: -2.09 | J13: 3.62
A14: 1-4 | B14: 396.2 | C14: 1.006 | D14: 0.0175 | E14: 0.0619 | F14: 0.78 | G14: 3.65 | J14: 5.15
A15: ChL-1 | B15: 287.9 | C15: 0.289 | D15: 0.023 | E15: 0.1543 | F15: 4.38 | G15: 6.94 | J15: 5.77
A16: C6L-2 | B16: 151.8 | C16: 0.2784 | D16: 0.0536 | E16: 0.3164 | F16: 18.47 | G16: 6.1 | J16: 7.8
A17: Ch-3 | B17: 225.5 | C17: 0.3028 | D17: 0.0263 | E17: 0.0921 | F17: 4.36 | G17: 3.62 | J17: 9
A18: Ch-D | B18: 127.5 | C18: 0.1675 | D18: 0.0189 | E18: 0.0944 | F18: 6.62 | G18: 5.15
A19: WI | B19: 54.6 | C19: 0.2667 | D19: 0.0651 | E19: 0.3636 | F19: 23.3 | G19: 5.77
A20: WA | B20: 156.6 | C20: 0.3122 | D20: 0.094 | E20: 0.7093 | F20: 129.6 | G20: 7.8
A21: PI leach solution (14-2) | B21: 112.1 | C21: 0.1834 0.0072 | D21: 0.0361 - | E21: 0,3146 | F21: 23.23 | G21: 9
A25: Table 2. | B25: Observed Ratios1 | C25: Page 638 | E25: Corrected Ratios2
A26: Sample | B26: 206 Pb | C26: Pb | D26: Pb Pb208 | E26: 206 Pb | F26: 207 Pb PbT b | G26: 207/206 | H26: 206/207 | I26: Meteorite
A27: Name | B27: Pb204 | C27: 204 | D27: 204 | E27: Pb204 | F27: Pb204 | G27: Ratio | H27: Ages
A28: 7-1 | B28: 10.645 | C28: 11.098 | D28: 30.694 | E28: 10.583 | F28: 11.064 | G28: =(F28/E28) -> 1.04545025 | H28: 5174.836468 | I28: Older Than Solar System
A29: 7-2 | B29: 10.536 | C29: 11.008 | D29: 30.573 | E29: 10.513 | F29: 10.995 | G29: 1.045847998 | H29: 5300.283246 | I29: Older Than Solar System
A30: 7-3 | B30: 10.867 | C30: 11.224 | D30: 31.062 | E30: 10.788 | F30: 11.18 | G30: 1.03633667 | H30: 5287.474848 | I30: Older Than Solar System
A31: 7-4 | B31: 10.004 | C31: 10.695 | D31: 31.092 | E31: 9.843 | F31: 10.633 | G31: 1.080260083 | H31: 5345.618224 | I31: Older Than Solar System
A32: 4-1 | B32: 10.101 | C32: 10.788 | D32: 30.263 | E32: 9.989 | F32: 10.727 | G32: 1.073881269 | H32: 5337.330791 | I32: Older Than Solar System
A33: W-2 | B33: 10.226 | C33: 10.944 | D33: 30.816 | E33: 9.859 | F33: 10.619 | G33: 1.077086926 | H33: 5341.50209 | I33: Older Than Solar System
A34: Allende-1 | B34: 10.71 | C34: 11.13 | D34: 30.79 | E34: 10.64 | F34: 11.1 | G34: 1.043233083 | H34: 5296.774176 | I34: Older Than Solar System
A35: Allende-2 | B35: 10.26 | C35: 10.88 | D35: 30.31 | E35: 10.12 | F35: 10.78 | G35: 1.065217391 | H35: 5325.99102 | I35: Older Than Solar System
A36: Allende | B36: - | C36: - | E36: 11.25 | F36: 11.451 | G36: 1.017866667 | H36: 5262.243804 | I36: Older Than Solar System
A37: 9-1 | B37: 10.215 | C37: 10.836 | D37: 30.296 | E37: 10.139 | F37: 10.784 | G37: 1.063615741 | H37: 5323.884034 | I37: Older Than Solar System
A38: M-2 | B38: 10.272 | C38: 10859 | D38: 30.32 | E38: 10.176 | F38: 10.806 | G38: 1.061910377 | H38: 5321.636929 | I38: Older Than Solar System
A39: 9-3 | B39: 10.01 | C39: 10.711 | D39: 30.12 | E39: 9.91 | F39: 10.656 | G39: 1.075277497 | H39: 5339.149219 | I39: Older Than Solar System
A40: 9-4 | B40: 10.185 | C40: 10.825 | D40: 30.2 | E40: 10.025 | F40: 10.737 | G40: 1.071022444 | H40: 5333.599703 | I40: Older Than Solar System
A41: ChL-1 (IC) | B41: 14.696 | C41: 13.671 | D41: 35.009 | E41: 14.654 | F41: 13.652 | G41: 0.9316227651 | H41: 5137.644926 | I41: Older Than Solar System
A42: ChL-1 (ID) | B42: 15.122 | C42: 13.67 | D42: - | E42: 14.5 | F42: 13.5 | G42: 0.9310344828 | H42: 5136.753668 | I42: Older Than Solar System
A43: C9L-2 (IC) | B43: 26.511 | C43: 20.782 | D43: 53.412 | E43: 29.214 | F43: 22.623 | G43: 0.7743889916 | H43: 4875.346579
A44: C6L-2 (10) | B44: 29.718 | C44: 22.799 | D44: - | E44: 28.985 | F44: 22.894 | G44: 0.7898568225 | H44: 4903.555649
A45: Ch3 (IC) | B45: 12.3 | C45: 12.103 | D45: 32.213 | E45: 12.204 | F45: 12.052 | G45: 0.9875450672 | H45: 5219.755006 | I45: Older Than Solar System
A46: Ch3 (ID) | B46: 13.49 | C46: 12761 | D46: - | E46: 12.332 | F46: 12.244 | G46: 0.9928640934 | H46: 5227.307301 | I46: Older Than Solar System
A47: ChD (IC) | B47: 16367 | C47: 14.596 | D47: 37.005 | E47: 15.816 | F47: 14.378 | G47: 0.9090794133 | H47: 5103.05776 | I47: Older Than Solar System
A48: ChD (ID) | B48: 16.949 | C48: 14.678 | D48: - | E48: 15.814 | F48: 14.333 | G48: 0.9063488049 | H48: 5098.806719 | I48: Older Than Solar System
A49: WI (IC) | B49: 28.49 | C49: 22.148 | D49: 55.325 | E49: 29.466 | F49: 22.814 | G49: 0.7742482862 | H49: 4875.087225
A50: WI (10) | B50: 30.211 | C50: 22.338 | E50: 29.506 | F50: 22.802 | G50: 0.7727919745 | H50: 4872.399939
A51: WA (IC) | B51: 101.6 | C51: 69.67 | D51: 207.95 | E51: 134.06 | F51: 88.12 | G51: 0.657317619 | H51: 4640.117732
A52: WA (ID) | B52: 107.297 | C52: 69.06 | E52: 134.22 | F52: 88.07 | G52: 0.6561615259 | H52: 4637.576867
A53: PI (IC) | B53: 28.011 | C53: 21.79 | D53: 61.513 | E53: 33.673 | F53: 25.642 | G53: 0.7615003118 | H53: 4851.378874
A54: PI (ID) | C54: 24.014 | E54: 33.881 | F54: 25.403 | G54: 0.7497712582 | H54: 4829.188811
F55: =COUNT(F28:F54) -> 27 | G55: AVG | H55: =AVERAGE(H28:H54) -> 5125.863023
G56: MAX | H56: =MAX(H28:H54) -> 5345.618224
G57: MIN | H57: =MIN(H28:H54) -> 4637.576867
A58: Sample | B58: Pb 206/207 | C58: Age | G58: STD DEV | H58: =STDEV(H28:H54) -> 227.8793093
A59: Name | B59: Ages | C59: Category
A60: 7-1 | B60: 5174.836468 | C60: Older Than Solar System
A61: 7-2 | B61: 5300.283246 | C61: Older Than Solar System
A62: 7-3 | B62: 5287.474848 | C62: Older Than Solar System
A63: 7-4 | B63: 5345.618224 | C63: Older Than Solar System
A64: 4-1 | B64: 5337.330791 | C64: Older Than Solar System
A65: W-2 | B65: 5341.50209 | C65: Older Than Solar System
A66: Allende-1 | B66: 5296.774176 | C66: Older Than Solar System
A67: Allende-2 | B67: 5325.99102 | C67: Older Than Solar System
A68: Allende | B68: 5262.243804 | C68: Older Than Solar System
A69: 9-1 | B69: 5323.884034 | C69: Older Than Solar System
A70: M-2 | B70: 5321.636929 | C70: Older Than Solar System
A71: 9-3 | B71: 5339.149219 | C71: Older Than Solar System
A72: 9-4 | B72: 5333.599703 | C72: Older Than Solar System
A73: ChL-1 (IC) | B73: 5137.644926 | C73: Older Than Solar System
A74: ChL-1 (ID) | B74: 5136.753668 | C74: Older Than Solar System
A75: C9L-2 (IC) | B75: 4875.346579 | C75: Older Than The Earth
A76: C6L-2 (10) | B76: 4903.555649 | C76: Older Than The Earth
A77: Ch3 (IC) | B77: 5219.755006 | C77: Older Than Solar System
A78: Ch3 (ID) | B78: 5227.307301 | C78: Older Than Solar System
A79: ChD (IC) | B79: 5103.05776 | C79: Older Than Solar System
A80: ChD (ID) | B80: 5098.806719 | C80: Older Than Solar System
A81: WI (IC) | B81: 4875.087225 | C81: Older Than The Earth
A82: WI (10) | B82: 4872.399939 | C82: Older Than The Earth
